Workbook

Sheet Index
A1: Sheet | B1: INDEX | F1: Technology Data for Energy Plants Updated chapters, August 2016 and later
A2: 2 | B2: 01 Coal CHP | F2: All cost data is in 2015€
A3: 3 | B3: 02 LTE existing plant
A4: 4 | B4: 03a Coal to wood pellets exi bo
A5: 5 | B5: 03b Coal to wood chips n. boile
A6: 6 | B6: 03c coal to wood chips exi. boi
A7: 7 | B7: 04 Gas turb. simple cycle, L
A8: 8 | B8: 04 Gas turb. simple cycle Sm-Me
A9: 9 | B9: 04 Gas turb. simple cycle Micro
A10: 10 | B10: 05 Gas turb. CC, steam extract.
A11: 11 | B11: 05 Gas turb. CC, Back-pressure
A12: 12 | B12: 06 Gas engines, natural gas
A13: 13 | B13: 06 Gas engines, biogas
A14: 14 | B14: 07 Carbon Capture and Storage
A15: 15 | B15: 08 WtE CHP, Large
A16: 16 | B16: 08 WtE CHP, Medium
A17: 17 | B17: 08 WtE CHP, Small
A18: 18 | B18: 08 WtE HOP
A19: 19 | B19: 09 Wood Chips, Large
A20: 20 | B20: 09 Wood Chips, Medium
A21: 21 | B21: 09 Wood Chips, Small
A22: 22 | B22: 09 Wood Pellets, Large
A23: 23 | B23: 09 Wood Pellets, Medium
A24: 24 | B24: 09 Wood Pellets, Small
A25: 25 | B25: 09 Straw, Large
A26: 26 | B26: 09 Straw, Medium
A27: 27 | B27: 09 Straw, Small
A28: 28 | B28: 09 Wood Chips HOP
A29: 29 | B29: 09 Wood Pellets HOP
A30: 30 | B30: 09 Straw HOP
A31: 31 | B31: 10 Stirling
A32: 32 | B32: 11 SOFC-CHP
A33: 33 | B33: 12 LT-PEMFC CHP
A34: 34 | B34: 20 Onshore turbines
A35: 35 | B35: 20 Domestic turbines
A36: 36 | B36: 21 Offshore turbines
A37: 37 | B37: 21 Near shore turbines
A38: 38 | B38: 22 Photovoltaics Small
A39: 39 | B39: 22 Photovoltaics Medium
A40: 40 | B40: 22 Photovoltaics LARGE new
A41: 41 | B41: 23 Wave Energy
A42: 42 | B42: 40 Comp. heat pump, DH
A43: 43 | B43: 40 Absorption heat pump, DH
A44: 44 | B44: 41 Electric Boilers
A45: 45 | B45: 44 Natural Gas DH Only
A46: 46 | B46: 45 Geothermal - Abs.HP 70 dgs
A47: 47 | B47: 45 Geothermal - Abs.HP 50 dgs
A48: 48 | B48: 45 Geothermal - Electric HP
A49: 49 | B49: 46 Solar District Heating
A50: 50 | B50: 50 Diesel engine farm
A51: 51 | B51: 51 Natural gas engine plant
A52: 52 | B52: 52 OCGT - Natural gas
A53: 53 | B53: 52 OCGT - Light fuel oil

Sheet 01 Coal CHP
B1: 01 Supercritical Pulverized Fuel Power Plant - Coal CHP | H1: Back to Index
B2: Published November 2017
B3: Technology | C3: Pulverized coal fired, Supercritical steam process, extraction plant
C4: 2015 | D4: 2020 | E4: 2030 | F4: 2050 | G4: Note | H4: Ref
B5: Energy/technical data
B6: Generating capacity for one unit (MW) | C6: 400 - 700
B7: Electricity efficiency, condensation mode, net (%) | C7: 44-48 | D7: 46-51 | E7: 52 | F7: 52-55 | G7: C | H7: 8;7;9;11
B8: Cb coefficient (50oC/100oC) | C8: 0.75 | D8: 0.84 | E8: 1.01 | G8: A
B9: Cv coefficient (50oC/100oC) | C9: 0.15 | D9: 0.15 | E9: 0.15 | H9: 1
B10: Availability (%) | C10: 95 | D10: 95 | E10: 95 | G10: E | H10: 7
B11: Technical lifetime (years) | C11: 25 | D11: 25 | E11: 25 | F11: 25 | H11: 6
B12: Construction time (years) | C12: 4.5 | D12: 4.5 | E12: 4.5 | H12: 2;3;3
B13: Environment
B14: SO2 (degree of desulphuring, %) | C14: 97 | D14: 97 | E14: 97 | F14: 97 | G14: B | H14: 5
B15: NOX (g per GJ fuel) | C15: 38 | D15: 35 | E15: 35 | F15: 35 | G15: B | H15: 12;5;5;5
B16: CH4 (g per GJ fuel) | C16: 1.5 | D16: 1.5 | E16: 1.5 | F16: 1.5 | H16: 13;5;5;5
B17: N2O (g per GJ fuel) | C17: 0.8 | D17: 0.8 | E17: 0.8 | F17: 0.8 | H17: 13;5;5;5
B18: Financial data (in 2015€)
B19: Nominal investment (M€/MW) | C19: 1.93 | D19: 1.9 | E19: 1.860474951 | F19: 1.783874427 | G19: J | H19: 17,18,19,20,21,22
B20: Fixed O&M (€/MW/year) | C20: 31500 | D20: 31000 | E20: 30355.11763 | F20: 29105.3196 | G20: J | H20: 17,18,19,20,21,22
B21: Variable O&M (€/MWh) | C21: 2.95 | D21: 2.9 | E21: 2.839672294 | F21: 2.722755705 | G21: J | H21: 17,18,19,20.21,22
B22: Regulation ability
B23: Primary load support (% per 30 seconds) | C23: 5 | D23: 5 | E23: 5 | F23: 5 | G23: D | H23: 14
B24: Secondary load support (% per minute) | C24: 4 | D24: 4 | E24: 4 | F24: 4 | G24: D | H24: 14
B25: Minimum load (% of full load) | C25: 18 | D25: 15 | E25: 15 | F25: 10 | H25: 10+14
A27: References:
A28: 1 | B28: Elsam, November 2003
A29: 2 | B29: Elsam's and Elkraft's update of the Danish Energy Agency's 'Teknologidata for el- og varmeproduktionsanlæg', December 1997
A30: 3 | B30: Eltra, September 2003
A31: 5 | B31: Danish Energy Agency, 2009.
A32: 6 | B32: "Projected costs of generating electricity", International Energy Agency (IEA), 2005.
A33: 7 | B33: “Energy technology perspectives 2008”, International Energy Agency, 2008.
A34: 8 | B34: Danish Energy Agency, 2008. Measured data (1994-2006) from newest power plants in Denmark.
A35: 9 | B35: Own estimate by Danish Energy Agency and Energinet.dk, 2011.
A36: 10 | B36: Energinet.dk, 2009
A37: 11 | B37: www.ad700.dk
A38: 12 | B38: "En opdateret analyse af Danmarks muligheder for at reducere emissionerne af NOx" (Updated analysis of Denmark's options to reduce NOx emissions; in Danish), Danish Environmental Protection Agency, 2009.
A39: 13 | B39: National Environmental Research Institute, Denmark, 2009 (data from 2007).
A40: 14 | B40: DONG Energy, 2009.
A41: 15 | B41: "UK Electricity Generation Costs Update", Mott MacDonald, June 2010.
A42: 16 | B42: "The Costs of CO2 Capture, Transport and Storage", Zero Emissions Platform (ZEP), July 2011
A43: 17 | B43: The IEA World Energy Outlook 2014 coal fired Ultra-supercritical power plants in Europe. Values used are the projection for 2020.
A44: 18 | B44: The IEA Projected Cost of Generating Electricity 2015 for coal fired power plants. Here both the ‘world median’ is used, and data from recently commissioned plants in the Netherlands. The three units in the Netherlands are chosen because of the proximity to Denmark, because the socio-economic parameters (labour cost etc) are assumed to be similar and because the units are new (all from 2015).
A45: 19 | B45: EIA Updated Capital Cost Estimates for Utility Scale Electricity Generating Plants 2013 for pulverizes coal fired advanced single units.[1]
A46: 20 | B46: Aggregated data from different projects on existing units that Ea Energy Analyses have been working on since 2010. Data is used for estimating O&M costs.
A47: 21 | B47: IEA( 2016),Energy Technology Perspectives
A48: 22 | B48: E.S. Rubin et al. / Energy Policy 86 (2015) page 198–218, A review of learning rates for electricity supply technologies
A49: Notes:
A50: A | B50: The Cb values have been calculated from the electricity efficiencies in condensation mode, the Cv values and a total efficiency (electricity plus heat) in full back-pressure mode of 90%. Cf. Annex 1.
A51: B | B51: The data for SO2 and NOx emissions assume flue gas desulphurisation (wet gypsum) and DeNOx equipment of the “high dust” SCR type.
A52: C | B52: Supercritical in 2010 and ultra-supercritical from 2020.
A53: D | B53: Please refer to section 'Regulation ability' in the above qualitative description.
A54: E | B54: Outage rates are generally about 5% for plants that are 10-20 years old. Unless the plant is refurbished, the rate increases to 20% for plants that are 40 years old (ref. 7)
A55: F | B55: It is assumed that the cost is falling by 0.2 % p.a.
B56: Defaltor 2011-2015 | C56: 1.059

Sheet 02 LTE existing plant
C3: Technology | D3: 01a Life time extension of coal power plant, extraction plant
D4: 2015 | E4: 2020 | F4: 2030 | G4: 2050 | H4: Uncertainty (2020) | J4: Uncertainty (2050) | L4: Note | M4: Ref
C5: Energy/technical data | H5: Lower | I5: Upper | J5: Lower | K5: Upper
C6: Generating capacity for one unit (MW) | D6: 300 | E6: 300 | F6: 300 | H6: 200 | I6: 400 | J6: 200 | K6: 400
C7: Electricity efficiency (condensation mode for extraction plants), net (%), name plate | D7: +0 | E7: +0 | F7: +0 | H7: -1 | I7: +1 | L7: EF | M7: =$B$41 -> 7
C8: Electricity efficiency (condensation mode for extraction plants), net (%), annual average | D8: +0 | E8: +0 | F8: +0 | H8: -1 | I8: +1 | L8: EF | M8: 7
C9: Cb coefficient (50oC/100oC) | D9: +0 | E9: +0 | F9: +0 | H9: +0 | I9: +0 | L9: AF | M9: 7
C10: Cv coefficient (50oC/100oC) | D10: +0 | E10: +0 | F10: +0 | H10: +0 | I10: +0 | L10: AF | M10: 7
C11: Forced outage (%) | D11: +0 | E11: +0 | F11: +0 | H11: +0 | I11: +0 | L11: AF | M11: 7
C12: Planned outage (weeks per year) | D12: +0 | E12: +0 | F12: +0 | H12: +0 | I12: +0 | L12: AF | M12: 7
C13: Technical lifetime (years) | D13: 15 | E13: 15 | F13: 15 | M13: 4, 5, 6, 7
C14: Construction time (years) | D14: 0.5 | E14: 0.5 | F14: 0.5 | M14: =$B$41 -> 7
C15: Space requirement (1000m2/MW) | D15: +0 | E15: +0 | F15: +0 | H15: +0 | I15: +0 | L15: AF
C16: Regulation ability
C17: Primary regulation (% per 30 seconds) | D17: +0 | E17: +0 | F17: +0 | H17: +0 | I17: +0 | L17: AF | M17: =$B$41 -> 7
C18: Secondary regulation (% per minute) | D18: +0 | E18: +0 | F18: +0 | H18: +0 | I18: +0 | L18: AF | M18: =$B$41 -> 7
C19: Minimum load (% of full load) | D19: +0 | E19: +0 | F19: +0 | H19: +0 | I19: +0 | L19: AF | M19: =$B$41 -> 7
C20: Warm start-up time (hours) | D20: +0 | E20: +0 | F20: +0 | H20: +0 | I20: +0 | L20: AF | M20: =$B$41 -> 7
C21: Cold start-up time (hours) | D21: +0 | E21: +0 | F21: +0 | H21: +0 | I21: +0 | L21: AF | M21: =$B$41 -> 7
C22: Environment
C23: SO2 (degree of desulphuring, %) | D23: +0 | E23: +0 | F23: +0 | H23: +0 | I23: +0 | L23: AFG | M23: =$B$42 -> 8
C24: NOX (g per GJ fuel) | D24: +0 | E24: +0 | F24: +0 | H24: +0 | I24: +0 | L24: AFG | M24: =$B$42 -> 8
C25: CH4 (g per GJ fuel) | D25: +0 | E25: +0 | F25: +0 | H25: +0 | I25: +0 | L25: AFG | M25: =$B$42 -> 8
C26: N2O (g per GJ fuel) | D26: +0 | E26: +0 | F26: +0 | H26: +0 | I26: +0 | L26: AFG | M26: =$B$42 -> 8
C27: Financial data (in 2015€)
C28: Nominal investment (M€/MW) | D28: 0.2357712557 | E28: =D28 -> 0.2357712557 | F28: =D28 -> 0.2357712557 | H28: 0.1482479784 | I28: 0.3369272237 | L28: CF | M28: 4, 5, 6, 7
C29: - of which equipment | D29: - | E29: - | F29: - | H29: - | I29: -
C30: - of which installation | D30: - | E30: - | F30: - | H30: - | I30: -
C31: Fixed O&M (€/MW/year) | D31: +0 | E31: +0 | F31: +0 | H31: +0 | I31: +8,000 | L31: ABF | M31: =$B$41 -> 7
C32: Variable O&M (€/MWh) | D32: +0 | E32: +0 | F32: +0 | H32: +0 | I32: +0 | L32: ADF | M32: =$B$41 -> 7
C33: Technology specific data
B37: References:
B38: 4 | C38: Projected Costs of Generating electricity edition 2015, IEA, NEA and OECD 2015
B39: 5 | C39: Baggrundsnotat omhandlende metode for Energinet.dk's forventninger til kraftværksudviklingen i Danmark, Energinet.dk, 27. august 2014 (Background note concerning method for Energinet.dk's expectations for power plant development in Denmark , Energinet.dk , August 27, 2014)
B40: 6 | C40: Studstrupværket kører videre på kul frem til 2015, Ingeniøren, 10. maj 2012,( Studstrupværket continues to run on coal until 2015, Engineer , May 10, 2012, )
B41: 7 | C41: Ea Energy Analysis, based on experience from various commercial projects.
B42: 8 | C42: It is assumed by Ea Energy Analyses that plants emissions prior to the LTE is within the legal limits.
B43: Notes:
B44: A | C44: Values will generally be similar to those of the plant prior to Life Time Extention (LTE).
B45: B | C45: Values will depend on those of the plant prior to LTE, however the average fixed O&M cost may increase slightly for the extension period compared with the original life time to accomodate the necessary reinvestments during the extended life time.
B46: C | C46: Investment costs will vary largely, depending on the necessary scope of work. The indicated range represents typical cases where 20-25 years Danish coal power CHP plants have been life time extended to obtain additional 15 years life time (based mainly on budgetted values).
B47: D | C47: Variable O&M costs will in general be similar or a bit smaller to those of the plant prior to LTE. The reason for the small improvement is when you compare it to just before the LTE. When compared to the average over the lifetime the O&M costs will be similar.
B48: E | C48: Values will generally be similar to those of the plant prior to LTE. Average efficiencies over the lifetime will be similar to the plant prior to LTE, but the efficiencies just after the LTE will be better than that of the plant just before the LTE.
B49: F | C49: Values for year 2050 are not considered relevant since new coal fired power plants are not expected to be built
B50: G | C50: It is assumed that plants emissions prior to the LTE is within the legal limits.

Sheet 03a Coal to wood pellets exi bo
B3: Technology | C3: 03 Rebuilding power plants from coal to biomass a) Wood pellets, existing boiler, extraction plant
C4: 2015 | D4: 2020 | E4: 2030 | F4: 2050 | G4: Uncertainty (2020) | I4: Uncertainty (2050) | K4: Note | L4: Ref
B5: Energy/technical data | G5: Lower | H5: Upper | I5: Lower | J5: Upper
B6: Generating capacity for one unit (MW) | C6: 300 | G6: 200 | H6: 400
B7: Electricity efficiency (condensation mode for extraction plants). net (%). name plate | C7: -1 | D7: -1 | E7: -1 | G7: -0 | H7: -2 | K7: ABCI | L7: 10
B8: Electricity efficiency (condensation mode for extraction plants). net (%). annual average | C8: -1 | D8: -1 | E8: -1 | G8: -0 | H8: -2 | K8: ABCI | L8: 10
B9: Cb coefficient (50oC/100oC) | C9: -0.02 | D9: -0.02 | E9: -0.02 | G9: -0 | H9: -0.05 | K9: ABCI | L9: 10
B10: Cv coefficient (50oC/100oC) | C10: +0 | D10: +0 | E10: +0 | G10: -0.01 | H10: +0.01 | K10: AC | L10: 10
B11: Forced outage (%) | C11: +0 | D11: +0 | E11: +0 | G11: -1 | H11: +1 | K11: A | L11: 10
B12: Planned outage (weeks per year) | C12: +0 | D12: +0 | E12: +0 | G12: +0 | H12: +0 | K12: A | L12: 10
B13: Technical lifetime (years) | C13: 15 | D13: 15 | E13: 15 | K13: C | L13: 10
B14: Construction time (years) | C14: 2 | D14: 2 | E14: 2 | G14: 1.5 | H14: 2.5 | K14: C | L14: 10
B15: Space requirement (1000m2/MW) | C15: +0 | D15: +0 | E15: +0 | G15: +0 | H15: +0 | K15: AD
B16: Regulation ability
B17: Primary regulation (% per 30 seconds) | C17: +0 | D17: +0 | E17: +0 | G17: +0 | H17: +0 | K17: A | L17: 10
B18: Secondary regulation (% per minute) | C18: +0 | D18: +0 | E18: +0 | G18: +0 | H18: +0 | K18: A | L18: 10
B19: Minimum load (% of full load) | C19: +0 | D19: +0 | E19: +0 | G19: +0 | H19: +0 | K19: A | L19: 10
B20: Warm start-up time (hours) | C20: +0 | D20: +0 | E20: +0 | G20: +0 | H20: +0 | K20: A | L20: 10
B21: Cold start-up time (hours) | C21: +0 | D21: +0 | E21: +0 | G21: +0 | H21: +0 | K21: A | L21: 10
B22: Environment
B23: SO2 (degree of desulphuring. %) | C23: ='09 Wood Pellets, Large'!C26 -> 98.3 | D23: ='09 Wood Pellets, Large'!D26 -> 98.3 | E23: ='09 Wood Pellets, Large'!E26 -> 98.3 | G23: - | H23: -
B24: NOX (g per GJ fuel) | C24: ='09 Wood Pellets, Large'!C27 -> 20 | D24: ='09 Wood Pellets, Large'!D27 -> 21 | E24: ='09 Wood Pellets, Large'!E27 -> 18 | G24: 19 | H24: 53 | K24: G
B25: CH4 (g per GJ fuel) | C25: ='09 Wood Pellets, Large'!C28 -> 0 | D25: ='09 Wood Pellets, Large'!D28 -> 0 | E25: ='09 Wood Pellets, Large'!E28 -> 0 | G25: 3.1 | H25: 3.1 | K25: G
B26: ='09 Wood Pellets, Large'!B29 -> N2O (g per GJ fuel) | C26: ='09 Wood Pellets, Large'!C29 -> 1 | D26: ='09 Wood Pellets, Large'!D29 -> 1 | E26: ='09 Wood Pellets, Large'!E29 -> 1 | G26: 0.8 | H26: 0.8 | K26: G
B27: ='09 Wood Pellets, Large'!B30 -> Particles (g per GJ fuel) | C27: ='09 Wood Pellets, Large'!C30 -> 0.3 | D27: ='09 Wood Pellets, Large'!D30 -> 0.3 | E27: ='09 Wood Pellets, Large'!E30 -> 0.3
B28: Financial data (in 2015€)
B29: Nominal investment (M€/MW) | C29: 0.5710738255 | D29: =C29-0.01 -> 0.5610738255 | E29: =D29-0.01 -> 0.5510738255 | G29: 0.3910585002 | H29: 1.058230527 | K29: CE | L29: 10, 11, 12
B30: - of which equipment | C30: - | D30: - | E30: - | G30: - | H30: -
B31: - of which installation | C31: - | D31: - | E31: - | G31: - | H31: -
B32: Fixed O&M (€/MW/year) | C32: +4725 | D32: +4725 | E32: +4725 | G32: +3150 | H32: +6300 | K32: AF | L32: 10
B33: Variable O&M (€/MWh) | C33: +0 | D33: +0 | E33: +0 | G33: +0 | H33: +1 | K33: AF | L33: 10
A35: References:
A36: 10 | B36: Ea Energy Analysis, based on experience from various commercial projects.
A37: 11 | B37: Government response to the consultation on proposals for the levels of banded support under the Renewables Obligation for the period 2013-17 and the Renewables Obligation Order 2012, UK Department of Energy and Climate Change, July 2012.
A38: 12 | B38: A strategy for converting coal fueled power plants to biomass, Future Metrics, September 2014
A39: Notes:
A40: A | B40: Value depend on the original plant. Value indicate the estimated change from the original value (unit is the same as the paramter).
A41: B | B41: Typically the electricity efficiency will be 1-2 % point lower than that of the plant prior to conversion. The thermal efficiency is typically unchanged, thus the Cb value decreases, meaning more heat is produced compared to electricity.
A42: C | B42: Values for year 2050 are not considered relevant since it is assumed that all coal fired plants in Denmark have been rebuilt or decommissioned.
A43: D | B43: Some additional under roof space (or silos) will be required for storage of pellets compared to coal (estimated 50%-100% extra m3 storage). But not more floor space (m2).
A44: E | B44: The nominal investment assumes that the original plant is aged and therefore include investment for a general life time extension campaign
A45: F | B45: The variable O&M costs will be similar to those of the original plant, however fixed O&M costs are likely to increase by 10-20%
A46: G | B46: Assumed the same emission values from the datasheet of new biomass plants (wood chips). See references and notes in the datasheet '09 Biomass CHP, Steam Turbine - Large steam turbine, Woodchips'.
A47: I | B47: It is assumed that plants that are refurbished in 2015 have an electric efficiency of 41% and a CB coefficient of 0.57. Plants refurbished in 2020 have an electric efficiency of 42% and a CB coefficient of 0.64. Plants refurbished in 2030 have an electric efficiency of 44% and a CB coefficient of 0.77. The estimates are made based on Danish CHP plants that are commissioned in 1990, 1995 and 2005.

Sheet 03b Coal to wood chips n. boile
B3: Technology | C3: 03 Rebuilding power plants from coal to biomass b) Wood chips. new boiler, extraction plant
C4: 2015 | D4: 2020 | E4: 2030 | F4: 2050 | G4: Uncertainty (2020) | I4: Uncertainty (2050) | K4: Note | L4: Ref
B5: Energy/technical data | G5: Lower | H5: Upper | I5: Lower | J5: Upper
B6: Generating capacity for one unit (MW) | C6: 300 | G6: 200 | H6: 400
B7: Electricity efficiency (condensation mode for extraction plants). net (%). name plate | C7: -1 | D7: -1 | E7: -1 | G7: -0 | H7: -2 | K7: ABJ | L7: 10
B8: Electricity efficiency (condensation mode for extraction plants). net (%). annual average | C8: -1 | D8: -1 | E8: -1 | G8: -0 | H8: -2 | K8: ABJ | L8: 10
B9: Cb coefficient (50oC/100oC) | C9: -0.07 | D9: -0.07 | E9: -0.07 | G9: -0.02 | H9: -0.1 | K9: ABJ | L9: 10
B10: Cv coefficient (50oC/100oC) | C10: +0 | D10: +0 | E10: +0 | G10: -0.01 | H10: +0.01 | K10: A | L10: 10
B11: Forced outage (%) | C11: +0 | D11: +0 | E11: +0 | G11: -1 | H11: +1 | K11: A | L11: 10
B12: Planned outage (weeks per year) | C12: +0 | D12: +0 | E12: +0 | G12: +0 | H12: +0 | K12: A | L12: 10
B13: Technical lifetime (years) | C13: 15 | D13: 15 | E13: 15 | K13: C | L13: 10
B14: Construction time (years) | C14: 2.5 | D14: 2.5 | E14: 2.5 | G14: 2 | H14: 3 | K14: C | L14: 10
B15: Space requirement (1000m2/MW) | C15: +0.03 | D15: +0.03 | E15: +0.03 | G15: +0.02 | H15: +0.05 | K15: AD | L15: 10
B16: Regulation ability
B17: Primary regulation (% per 30 seconds) | C17: -2 | D17: -0 | E17: -0 | G17: -0 | H17: -5 | K17: AI | L17: 10
B18: Secondary regulation (% per minute) | C18: -2 | D18: -0 | E18: -0 | G18: -0 | H18: -5 | K18: AI | L18: 10
B19: Minimum load (% of full load) | C19: +0.05 | D19: +0.05 | E19: +0 | G19: +0 | H19: +0.1 | K19: A | L19: 10
B20: Warm start-up time (hours) | C20: +0.5 | D20: +0.5 | E20: +0 | G20: +0 | H20: +2 | K20: AI | L20: 10
B21: Cold start-up time (hours) | C21: +1 | D21: +1 | E21: +1 | G21: +0 | H21: +2 | K21: AI | L21: 10
B22: Environment
B23: SO2 (degree of desulphuring. %) | C23: ='09 Wood Chips, Large'!C26 -> 98 | D23: ='09 Wood Chips, Large'!D26 -> 98 | E23: ='09 Wood Chips, Large'!E26 -> 98 | G23: - | H23: -
B24: NOX (g per GJ fuel) | C24: ='09 Wood Chips, Large'!C27 -> 30 | D24: ='09 Wood Chips, Large'!D27 -> 24 | E24: ='09 Wood Chips, Large'!E27 -> 20 | G24: 19 | H24: 53 | K24: G
B25: CH4 (g per GJ fuel) | C25: ='09 Wood Chips, Large'!C28 -> 3 | D25: ='09 Wood Chips, Large'!D28 -> 2 | E25: ='09 Wood Chips, Large'!E28 -> 2 | G25: 0 | H25: 0.5 | K25: G
B26: N2O (g per GJ fuel) | C26: ='09 Wood Chips, Large'!C29 -> 10 | D26: ='09 Wood Chips, Large'!D29 -> 8 | E26: ='09 Wood Chips, Large'!E29 -> 6 | G26: 2 | H26: 20 | K26: G
B27: ='09 Wood Pellets, Large'!B30 -> Particles (g per GJ fuel) | C27: ='09 Wood Chips, Large'!C30 -> 0.3 | D27: ='09 Wood Chips, Large'!D30 -> 0.3 | E27: ='09 Wood Chips, Large'!E30 -> 0.3
B28: Financial data (in 2015€)
B29: Nominal investment (M€/MW) | C29: 1.610738255 | D29: =12/7.45 -> 1.610738255 | E29: =12/7.45 -> 1.610738255 | G29: =10/7.45 -> 1.342281879 | H29: =16/7.45 -> 2.147651007 | K29: CE | L29: 10. 12
B30: - of which equipment | C30: - | D30: - | E30: - | G30: - | H30: -
B31: - of which installation | C31: - | D31: - | E31: - | G31: - | H31: -
B32: Fixed O&M (€/MW/year) | C32: +4725 | D32: +4725 | E32: +4725 | G32: +3150 | H32: +6300 | K32: F | L32: 10
B33: Variable O&M (€/MWh) | C33: +1,5 | D33: +1,5 | E33: +1,5 | G33: +1 | H33: +2 | K33: F | L33: 10
A35: References:
A36: 10 | B36: Ea Energy Analysis. based on experience from various commercial projects.
A37: 12 | B37: A strategy for converting coal fueled power plants to biomass. Future Metrics. September 2014
A39: Notes:
A40: A | B40: Value depend on the original plant.
A41: B | B41: Typically the electricity efficiency will be 1-2 % point lower than that of the plant prior to conversion. The thermal efficiency will typically increase to around 105%. thus the Cb value decreases. meaning more heat is produced compared to electricity. This is mainly due to implementation of exhaust gas condenser.
A42: C | B42: Values for year 2050 are not considered relevant since it is assumed that all coal fired plants in Denmark have been rebuilt or decommissioned.
A43: D | B43: Some additional space will be required for storage of chips (estimated 50%-100% extra).
A44: E | B44: The nominal investment assumes that the original plant is aged and therefore include investment for a general life time extension campaign
A45: F | B45: The fixed O&M costs are likely to increase by 10-20%. whereas the variable O&M costs are likely to increase approx. 50%.
A46: G | B46: Emission values from the datasheet of new CFB biomass plants. See references and notes in the datasheet 'Large Biomass Circulating Fluidized Bed Combustion Systems (CFBC) for wood'.
A47: I | B47: The regulation time of the boiler will often increase. due to slower burning of chips compared to pulverized fuel. Depending of the other thermal limitations in the cycle (e.g. in the turbines) this will have no change or an increase in the regulation time.
A48: J | B48: It is assumed that plants that are refurbished in 2015 have an electric efficiency of 41% and a CB coefficient of 0.57. Plants refurbished in 2020 have an electric efficiency of 42% and a CB coefficient of 0.64. Plants refurbished in 2030 have an electric efficiency of 44% and a CB coefficient of 0.77. The estimates are made based on Danish CHP plants that are commissioned in 1990, 1995 and 2005.

Sheet 03c coal to wood chips exi. boi
B3: Technology | C3: 03 Rebuilding power plants from coal to biomass c) Wood chips, existing boiler, extraction plant
C4: 2015 | D4: 2020 | E4: 2030 | F4: 2050 | G4: Uncertainty (2020) | I4: Uncertainty (2050) | K4: Note | L4: Ref
B5: Energy/technical data | G5: Lower | H5: Upper | I5: Lower | J5: Upper
B6: Generating capacity for one unit (MW) | C6: 300 | G6: 200 | H6: 400
B7: Electricity efficiency (condensation mode for extraction plants), net (%), name plate | C7: -3 | D7: -3 | E7: -3 | G7: -2 | H7: -4 | K7: ABI | L7: 10
B8: Electricity efficiency (condensation mode for extraction plants), net (%), annual average | C8: -3 | D8: -3 | E8: -3 | G8: -2 | H8: -4 | K8: ABI | L8: 10
B9: Cb coefficient (50oC/100oC) | C9: -0.07 | D9: -0.07 | E9: -0.07 | G9: -0.02 | H9: -0.1 | K9: ABI | L9: 10
B10: Cv coefficient (50oC/100oC) | C10: +0 | D10: +0 | E10: +0 | G10: -0.01 | H10: +0.01 | K10: A | L10: 10
B11: Forced outage (%) | C11: +0 | D11: +0 | E11: +0 | G11: -1 | H11: +1 | K11: A | L11: 10
B12: Planned outage (weeks per year) | C12: +0 | D12: +0 | E12: +0 | G12: +0 | H12: +0 | K12: A | L12: 10
B13: Technical lifetime (years) | C13: 15 | D13: 15 | E13: 15 | K13: C | L13: 10
B14: Construction time (years) | C14: 2 | D14: 2 | E14: 2 | G14: 1.5 | H14: 2.5 | K14: C | L14: 10
B15: Space requirement (1000m2/MW) | C15: +0.04 | D15: +0.04 | E15: +0.04 | G15: +0.03 | H15: +0.06 | K15: AD | L15: 10
B16: Regulation ability
B17: Primary regulation (% per 30 seconds) | C17: +0 | D17: +0 | E17: +0 | G17: +0 | H17: +0 | K17: A | L17: 10
B18: Secondary regulation (% per minute) | C18: +0 | D18: +0 | E18: +0 | G18: +0 | H18: +0 | K18: A | L18: 10
B19: Minimum load (% of full load) | C19: +0 | D19: +0 | E19: +0 | G19: +0 | H19: +0 | K19: A | L19: 10
B20: Warm start-up time (hours) | C20: +0 | D20: +0 | E20: +0 | G20: +0 | H20: +0 | K20: A | L20: 10
B21: Cold start-up time (hours) | C21: +0 | D21: +0 | E21: +0 | G21: +0 | H21: +0 | K21: A | L21: 10
B22: Environment
B23: SO2 (degree of desulphuring, %) | C23: ='09 Wood Chips, Large'!C26 -> 98 | D23: ='09 Wood Chips, Large'!D26 -> 98 | E23: ='09 Wood Chips, Large'!E26 -> 98 | G23: - | H23: - | K23: G
B24: NOX (g per GJ fuel) | C24: ='09 Wood Chips, Large'!C27 -> 30 | D24: ='09 Wood Chips, Large'!D27 -> 24 | E24: ='09 Wood Chips, Large'!E27 -> 20 | G24: 19 | H24: 53 | K24: G
B25: CH4 (g per GJ fuel) | C25: ='09 Wood Chips, Large'!C28 -> 3 | D25: ='09 Wood Chips, Large'!D28 -> 2 | E25: ='09 Wood Chips, Large'!E28 -> 2 | G25: 3.1 | H25: 3.1 | K25: G
B26: N2O (g per GJ fuel) | C26: ='09 Wood Chips, Large'!C29 -> 10 | D26: ='09 Wood Chips, Large'!D29 -> 8 | E26: ='09 Wood Chips, Large'!E29 -> 6 | G26: 0.8 | H26: 0.8 | K26: G
B27: ='09 Wood Chips, Large'!B30 -> Particles (g per GJ fuel) | C27: ='09 Wood Chips, Large'!C30 -> 0.3 | D27: ='09 Wood Chips, Large'!D30 -> 0.3 | E27: ='09 Wood Chips, Large'!E30 -> 0.3 | K27: G
B28: Financial data (in 2015€)
B29: Nominal investment (M€/MW) | C29: =12/7.45 -> 1.610738255 | D29: =12/7.45 -> 1.610738255 | E29: =12/7.45 -> 1.610738255 | G29: =10/7.45 -> 1.342281879 | H29: =16/7.45 -> 2.147651007 | K29: CE | L29: 10
B30: - of which equipment | C30: - | D30: - | E30: - | G30: - | H30: -
B31: - of which installation | C31: - | D31: - | E31: - | G31: - | H31: -
B32: Fixed O&M (€/MW/year) | C32: +14,175 | D32: +14,175 | E32: +14,175 | G32: +12,600 | H32: +15,750 | K32: F | L32: 10
B33: Variable O&M (€/MWh) | C33: +1,5 | D33: +1,5 | E33: +1,5 | G33: +1 | H33: +2 | K33: F | L33: 10
A35: References:
A36: 10 | B36: Ea Energy Analysis, based on experience from various commercial projects.
A37: Notes:
A38: A | B38: Value depend on the original plant.
A39: B | B39: Typically the electricity efficiency will be 3-4 % point lower than that of the plant prior to conversion. The thermal efficiency is increased to approximately 100% because of flue gas condensation in drying process, thus the Cb value decreases, meaning more heat is produced compared to electricity.
A40: C | B40: Values for year 2050 are not considered relevant since it is assumed that all coal fired plants in Denmark have been rebuilt or decommissioned.
A41: D | B41: Some additional space will be required for storage of chips (estimated 50%-100% extra) and for the drying plant.
A42: E | B42: The nominal investment assumes that the original plant is aged and therefore include investment for a general life time extension campaign
A43: F | B43: Both variable and fixed O&M costs are likely to increase by 40-50% from the original plant.
A44: G | B44: Assumed the same emission values from the datasheet of new biomass plants (wood chips). See references and notes in the datasheet '09 Biomass CHP, Steam Turbine - Large steam turbine, Woodchips'.
A45: I | B45: It is assumed that plants that are refurbished in 2015 have an electric efficiency of 41% and a CB coefficient of 0.57. Plants refurbished in 2020 have an electric efficiency of 42% and a CB coefficient of 0.64. Plants refurbished in 2030 have an electric efficiency of 44% and a CB coefficient of 0.77. The estimates are made based on Danish CHP plants that are commissioned in 1990, 1995 and 2005.

Sheet 04 Gas turb. simple cycle, L
H1: Back to Index
C3: Technology | D3: 04 Gas turbine, simple cycle (large), back pressure
D4: 2015 | E4: 2020 | F4: 2030 | G4: 2050 | H4: Uncertainty (2020) | J4: Uncertainty (2050) | L4: Note | M4: Ref
C5: Energy/technical data | H5: Lower | I5: Upper | J5: Lower | K5: Upper
C6: Generating capacity for one unit (MW) | D6: 40 - 125 | L6: F
C7: Electricity efficiency (condensation mode for extraction plants), net (%) | D7: 41 | E7: 42 | F7: 43 | G7: 45 | H7: 38 | I7: 42 | J7: 40 | K7: 44 | M7: 6, 12
C8: Electricity efficiency (condensation mode for extraction plants), net (%), annual average | D8: 39 | E8: 40 | F8: 41 | G8: 43 | H8: 36 | I8: 40 | J8: 38 | K8: 42 | M8: 6, 11
C9: Cb coefficient (50oC/100oC) | D9: 0.95 | E9: 0.96 | F9: 1 | G9: 1 | H9: 0.8 | I9: 1.2 | J9: 0.8 | K9: 1.2 | M9: 6, 12
C10: Cv coefficient (50oC/100oC) | D10: - | E10: - | F10: - | G10: - | H10: - | I10: - | J10: - | K10: - | L10: J
C11: Forced outage (%) | D11: 2 | E11: 2 | F11: 2 | G11: 2 | H11: 2 | I11: 3 | J11: 2 | K11: 3 | M11: 6
C12: Planned outage (weeks per year) | D12: 3 | E12: 3 | F12: 2.5 | G12: 2.5 | H12: 2 | I12: 3.5 | J12: 1.5 | K12: 3 | M12: 6
C13: Technical lifetime (years) | D13: 25 | E13: 25 | F13: 25 | G13: 25 | H13: 25 | I13: >25 | J13: 25 | K13: >25 | L13: E | M13: 6, 7
C14: Construction time (years) | D14: 1.5 | E14: 1.5 | F14: 1.5 | G14: 1.5 | H14: 1 | I14: 2 | J14: 1 | K14: 2 | M14: 6
C15: Space requirement (1000m2/MW) | D15: 0.02 | E15: 0.02 | F15: 0.02 | G15: 0.02 | H15: 0.015 | I15: 0.03 | J15: 0.015 | K15: 0.03 | L15: G | M15: 7
C16: Plant Dynamic Capabilities
C17: Primary regulation (% per 30 seconds) | D17: 0 | E17: 0 | F17: 0 | G17: 0 | H17: 0 | I17: 0 | J17: 0 | K17: 0 | L17: I
C18: Secondary regulation (% per minute) | D18: 20 | E18: 20 | F18: 20 | G18: 20 | H18: 20 | I18: 50 | J18: 20 | K18: 50 | L18: C | M18: 6
C19: Minimum load (% of full load) | D19: 25 | E19: 23 | F19: 20 | G19: 20 | H19: 20 | I19: 25 | J19: 20 | K19: 25 | L19: A | M19: 6
C20: Warm start-up time (hours) | D20: 0.25 | E20: 0.23 | F20: 0.2 | G20: 0.2 | H20: 0.1 | I20: 0.5 | J20: 0.1 | K20: 0.4 | M20: 5, 6, 8
C21: Cold start-up time (hours) | D21: 0.5 | E21: 0.5 | F21: 0.5 | G21: 0.5 | H21: 0.4 | I21: 1 | J21: 0.4 | K21: 1 | M21: 5, 6, 8
C22: Environment
C23: SO2 (degree of desulphuring, %) | D23: 0 | E23: 0 | F23: 0 | G23: 0 | H23: 0 | I23: 0 | J23: 0 | K23: 0
C24: NOX (g per GJ fuel) | D24: 20 | E24: 15 | F24: 10 | G24: 10 | H24: 10 | I24: 30 | J24: 7.5 | K24: 20 | L24: D | M24: 7, 9
C25: CH4 (g per GJ fuel) | D25: 1.5 | E25: 1.5 | F25: 1.5 | G25: 1.5 | H25: 1 | I25: 8 | J25: 1 | K25: 8 | L25: G | M25: 9
C26: N2O (g per GJ fuel) | D26: 1 | E26: 1 | F26: 1 | G26: 1 | H26: 0.7 | I26: 1.2 | J26: 0.7 | K26: 1.2 | L26: G | M26: 9
C27: Financial data (in 2015€)
C28: Nominal investment (M€/MW) | D28: 0.6 | E28: 0.59 | F28: 0.56 | G28: 0.52 | H28: 0.4 | I28: 0.9 | J28: 0.35 | K28: 0.85 | M28: 6, 10
C29: - of which equipment | D29: NA | E29: NA | F29: NA | G29: NA | H29: NA | I29: NA | J29: NA | K29: NA | L29: K
C30: - of which installation | D30: NA | E30: NA | F30: NA | G30: NA | H30: NA | I30: NA | J30: NA | K30: NA | L30: K
C31: Fixed O&M (€/MW/year) | D31: 20000 | E31: 19500 | F31: 18600 | G31: 18000 | H31: NA | I31: NA | J31: NA | K31: NA | L31: B | M31: 6
C32: Variable O&M (€/MWh) | D32: 4.5 | E32: 4.4 | F32: 4.2 | G32: 4 | H32: 4 | I32: 6 | J32: 3 | K32: 5 | M32: 6
C33: Technology specific data
B35: References:
B36: 5 | C36: Danish Gas Technology Centre, analysis on gas engine and gas turbine dynamics, 2013
B37: 6 | C37: Wärtsila Technical Journal "in detail" 02-2014
B38: 7 | C38: Data specs from maufacturers (Web) 2015
B39: 8 | C39: Danish Gas Technology Centre, analysis and discussion with manufacturers, April 2013
B40: 9 | C40: Danish Gas Technology Centre, environmental survey 2012
B41: 10 | C41: Smart Power Generation - The future of electricity production, J. Klimstra & M. Hotakainen 2011
B42: 11 | C42: IEA: Projected cost of generating electricity, 2010
B43: 12 | C43: COWI 2015 input
B44: 13 | C44: The Omes Project results (2005)
B45: 14 | C45: WBDG-Publication, B. L. Capehart, Microtubines, 2014
B47: Notes:
B48: A | C48: Very low efficiency at low loads and often increased Nox emisison
B49: B | C49: Insurance excluded, unknown. Daily start assumed
B50: C | C50: Power related
B51: D | C51: Based on Dry Low NOx (DLN) techniques
B52: E | C52: Technical- and design life most often > 25 years
B53: F | C53: Electrical output
B54: G | C54: Combined with DGC assumptions, CHP configuration
B55: H | C55: GT's (5 MWe) are available including internal recuperator; the electrical nominal efficiency is then 37 % (LCV basis)
B56: I | C56: No data available, no known use
B57: J | C57: Not relevant for this CHP configuration
B58: K | C58: No data available
B59: L | C59: DGC Estimate
B60: M | C60: Air preheating by internal recuperation included

Sheet 04 Gas turb. simple cycle Sm-Me
H1: Back to Index
C3: Technology | D3: 04 Gas turbine, simple cycle (small and medium), back pressure
D4: 2015 | E4: 2020 | F4: 2030 | G4: 2050 | H4: Uncertainty (2020) | J4: Uncertainty (2050) | L4: Note | M4: Ref
C5: Energy/technical data | H5: Lower | I5: Upper | J5: Lower | K5: Upper
C6: Generating capacity for one unit (MW) | D6: 5 - 40 | L6: F
C7: Electricity efficiency (condensation mode for extraction plants), net (%) | D7: 36 | E7: 37 | F7: 39 | G7: 40 | H7: 32 | I7: 40 | J7: 34 | K7: 42 | L7: G, H | M7: 6, 12
C8: Electricity efficiency (condensation mode for extraction plants), net (%), annual average | D8: 34 | E8: 35 | F8: 37 | G8: 38 | H8: 30 | I8: 38 | J8: 32 | K8: 40 | M8: 6, 11
C9: Cb coefficient (50oC/100oC) | D9: 0.71 | E9: 0.73 | F9: 0.8 | G9: 0.8 | H9: 0.61 | I9: 0.8 | J9: 0.7 | K9: 0.9 | M9: 6, 12
C10: Cv coefficient (50oC/100oC) | D10: - | E10: - | F10: - | G10: - | H10: - | I10: - | J10: - | K10: - | L10: J
C11: Forced outage (%) | D11: 2 | E11: 2 | F11: 2 | G11: 2 | H11: 2 | I11: 3 | J11: 2 | K11: 3 | M11: 6
C12: Planned outage (weeks per year) | D12: 3 | E12: 2.8 | F12: 2.5 | G12: 2.5 | H12: 2 | I12: 3.5 | J12: 1.5 | K12: 3 | M12: 6
C13: Technical lifetime (years) | D13: 25 | E13: 25 | F13: 25 | G13: 25 | H13: 25 | I13: >25 | J13: 25 | K13: >25 | L13: E | M13: 6, 7
C14: Construction time (years) | D14: 1.5 | E14: 1.5 | F14: 1.5 | G14: 1.5 | H14: 1 | I14: 1.5 | J14: 1 | K14: 1.5 | M14: 6
C15: Space requirement (1000m2/MW) | D15: 0.04 | E15: 0.04 | F15: 0.04 | G15: 0.04 | H15: 0.03 | I15: 0.07 | J15: 0.03 | K15: 0.07 | L15: G | M15: 7
C16: Plant Dynamic Capabilities
C17: Primary regulation (% per 30 seconds) | D17: 0 | E17: 0 | F17: 0 | G17: 0 | H17: 0 | I17: 0 | J17: 0 | K17: 0 | L17: I
C18: Secondary regulation (% per minute) | D18: 20 | E18: 20 | F18: 20 | G18: 20 | H18: 20 | I18: 50 | J18: 20 | K18: 50 | L18: C | M18: 6
C19: Minimum load (% of full load) | D19: 25 | E19: 23 | F19: 20 | G19: 20 | H19: 20 | I19: 25 | J19: 20 | K19: 25 | L19: A | M19: 6
C20: Warm start-up time (hours) | D20: 0.25 | E20: 0.23 | F20: 0.2 | G20: 0.2 | H20: 0.1 | I20: 0.5 | J20: 0.1 | K20: 0.4 | M20: 5, 6, 8
C21: Cold start-up time (hours) | D21: 0.5 | E21: 0.5 | F21: 0.5 | G21: 0.5 | H21: 0.4 | I21: 1 | J21: 0.4 | K21: 1 | M21: 5, 6, 8
C22: Environment
C23: SO2 (degree of desulphuring, %) | D23: 0 | E23: 0 | F23: 0 | G23: 0 | H23: 0 | I23: 0 | J23: 0 | K23: 0
C24: NOX (g per GJ fuel) | D24: 20 | E24: 15 | F24: 10 | G24: 10 | H24: 10 | I24: 30 | J24: 8 | K24: 20 | L24: D | M24: 7, 9
C25: CH4 (g per GJ fuel) | D25: 1.5 | E25: 1.5 | F25: 1.5 | G25: 1.5 | H25: 1 | I25: 8 | J25: 1 | K25: 8 | M25: 9
C26: N2O (g per GJ fuel) | D26: 1 | E26: 1 | F26: 1 | G26: 1 | H26: 0.7 | I26: 1.2 | J26: 0.7 | K26: 1.2 | M26: 9
C27: Financial data (in 2015€)
C28: Nominal investment (M€/MW) | D28: 0.75 | E28: 0.73 | F28: 0.7 | G28: 0.68 | H28: 0.6 | I28: 1 | J28: 0.55 | K28: 0.95 | M28: 6, 10
C29: - of which equipment | D29: NA | E29: NA | F29: NA | G29: NA | H29: NA | I29: NA | J29: NA | K29: NA | L29: K
C30: - of which installation | D30: NA | E30: NA | F30: NA | G30: NA | H30: NA | I30: NA | J30: NA | K30: NA | L30: K
C31: Fixed O&M (€/MW/year) | D31: 20000 | E31: 19500 | F31: 18600 | G31: 18000 | H31: NA | I31: NA | J31: NA | K31: NA | L31: B | M31: 6
C32: Variable O&M (€/MWh) | D32: 5.5 | E32: 5.4 | F32: 5.1 | G32: 4.6 | H32: 5 | I32: 7 | J32: 4 | K32: 6 | M32: 6
C33: Technology specific data
B35: References:
B36: 5 | C36: Danish Gas Technology Centre, analysis on gas engine and gas turbine dynamics, 2013
B37: 6 | C37: Wärtsila Technical Journal "in detail" 02-2014
B38: 7 | C38: Data specs from maufacturers (Web) 2015
B39: 8 | C39: Danish Gas Technology Centre, analysis and discussion with manufacturers, April 2013
B40: 9 | C40: Danish Gas Technology Centre, environmental survey 2012
B41: 10 | C41: Smart Power Generation - The future of electricity production, J. Klimstra & M. Hotakainen 2011
B42: 11 | C42: IEA: Projected cost of generating electricity, 2010
B43: 12 | C43: COWI 2015 input
B44: 13 | C44: The Omes Project results (2005)
B45: 14 | C45: WBDG-Publication, B. L. Capehart, Microtubines, 2014
B47: Notes:
B48: A | C48: Very low efficiency at low loads and often increased Nox emisison
B49: B | C49: Insurance excluded, unknown. Daily start assumed
B50: C | C50: Power related
B51: D | C51: Based on Dry Low NOx (DLN) techniques
B52: E | C52: Technical- and design life most often > 25 years
B53: F | C53: Electrical output
B54: G | C54: Combined with DGC assumptions, CHP configuration
B55: H | C55: GT's (5 MWe) are available including internal recuperator; the electrical nominal efficiency is then 37 % (LCV basis)
B56: I | C56: No data available, no known use
B57: J | C57: Not relevant for this CHP configuration
B58: K | C58: No data available
B59: L | C59: DGC Estimate
B60: M | C60: Air preheating by internal recuperation included

Sheet 04 Gas turb. simple cycle Micro
H1: Back to Index
C3: Technology | D3: Gas turbine, simple cycle (micro), back pressure
D4: 2015 | E4: 2020 | F4: 2030 | G4: 2050 | H4: Uncertainty (2020) | J4: Uncertainty (2050) | L4: Note | M4: Ref
C5: Energy/technical data | H5: Lower | I5: Upper | J5: Lower | K5: Upper
C6: Generating capacity for one unit (MW) | D6: 0.015 - 0.200
C7: Electricity efficiency (condensation mode for extraction plants), net (%), | D7: 30 | E7: 30 | F7: 30 | G7: 30 | H7: 23 | I7: 32 | J7: 25 | K7: 35 | L7: M | M7: 7
C8: Electricity efficiency (condensation mode for extraction plants), net (%), annual average | D8: 28 | E8: 28 | F8: 28 | G8: 28 | H8: 21 | I8: 29 | J8: 23 | K8: 33
C9: Cb coefficient (50oC/100oC) | D9: 0.6 | E9: 0.6 | F9: 0.6 | G9: 0.6 | H9: 0.4 | I9: 0.85 | J9: 0.4 | K9: 0.85 | M9: 7, 13
C10: Cv coefficient (50oC/100oC) | D10: - | E10: - | F10: - | G10: - | H10: - | I10: - | J10: - | K10: - | L10: J
C11: Forced outage (%) | D11: 5 | E11: 5 | F11: 5 | G11: 5 | H11: NA | I11: NA | J11: NA | K11: NA
C12: Planned outage (weeks per year) | D12: NA | E12: NA | F12: NA | G12: NA | H12: NA | I12: NA | J12: NA | K12: NA
C13: Technical lifetime (years) | D13: 15 | E13: 15 | F13: 15 | G13: 15 | H13: 10 | I13: 20 | J13: 10 | K13: 20 | L13: L
C14: Construction time (years) | D14: 0.5 | E14: 0.5 | F14: 0.5 | G14: 0.5 | H14: 0.3 | I14: 0.8 | J14: 0.2 | K14: 0.7 | L14: L | M14: 13
C15: Space requirement (1000m2/MW) | D15: 0.06 | E15: 0.06 | F15: 0.06 | G15: 0.06 | H15: 0.05 | I15: 0.15 | J15: 0.05 | K15: 0.15 | M15: 7
C16: Plant Dynamic Capabilities
C17: Primary regulation (% per 30 seconds) | D17: 0 | E17: 0 | F17: 0 | G17: 0 | H17: 0 | I17: 0 | J17: 0 | K17: 0
C18: Secondary regulation (% per minute) | D18: 0 | E18: 0 | F18: 0 | G18: 0 | H18: 0 | I18: 0 | J18: 0 | K18: 0
C19: Minimum load (% of full load) | D19: 40 | E19: 40 | F19: 40 | G19: 40 | H19: 30 | I19: 50 | J19: 25 | K19: 50 | L19: L | M19: 7, 13
C20: Warm start-up time (hours) | D20: 0.25 | E20: 0.25 | F20: 0.25 | G20: 0.25 | H20: NA | I20: NA | J20: NA | K20: (NA)
C21: Cold start-up time (hours) | D21: 0.5 | E21: 0.5 | F21: 0.5 | G21: 0.5 | H21: NA | I21: NA | J21: NA | K21: (NA)
C22: Environment
C23: SO2 (degree of desulphuring, %) | D23: 0 | E23: 0 | F23: 0 | G23: 0 | H23: 0 | I23: 0 | J23: 0 | K23: 0 | M23: 13
C24: NOX (g per GJ fuel) | D24: 10 | E24: 10 | F24: 10 | G24: 10 | H24: 6 | I24: 15 | J24: 6 | K24: 15 | M24: 7, 13
C25: CH4 (g per GJ fuel) | D25: 6 | E25: 6 | F25: 6 | G25: 6 | H25: NA | I25: NA | J25: NA | K25: NA | M25: 13
C26: N2O (g per GJ fuel) | D26: NA | E26: NA | F26: NA | G26: NA | H26: NA | I26: NA | J26: NA | K26: NA | M26: 13
C27: Financial data
C28: Nominal investment (M€/MW) | D28: 1.2 | E28: 1.2 | F28: 1.1 | G28: 1 | H28: NA | I28: NA | J28: NA | K28: NA | M28: 13, 14
C29: - of which equipment | D29: 0.85 | E29: 0.85 | F29: 0.8 | G29: 0.7 | H29: NA | I29: NA | J29: NA | K29: NA | M29: 13, 14
C30: - of which installation | D30: 0.35 | E30: 0.35 | F30: 0.3 | G30: 0.3 | H30: NA | I30: NA | J30: NA | K30: NA | M30: 13, 14
C31: Fixed O&M (€/MW/year) | D31: NA | E31: NA | F31: NA | G31: NA | H31: NA | I31: NA | J31: NA | K31: NA
C32: Variable O&M (€/MWh) | D32: 15 | E32: 15 | F32: 14 | G32: 13 | H32: 10 | I32: 15 | J32: 8 | K32: 15 | M32: 13
B34: References:
B35: 5 | C35: Danish Gas Technology Centre, analysis on gas engine and gas turbine dynamics, 2013
B36: 6 | C36: Wärtsila Technical Journal "in detail" 02-2014
B37: 7 | C37: Data specs from maufacturers (Web) 2015
B38: 8 | C38: Danish Gas Technology Centre, analysis and discussion with manufacturers, April 2013
B39: 9 | C39: Danish Gas Technology Centre, environmental survey 2012
B40: 10 | C40: Smart Power Generation - The future of electricity production, J. Klimstra & M. Hotakainen 2011
B41: 11 | C41: IEA: Projected cost of generating electricity, 2010
B42: 12 | C42: COWI 2015 input
B43: 13 | C43: The Omes Project results (2005)
B44: 14 | C44: WBDG-Publication, B. L. Capehart, Microtubines, 2014
B46: Notes:
B47: A | C47: Very low efficiency at low loads and often increased Nox emisison
B48: B | C48: Insurance excluded, unknown. Daily start assumed
B49: C | C49: Power related
B50: D | C50: Based on Dry Low NOx (DLN) techniques
B51: E | C51: Technical- and design life most often > 25 years
B52: F | C52: Electrical output
B53: G | C53: Combined with DGC assumptions, CHP configuration
B54: H | C54: GT's (5 MWe) are available including internal recuperator; the electrical nominal efficiency is then 37 % (LCV basis)
B55: I | C55: No data available, no known use
B56: J | C56: Not relevant for this CHP configuration
B57: K | C57: No data available
B58: L | C58: DGC Estimate
B59: M | C59: Air preheating by internal recuperation included

Sheet 05 Gas turb. CC, steam extract.
H1: Back to Index
C3: Technology | D3: 05 Gas turbine, combined cycle, extraction plant
D4: 2015 | E4: 2020 | F4: 2030 | G4: 2050 | H4: Uncertainty (2020) | J4: Uncertainty (2050) | L4: Note | M4: Ref
C5: Energy/technical data | H5: Lower | I5: Upper | J5: Lower | K5: Upper
C6: Generating capacity for one unit (MW) | D6: 100 - 500 | L6: F
C7: Electricity efficiency (condensation mode for extraction plants), net (%), | D7: 58 | E7: 59 | F7: 61 | G7: 63 | H7: 55 | I7: 61 | J7: 58 | K7: 65 | M7: 5
C8: Electricity efficiency (condensation mode for extraction plants), net (%), annual average | D8: 55 | E8: 56 | F8: 58 | G8: 60 | H8: 52 | I8: 58 | J8: 55 | K8: 62 | M8: 5, 9
C9: Cb coefficient (50oC/100oC) | D9: 1.7 | E9: 1.8 | F9: 2 | G9: 2.2 | H9: 1.5 | I9: 2.2 | J9: 1.5 | K9: 2.4
C10: Cv coefficient (50oC/100oC) | D10: 0.15 | E10: 0.15 | F10: 0.15 | G10: 0.15 | H10: N.A | I10: N.A | J10: N.A | K10: N.A | L10: J
C11: Forced outage (%) | D11: 3 | E11: 3 | F11: 3 | G11: 3 | H11: 2 | I11: 4 | J11: 2 | K11: 4 | M11: 5
C12: Planned outage (weeks per year) | D12: 2.5 | E12: 2.3 | F12: 2 | G12: 2 | H12: 2 | I12: 4 | J12: 2 | K12: 4 | M12: 5
C13: Technical lifetime (years) | D13: 25 | E13: 25 | F13: 25 | G13: 25 | H13: 25 | I13: >25 | J13: 25 | K13: >25 | L13: E | M13: 5, 3
C14: Construction time (years) | D14: 2.5 | E14: 2.5 | F14: 2.5 | G14: 2.5 | H14: 2 | I14: 3 | J14: 2 | K14: 3 | M14: 5
C15: Space requirement (1000m2/MW) | D15: 0.02 | E15: 0.02 | F15: 0.02 | G15: 0.02 | H15: 0.015 | I15: 0.03 | J15: 0.015 | K15: 0.03 | L15: G | M15: 3
C16: Plant Dynamic Capabilities
C17: Primary regulation (% per 30 seconds) | D17: - | E17: - | F17: - | G17: - | H17: - | I17: - | J17: - | K17: - | L17: K
C18: Secondary regulation (% per minute) | D18: 15 | E18: 15 | F18: 15 | G18: 15 | H18: 5 | I18: 15 | J18: 5 | K18: 15 | M18: 5, 3, 11
C19: Minimum load (% of full load) | D19: 40 | E19: 40 | F19: 40 | G19: 40 | H19: 30 | I19: 50 | J19: 30 | K19: 50 | L19: A | M19: 5, 3, 11
C20: Warm start-up time (hours) | D20: 1 | E20: 1 | F20: 1 | G20: 1 | H20: 0.5 | I20: 1.5 | J20: 0.5 | K20: 1.5 | L20: H | M20: 5, 6, 1, 11
C21: Cold start-up time (hours) | D21: 2.5 | E21: 2.5 | F21: 2.5 | G21: 2 | H21: 2 | I21: 5 | J21: 1.5 | K21: 5 | M21: 5, 6, 1, 11
C22: Environment
C23: SO2 (degree of desulphuring, %) | D23: 0 | E23: 0 | F23: 0 | G23: 0 | H23: 0 | I23: 0 | J23: 0 | K23: 0
C24: NOX (g per GJ fuel) | D24: 20 | E24: 15 | F24: 10 | G24: 8 | H24: 10 | I24: 30 | J24: 5 | K24: 15 | L24: D | M24: 3, 7
C25: CH4 (g per GJ fuel) | D25: 1.5 | E25: 1.5 | F25: 1.5 | G25: 1.5 | H25: 1 | I25: 8 | J25: 1 | K25: 8 | L25: G | M25: 7
C26: N2O (g per GJ fuel) | D26: 1 | E26: 1 | F26: 1 | G26: 1 | H26: 0.7 | I26: 1.2 | J26: 0.7 | K26: 1.2 | L26: G | M26: 7
C27: Financial data (in 2015€)
C28: Nominal investment (M€/MW) | D28: 0.9 | E28: 0.88 | F28: 0.83 | G28: 0.8 | H28: 0.8 | I28: 1.2 | J28: 0.7 | K28: 1.1 | M28: 5, 8
C29: - of which equipment | D29: 0.7 | E29: 0.68 | F29: 0.64 | G29: 0.61 | H29: 0.65 | I29: 1.02 | J29: 0.6 | K29: 0.95 | M29: 10
C30: - of which installation | D30: 0.2 | E30: 0.2 | F30: 0.19 | G30: 0.19 | H30: 0.15 | I30: 0.18 | J30: 0.1 | K30: 0.15 | M30: 10
C31: Fixed O&M (€/MW/year) | D31: 30000 | E31: 29300 | F31: 27800 | G31: 26000 | H31: 25000 | I31: 35000 | J31: 20000 | K31: 30000 | L31: B | M31: 5
C32: Variable O&M (€/MWh) | D32: 4.5 | E32: 4.4 | F32: 4.2 | G32: 4 | H32: 3 | I32: 7 | J32: 3 | K32: 7 | M32: 5
C33: Technology specific data
B35: References:
B36: 1 | C36: Danish Gas Technology Centre, analysis on gas engine and gas turbine dynamics, 2013
B37: 3 | C37: Data specs from maufacturers (Web) 2015
B38: 5 | C38: Wärtsila Technical Journal "in detail" 02-2014
B39: 6 | C39: Danish Gas Technology Centre, analysis and discussion with manufacturers, April 2013
B40: 7 | C40: Danish Gas Technology Centre, environmental survey 2012
B41: 8 | C41: Smart Power Generation; the future of electricity production, J. Klimstra & M. Hotakainen 2011
B42: 9 | C42: IEA: Projected cost of generating electricity, 2010
B43: 10 | C43: UK Electricity Generation Costs Update, M.M. Donald, June 2010
B44: 11 | C44: Siemens : Data on GT-CC (2010)
B46: Notes:
B47: A | C47: Low efficiency at low loads and often increased NOx emission
B48: B | C48: Limited availability of data
B49: C | C49: Power related
B50: D | C50: Based on Dry Low NOx (DLN) techniques
B51: E | C51: Technical- and design life most often > 25 years
B52: F | C52: Electrical output
B53: G | C53: CHP configuration, Including DGC assumptions
B54: H | C54: Manufacturers says down to 30 minute
B55: I | C55: No data available
B56: J | C56: Data on Cv from the 2012 version roughly adjusted for higher electricity efficiency
B57: K | C57: No known use
B58: L | C58: No Relevance for Back Pressure Lay Out
B59: M | C59: Upward regulation is typically 10 - 15 %/min, while downward regulation is > 30 % /min

Sheet 05 Gas turb. CC, Back-pressure
H1: Back to Index
C3: Technology | D3: 05 Gas turbine, combined cycle, back pressure
D4: 2015 | E4: 2020 | F4: 2030 | G4: 2050 | H4: Uncertainty (2020) | J4: Uncertainty (2050) | L4: Note | M4: Ref
C5: Energy/technical data | H5: Lower | I5: Upper | J5: Lower | K5: Upper
C6: Generating capacity for one unit (MW) | D6: 10 -100 | L6: F
C7: Electricity efficiency (condensation mode for extraction plants), net (%), | D7: 50 | E7: 51 | F7: 53 | G7: 55 | H7: 42 | I7: 55 | J7: 45 | K7: 58 | M7: 5
C8: Electricity efficiency (condensation mode for extraction plants), net (%), annual average | D8: 47 | E8: 48 | F8: 50 | G8: 52 | H8: 39 | I8: 52 | J8: 42 | K8: 55 | M8: 5, 9
C9: Cb coefficient (50oC/100oC) | D9: 1.2 | E9: 1.3 | F9: 1.4 | G9: 1.55 | H9: 0.9 | I9: 1.6 | J9: 1.1 | K9: 1.7
C10: Cv coefficient (50oC/100oC) | D10: - | E10: - | F10: - | G10: - | H10: - | I10: - | J10: - | K10: - | L10: L
C11: Forced outage (%) | D11: 3 | E11: 3 | F11: 3 | G11: 3 | H11: 2 | I11: 4 | J11: 2 | K11: 4 | M11: 5
C12: Planned outage (weeks per year) | D12: 2.5 | E12: 2.3 | F12: 2 | G12: 2 | H12: 2 | I12: 4 | J12: 1.5 | K12: 4 | M12: 5
C13: Technical lifetime (years) | D13: 25 | E13: 25 | F13: 25 | G13: 25 | H13: 25 | I13: >25 | J13: 25 | K13: >25 | L13: E | M13: 5 ,3
C14: Construction time (years) | D14: 2.5 | E14: 2 | F14: 2 | G14: 2 | H14: 2 | I14: 3 | J14: 2 | K14: 3 | M14: 5
C15: Space requirement (1000m2/MW) | D15: 0.025 | E15: 0.025 | F15: 0.025 | G15: 0.025 | H15: 0.019 | I15: 0.038 | J15: 0.019 | K15: 0.038 | L15: G | M15: 3
C16: Plant Dynamic Capabilities
C17: Primary regulation (% per 30 seconds) | D17: - | E17: - | F17: - | G17: - | H17: - | I17: - | J17: - | K17: - | L17: I
C18: Secondary regulation (% per minute) | D18: 15 | E18: 15 | F18: 15 | G18: 15 | H18: 5 | I18: 15 | J18: 5 | K18: 15 | L18: C, M | M18: 5, 3, 11
C19: Minimum load (% of full load) | D19: 40 | E19: 40 | F19: 40 | G19: 40 | H19: 30 | I19: 50 | J19: 30 | K19: 50 | L19: A | M19: 5, 3, 11
C20: Warm start-up time (hours) | D20: 1 | E20: 1 | F20: 1 | G20: 1 | H20: 0.5 | I20: 1.5 | J20: 0.5 | K20: 1.5 | L20: H | M20: 5, 6, 1, 11
C21: Cold start-up time (hours) | D21: 2.5 | E21: 2.5 | F21: 2.5 | G21: 2 | H21: 2 | I21: 5 | J21: 1.5 | K21: 5 | M21: 5, 6, 1, 11
C22: Environment
C23: SO2 (degree of desulphuring, %) | D23: 0 | E23: 0 | F23: 0 | G23: 0 | H23: 0 | I23: 0 | J23: 0 | K23: 0
C24: NOX (g per GJ fuel) | D24: 20 | E24: 15 | F24: 10 | G24: 8 | H24: 10 | I24: 30 | J24: 5 | K24: 15 | L24: D | M24: 3, 7
C25: CH4 (g per GJ fuel) | D25: 1.5 | E25: 1.5 | F25: 1.5 | G25: 1.5 | H25: 1 | I25: 8 | J25: 1 | K25: 8 | L25: G | M25: 7
C26: N2O (g per GJ fuel) | D26: 1 | E26: 1 | F26: 1 | G26: 1 | H26: 0.7 | I26: 1.2 | J26: 0.7 | K26: 1.2 | L26: G | M26: 7
C27: Financial data (in 2015€)
C28: Nominal investment (M€/MW) | D28: 1.3 | E28: 1.3 | F28: 1.2 | G28: 1.1 | H28: 1.1 | I28: 1.8 | J28: 0.9 | K28: 1.6 | M28: 5, 9
C29: - of which equipment | D29: 1 | E29: 1 | F29: 0.9 | G29: 0.8 | H29: 0.8 | I29: 1.4 | J29: 0.65 | K29: 1.25 | M29: 10
C30: - of which installation | D30: 0.3 | E30: 0.3 | F30: 0.3 | G30: 0.3 | H30: 0.3 | I30: 0.4 | J30: 0.25 | K30: 0.35 | M30: 10
C31: Fixed O&M (€/MW/year) | D31: 30000 | E31: 29300 | F31: 27800 | G31: 26000 | H31: 25000 | I31: 35000 | J31: 20000 | K31: 30000 | L31: B | M31: 5
C32: Variable O&M (€/MWh) | D32: 4.5 | E32: 4.4 | F32: 4.2 | G32: 4 | H32: 3 | I32: 7 | J32: 3 | K32: 7 | M32: 5
C33: Technology specific data
B35: References:
B36: 1 | C36: Danish Gas Technology Centre, analysis on gas engine and gas turbine dynamics, 2013
B37: 3 | C37: Data specs from maufacturers (Web) 2015
B38: 5 | C38: Wärtsila Technical Journal "in detail" 02-2014
B39: 6 | C39: Danish Gas Technology Centre, analysis and discussion with manufacturers, April 2013
B40: 7 | C40: Danish Gas Technology Centre, environmental survey 2012
B41: 8 | C41: Smart Power Generation; the future of electricity production, J. Klimstra & M. Hotakainen 2011
B42: 9 | C42: IEA: Projected cost of generating electricity, 2010
B43: 10 | C43: UK Electricity Generation Costs Update, M.M. Donald, June 2010
B44: 11 | C44: Siemens : Data on GT-CC (2010)
B46: Notes:
B47: A | C47: Low efficiency at low loads and often increased NOx emission
B48: B | C48: Limited availability of data
B49: C | C49: Power related
B50: D | C50: Based on Dry Low NOx (DLN) techniques
B51: E | C51: Technical- and design life most often > 25 years
B52: F | C52: Electrical output
B53: G | C53: CHP configuration, Including DGC assumptions
B54: H | C54: Manufacturers says down to 30 minute
B55: I | C55: No data available
B56: J | C56: Data on Cv from the 2012 version roughly adjusted for higher electricity efficiency
B57: K | C57: No known use
B58: L | C58: No Relevance for Back Pressure Lay Out
B59: M | C59: Upward regulation is typically 10 - 15 %/min, while downward regulation is > 30 % /min

Sheet 06 Gas engines, natural gas
H1: Back to Index
C3: Technology | D3: 06 Spark ignition engine, natural gas
D4: 2015 | E4: 2020 | F4: 2030 | G4: 2050 | H4: Uncertainty (2020) | J4: Uncertainty (2050) | L4: Note | M4: Ref
C5: Energy/technical data | H5: Lower | I5: Upper | J5: Lower | K5: Upper
C6: Generating capacity for one unit (MW) | D6: 1 -10 MWe
C7: Electricity efficiency (condensation mode for extraction plants), net (%) | D7: 46 | E7: 47 | F7: 48 | G7: 50 | H7: 40 | I7: 48 | J7: 44 | K7: 52 | L7: A | M7: 3, 4
C8: Electricity efficiency (condensation mode for extraction plants), net (%), annual average | D8: 44 | E8: 45 | F8: 47 | G8: 48 | H8: 38 | I8: 46 | J8: 42 | K8: 50 | L8: A | M8: 3, 4, 7
C9: Cb coefficient (50oC/100oC) | D9: 0.9 | E9: 0.95 | F9: 0.99 | G9: 1.04 | H9: 0.65 | I9: 1.02 | J9: 0.65 | K9: 1.15 | M9: 3, 4, 7
C10: Cv coefficient (50oC/100oC) | D10: - | E10: - | F10: - | G10: - | H10: - | I10: - | J10: - | K10: - | L10: G
C11: Forced outage (%) | D11: 3 | E11: 3 | F11: 3 | G11: 3 | H11: 2 | I11: 5 | J11: 2 | K11: 5 | M11: 5, 6
C12: Planned outage (weeks per year) | D12: 0.8 | E12: 0.8 | F12: 0.8 | G12: 0.8 | H12: N.A | I12: N.A | J12: N.A | K12: N.A | L12: H | M12: 5, 6
C13: Technical lifetime (years) | D13: 25 | E13: 25 | F13: 25 | G13: 25 | H13: 25 | I13: >25 | J13: 25 | K13: >25 | L13: D | M13: 4, 5, 7
C14: Construction time (years) | D14: 1 | E14: 1 | F14: 1 | G14: 1 | H14: 0.5 | I14: 1.5 | J14: 0.5 | K14: 1.5 | L14: B | M14: 3, 6
C15: Space requirement (1000m2/MW) | D15: 0.04 | E15: 0.04 | F15: 0.035 | G15: 0.03 | H15: 0.03 | I15: 0.05 | J15: 0.025 | K15: 0.04
C16: Plant Dynamic Capabilities
C17: Primary regulation (% per 30 seconds) | D17: 25 | E17: 30 | F17: 35 | G17: 50 | H17: 10 | I17: 40 | J17: 25 | K17: 100 | M17: 12
C18: Secondary regulation (% per minute) | D18: 25 | E18: 30 | F18: 40 | G18: 50 | H18: 20 | I18: 100 | J18: 25 | K18: 100 | L18: C | M18: 6, 12, 13
C19: Minimum load (% of full load) | D19: 50 | E19: 50 | F19: 50 | G19: 50 | H19: 30 | I19: 50 | J19: 25 | K19: 50 | M19: 6
C20: Warm start-up time (hours) | D20: 0.05 | E20: 0.05 | F20: 0.05 | G20: 0.05 | H20: 0.015 | I20: 0.15 | J20: 0.015 | K20: 0.15 | L20: C | M20: 6, 10
C21: Cold start-up time (hours) | D21: 0.3 | E21: 0.3 | F21: 0.3 | G21: 0.3 | H21: 0.2 | I21: 0.4 | J21: 0.2 | K21: 0.4 | L21: E | M21: 6, 10
C22: Environment
C23: SO2 (degree of desulphuring, %) | D23: 0 | E23: 0 | F23: 0 | G23: 0 | H23: 0 | I23: 0 | J23: 0 | K23: 0 | M23: 4
C24: NOX (g per GJ fuel) | D24: 75 | E24: 60 | F24: 60 | G24: 60 | H24: 50 | I24: 100 | J24: 50 | K24: 100 | M24: 4
C25: CH4 (g per GJ fuel) | D25: 315 | E25: 315 | F25: 280 | G25: 250 | H25: 300 | I25: 400 | J25: 250 | K25: 350 | M25: 4
C26: N2O (g per GJ fuel) | D26: 0.6 | E26: 0.6 | F26: 0.6 | G26: 0.6 | H26: N.A | I26: N.A | J26: N.A | K26: N.A | L26: H
C27: Financial data (in 2015€)
C28: Nominal investment (M€/MW) | D28: 1 | E28: 0.95 | F28: 0.9 | G28: 0.85 | H28: 0.9 | I28: 1.1 | J28: 0.8 | K28: 1.1 | M28: 3, 5, 11
C29: - of which equipment | D29: 0.65 | E29: 0.6 | F29: 0.55 | G29: 0.55 | H29: N.A | I29: N.A | J29: N.A | K29: N.A | L29: H | M29: 3, 5
C30: - of which installation | D30: 0.35 | E30: 0.35 | F30: 0.35 | G30: 0.3 | H30: N.A | I30: N.A | J30: N.A | K30: N.A | L30: H | M30: 3, 5
C31: Fixed O&M (€/MW/year) | D31: 10000 | E31: 9750 | F31: 9300 | G31: 8500 | H31: 7000 | I31: 20000 | J31: 6000 | K31: 15000 | L31: F | M31: 5
C32: Variable O&M (€/MWh) | D32: 5.4 | E32: 5.4 | F32: 5.1 | G32: 4.9 | H32: 4 | I32: 12 | J32: 4 | K32: 10 | L32: F | M32: 3, 5, 11
B34: References:
B35: 3 | C35: ASUE BHKW Kenndata 2014/2015
B36: 4 | C36: DGC Efficiency and emission test reports
B37: 5 | C37: DGC analysis, The gas fired cogneration sector, Bilagsrapport 9, Energiforligs analyse 2013
B38: 6 | C38: Features and parameters of various power plant technologies, Wartsila "In Detail", 02-2014 etc.
B39: 7 | C39: Dansk Fjernvarme and FDKV reportings from CHP installations, the Dansk Fjernvarme information is from a 2012 suvey for an earlier version of the report
B40: 8 | C40: Ongoing Sulpur research project at DGC (MUDP)
B41: 10 | C41: Danish Gas Technology Centre, analysis on gas engine and gas turbine dynamics, 2013
B42: 11 | C42: Blockheizkraftwerke 2013, M.Buller et al, GWF Gas Erdgas, Juni 2014
B43: 12 | C43: Suppliers association information etc.
B44: 13 | C44: MAN Turbo Presentation of Gas Engine with fuel switch, 2012
B46: Notes:
B47: A | C47: Ref 1, 2 and 3 is used for 2015 values for 3 - 10 MWe engine, 1 MWe engine 4-5 % points less. Ref 4 & 5 is used for predictions for the future years.
B48: B | C48: The construction time given is for a medium size installation; small installations can be erected in a shorter period
B49: C | C49: Engines have been build and demonstrated for short start up < 1 minute for full electrical load. This includes large engines
B50: D | C50: Technical- and design life most often > 25 years
B51: E | C51: For a medium size engine; small engines with less thermal mass might be faster
B52: F | C52: When operating 4000 hours a year
B53: G | C53: Only relevant for steam based CHP
B54: H | C54: No data available
B55: I | C55: DGC estimate for years 2030, 2050
B56: J | C56: No known use, data from n-gas engines
B57: K | C57: Sulphur is removed in the biogas processing, according to manufactures spec. Lower values for biogas from waste water

Sheet 06 Gas engines, biogas
H1: Back to Index
C3: Technology | D3: 06 Spark ignition engine, biogas
D4: 2015 | E4: 2020 | F4: 2030 | G4: 2050 | H4: Uncertainty (2020) | J4: Uncertainty (2050) | L4: Note | M4: Ref
C5: Energy/technical data | H5: Lower | I5: Upper | J5: Lower | K5: Upper
C6: Generating capacity for one unit (MW) | D6: 1-10 MWe
C7: Electricity efficiency (condensation mode for extraction plants), net (%), | D7: 42 | E7: 43 | F7: 45 | G7: 47 | H7: 38 | I7: 44 | J7: 42 | K7: 48 | L7: A | M7: 3, 4
C8: Electricity efficiency (condensation mode for extraction plants), net (%), annual average | D8: 40 | E8: 41 | F8: 43 | G8: 45 | H8: 36 | I8: 42 | J8: 40 | K8: 46 | L8: A | M8: 3, 4, 7
C9: Cb coefficient (50oC/100oC) | D9: 0.82 | E9: 0.86 | F9: 0.92 | G9: 1 | H9: 0.59 | I9: 0.96 | J9: 0.75 | K9: 1.1 | M9: 3, 4, 7
C10: Cv coefficient (50oC/100oC) | D10: - | E10: - | F10: - | G10: - | H10: - | I10: - | J10: - | K10: - | L10: G
C11: Forced outage (%) | D11: 3 | E11: 3 | F11: 3 | G11: 3 | H11: 2 | I11: 5 | J11: 2 | K11: 5 | M11: 5, 6
C12: Planned outage (weeks per year) | D12: 1 | E12: 1 | F12: 1 | G12: 1 | H12: N.A | I12: N.A | J12: N.A | K12: N.A | L12: H | M12: 5, 6
C13: Technical lifetime (years) | D13: 25 | E13: 25 | F13: 25 | G13: 25 | H13: 25 | I13: >25 | J13: 25 | K13: >25 | L13: D | M13: 4, 5, 7
C14: Construction time (years) | D14: 1 | E14: 1 | F14: 1 | G14: 1 | H14: 0.5 | I14: 1.5 | J14: 0.5 | K14: 1.5 | L14: B | M14: 3, 6
C15: Space requirement (1000m2/MW) | D15: 0.04 | E15: 0.04 | F15: 0.035 | G15: 0.03 | H15: 0.03 | I15: 0.05 | J15: 0.025 | K15: 0.05
C16: Plant Dynamic Capabilities
C17: Primary regulation (% per 30 seconds) | D17: 25 | E17: 30 | F17: 40 | G17: 50 | H17: 10 | I17: 40 | J17: 25 | K17: 100 | L17: J | M17: 8
C18: Secondary regulation (% per minute) | D18: 25 | E18: 30 | F18: 40 | G18: 50 | H18: 20 | I18: 100 | J18: 25 | K18: 100 | L18: C | M18: 6, 8, 13
C19: Minimum load (% of full load) | D19: 50 | E19: 50 | F19: 50 | G19: 50 | H19: 30 | I19: 50 | J19: 25 | K19: 50 | M19: 6
C20: Warm start-up time (hours) | D20: 0.05 | E20: 0.05 | F20: 0.05 | G20: 0.05 | H20: 0.015 | I20: 0.15 | J20: 0.015 | K20: 0.15 | L20: C | M20: 6, 10
C21: Cold start-up time (hours) | D21: 0.3 | E21: 0.3 | F21: 0.3 | G21: 0.3 | H21: 0.2 | I21: 0.4 | J21: 0.2 | K21: 0.4 | L21: E | M21: 6, 10
C22: Environment
C23: SO2 (degree of desulphuring, %) | D23: (I) | E23: (I) | F23: (I) | G23: (I) | H23: 0 | I23: 99.9 | J23: 0 | K23: 99.9 | L23: K | M23: 8
C24: NOX (g per GJ fuel) | D24: 100 | E24: 100 | F24: 100 | G24: 100 | H24: 90 | I24: 120 | J24: 90 | K24: 120 | M24: 4
C25: CH4 (g per GJ fuel) | D25: 300 | E25: 300 | F25: 300 | G25: 300 | H25: 300 | I25: 400 | J25: 300 | K25: 400 | M25: 4
C26: N2O (g per GJ fuel) | D26: 1 | E26: 1 | F26: 1 | G26: 1 | H26: N.A | I26: N.A | J26: N.A | K26: N.A | L26: J
C27: Financial data (in 2015€)
C28: Nominal investment (M€/MW) | D28: 1 | E28: 0.95 | F28: 0.9 | G28: 0.85 | H28: 0.8 | I28: 1.2 | J28: 0.8 | K28: 1.2 | M28: 3, 5, 11
C29: - of which equipment | D29: 0.65 | E29: 0.6 | F29: 0.55 | G29: 0.55 | H29: N.A | I29: N.A | J29: N.A | K29: N.A | M29: 3, 5
C30: - of which installation | D30: 0.35 | E30: 0.35 | F30: 0.35 | G30: 0.3 | H30: N.A | I30: N.A | J30: N.A | K30: N.A | M30: 3, 5
C31: Fixed O&M (€/MW/year) | D31: 10000 | E31: 9750 | F31: 9300 | G31: 8500 | H31: 7000 | I31: 20000 | J31: 6000 | K31: 15000 | L31: F | M31: 5
C32: Variable O&M (€/MWh) | D32: 8 | E32: 7.5 | F32: 7 | G32: 6 | H32: 6 | I32: 13 | J32: 4 | K32: 12 | L32: F | M32: 3, 5, 11
B34: References:
B35: 3 | C35: ASUE BHKW Kenndata 2014/2015
B36: 4 | C36: DGC Efficiency and emission test reports
B37: 5 | C37: DGC analysis, The gas fired cogneration sector, Bilagsrapport 9, Energiforligs analyse 2013
B38: 6 | C38: Features and parameters of various power plant technologies, Wartsila "In Detail", 02-2014 etc.
B39: 7 | C39: Dansk Fjernvarme and FDKV reportings from CHP installations, the Dansk Fjernvarme information is from a 2012 suvey for an earlier version of the report
B40: 8 | C40: Ongoing Sulpur research project at DGC (MUDP)
B41: 10 | C41: Danish Gas Technology Centre, analysis on gas engine and gas turbine dynamics, 2013
B42: 11 | C42: Blockheizkraftwerke 2013, M.Buller et al, GWF Gas Erdgas, Juni 2014
B43: 12 | C43: Suppliers association information etc.
B44: 13 | C44: MAN Turbo Presentation of Gas Engine with fuel switch, 2012
B46: Notes:
B47: A | C47: Ref 1, 2 and 3 is used for 2015 values for 3 - 10 MWe engine, 1 MWe engine 4-5 % points less. Ref 4 & 5 is used for predictions for the future years.
B48: B | C48: The construction time given is for a medium size installation; small installations can be erected in a shorter period
B49: C | C49: Engines have been build and demonstrated for short start up < 1 minute for full electrical load. This includes large engines
B50: D | C50: Technical- and design life most often > 25 years
B51: E | C51: For a medium size engine; small engines with less thermal mass might be faster
B52: F | C52: When operating 4000 hours a year
B53: G | C53: Only relevant for steam based CHP
B54: H | C54: No data available
B55: I | C55: DGC estimate for years 2030, 2050
B56: J | C56: No known use, data from n-gas engines
B57: K | C57: Sulphur is removed in the biogas processing, according to manufactures spec. Lower values for biogas from waste water

Sheet 07 Carbon Capture and Storage
B1: 07 CO2 Capture and Storage | H1: Back to Index
B3: Technology | C3: CO2 capture (post-combustion), pulverized coal power plant
C4: 2010 | D4: 2020 | E4: 2030 | F4: 2050 | G4: Note | H4: Ref
B5: Energy/technical data
B6: Generating capacity for one unit (MW) | C6: 500 - 740 | H6: 1+2+3+4
B7: Capture efficiency (%) | C7: 90 | D7: 90 | E7: 90 | F7: 90 | G7: A | H7: 1
B8: Generation efficiency decrease (%-points) | C8: 8-10% | D8: 8-10% | E8: 8-10% | F8: 8-10% | G8: B | H8: 1+2+3
B9: Financial data
B10: Capture, post-combustion
B11: Nominal investment (M€/MW) | C11: 2.3-4.3 | D11: 3.07 | E11: 3.00 | F11: 2.86 | G11: C | H11: 1+2+3+4;2;2;2
B12: Fixed O&M (€/MW/year) | C12: 72000-87000 | D12: 72000-87000 | E12: 72000-87000 | F12: 72000-87000 | G12: D | H12: 1+2
B13: Variable O&M (€/MWh) | C13: 3.4-4.1 | D13: 3.4-4.1 | E13: 3.4-4.1 | F13: 3.4-4.1 | G13: D | H13: 1+2
A15: References:
A16: 1 | B16: "The Costs of CO2 Capture, Transport and Storage", Zero Emissions Platform (ZEP), July 2011
A17: 2 | B17: "UK Electricity Generation Costs Update", Mott MacDonald, June 2010.
A18: 3 | B18: "Energy Technology Perspectives", IEA 2010
A19: 4 | B19: "ProjectCosts of generating Electricity", IEA & NEA, 2010
A20: Notes:
A21: A | B21: The non-captured CO2 is released into the atmosphere.
A22: B | B22: Some of the electricity consumption may be regained as useful heat. The displayed efficiency decreases do most probably take the usage of heat into account.
A23: C | B23: The nominal investment is per net generating capacity, i.e. after deducting the power consumed for CO2 capture. If you compare two power plants, with CCS (this element) and without CCS (element 01), and with the same net power generating capacity, the difference in nominal investment (e.g. 3.07-2.03 = 1.04 M€/MW in 2020) is the value of the capture equipment. If CO2 capture is added on to an existing power plant, the loss in generating capacity shall be taken into account.
A24: D | B24: The O&M costs are per net generating capacity and net generation, i.e. after deducting the power consumer for CO2 capture.

Sheet 08 WtE CHP, Large
B1: Large Waste to Energy | H1: Back to Index
B3: Technology | C3: 08 Large Waste to Energy CHP, Back pressure turbine, 220 MW feed
C4: 2015 | D4: 2020 | E4: 2030 | F4: 2050 | G4: Uncertainty (2020) | I4: Uncertainty (2050) | K4: Note | L4: Ref
B5: Energy/technical data | G5: Lower | H5: Upper | I5: Lower | J5: Upper
B6: Generating capacity for one unit (MWe) | C6: 51.2 | D6: 51.2 | E6: 52.5 | F6: 54.4 | G6: 47.2 | H6: 55.7 | I6: 47.2 | J6: 59.8 | K6: A, B
B7: Incineration capacity (Fuel input) (tonnes/h) | C7: 74.7 | D7: 74.7 | E7: 74.7 | F7: 74.7 | G7: 74.7 | H7: 74.7 | I7: 74.7 | J7: 74.7 | K7: A, B
B8: Electricity efficiency, net (%), name plate | C8: 23.3 | D8: 23.3 | E8: 23.9 | F8: 24.7 | G8: 21 | H8: 25 | I8: 21 | J8: 27 | K8: A, B
B9: Electricity efficiency, net (%), annual average | C9: 22.1 | D9: 22.1 | E9: 22.7 | F9: 23.5 | G9: 19 | H9: 24 | I9: 19 | J9: 26 | K9: A, B,C
B10: Heat efficiency, net (%), name plate | C10: 78.1 | D10: 78.1 | E10: 77.8 | F10: 77.4 | G10: 75 | H10: 83 | I10: 71 | J10: 85 | K10: A, B
B11: Heat efficiency, net (%), annual average | C11: 79.3 | D11: 79.3 | E11: 79 | F11: 78.7 | G11: 77 | H11: 84 | I11: 73 | J11: 86 | K11: A, B, C
B12: Additional heat potential with heat pumps (% of thermal input) | C12: 4.1 | D12: 4.1 | E12: 4 | F12: 3.7 | G12: 2 | H12: 5 | I12: 2 | J12: 5 | K12: A, B, D
B13: Cb coefficient (40°C/80°C) | C13: 0.3 | D13: 0.3 | E13: 0.31 | F13: 0.32 | G13: 0.27 | H13: 0.32 | I13: 0.28 | J13: 0.35 | K13: A, B
B14: Cv coefficient (40°C/80°C) | C14: 1 | D14: 1 | E14: 1 | F14: 1 | G14: 1 | H14: 1 | I14: 1 | J14: 1 | K14: A, B
B15: Forced outage (%) | C15: 1 | D15: 1 | E15: 1 | F15: 1 | G15: 1 | H15: 1 | I15: 1 | J15: 1 | L15: 1
B16: Planned outage (weeks per year) | C16: 2.5 | D16: 2.4 | E16: 2.2 | F16: 1.8 | G16: 2 | H16: 2.7 | I16: 1.3 | J16: 2.2 | K16: E | L16: 1
B17: Technical lifetime (years) | C17: 25 | D17: 25 | E17: 25 | F17: 25 | G17: 20 | H17: 35 | I17: 20 | J17: 35 | L17: 1
B18: Construction time (years) | C18: 3 | D18: 3 | E18: 3 | F18: 3 | G18: 2.5 | H18: 3.5 | I18: 2 | J18: 3.5 | L18: 1
B19: Space requirement (1000 m2/MWe) | C19: 0.8 | D19: 0.8 | E19: 0.8 | F19: 0.7 | G19: 0.7 | H19: 0.9 | I19: 0.6 | J19: 0.9 | L19: 1
B21: Primary regulation (% per 30 seconds) | C21: 5 | D21: 5 | E21: 5 | F21: 5 | G21: 5 | H21: 5 | I21: 5 | J21: 5 | K21: F
B22: Secondary regulation (% per minute) | C22: 10 | D22: 10 | E22: 10 | F22: 10 | G22: 10 | H22: 10 | I22: 10 | J22: 10 | K22: F, G
B23: Minimum load (% of full load) | C23: 20 | D23: 20 | E23: 20 | F23: 20 | G23: 20 | H23: 20 | I23: 20 | J23: 20 | K23: F, G
B24: Warm start-up time (hours) | C24: 0.5 | D24: 0.5 | E24: 0.5 | F24: 0.5 | G24: 0.5 | H24: 0.5 | I24: 0.5 | J24: 0.5 | K24: F, G
B25: Cold start-up time (hours) | C25: 2 | D25: 2 | E25: 2 | F25: 2 | G25: 2 | H25: 2 | I25: 2 | J25: 2 | K25: F, G
B26: Environment
B27: SO2 (degree of desulphuring, %) | C27: 99.8 | D27: 99.8 | E27: 99.8 | F27: 99.8 | G27: 99 | H27: 99.9 | I27: 99.5 | J27: 99.9 | K27: H | L27: 1
B28: NOX (g per GJ fuel) | C28: 90 | D28: 56 | E28: 17 | F28: 11 | G28: 11 | H28: 84 | I28: 5 | J28: 56 | K28: I | L28: 2;3
B29: CH4 (g per GJ fuel) | C29: 0.3 | D29: 0.1 | E29: 0.1 | G29: 0 | H29: 0.1 | I29: 0 | J29: 0.1 | L29: 2
B30: N2O (g per GJ fuel) | C30: 1.2 | D30: 1 | E30: 1 | F30: 1 | G30: 1 | H30: 3 | I30: 0 | J30: 1 | K30: J | L30: 2
B31: Particles (g per GJ fuel) | C31: 0.3 | D31: 0.3 | E31: 0.3 | F31: 0.3 | G31: 0.1 | H31: 2 | I31: 0.1 | J31: 1 | K31: J | L31: 2
B32: Financial data
B33: Nominal investment (M€/MWe) | C33: 8 | D33: 7.8 | E33: 7.4 | F33: 6.5 | G33: 6.7 | H33: 9.2 | I33: 4.8 | J33: 8.1 | K33: N | L33: 1
B34: - of which equipment | C34: 4.8 | D34: 4.7 | E34: 4.6 | F34: 4 | G34: 4 | H34: 5.6 | I34: 2.9 | J34: 5 | K34: N | L34: 1
B35: - of which installation | C35: 3.2 | D35: 3.1 | E35: 2.9 | F35: 2.5 | G35: 2.6 | H35: 3.6 | I35: 1.9 | J35: 3.2 | K35: M | L35: 1
B36: Fixed O&M (€/MWe/year) | C36: 231700 | D36: 188300 | E36: 175600 | F36: 149600 | G36: 173900 | H36: 202400 | I36: 126500 | J36: 169300 | K36: L | L36: 1
B37: Variable O&M (€/MWh_e) | C37: 24.8 | D37: 24.8 | E37: 24.2 | F37: 23.3 | G37: 21.1 | H37: 28.5 | I37: 17.5 | J37: 29.2 | K37: K | L37: 1
B38: Technology specific data
B39: Steam reheat | C39: None | D39: None | E39: None | F39: None | G39: None | H39: None | I39: None | J39: None
B40: Flue gas condensation | C40: Yes | D40: Yes | E40: Yes | F40: Yes | G40: Yes | H40: Yes | I40: Yes | J40: Yes
B41: Combustion air humidification | C41: No | D41: No | E41: No | F41: No | G41: No | H41: Yes | I41: No | J41: Yes
B42: Nominal investment (M€/MW fuel input) | C42: 1.87 | D42: 1.83 | E42: 1.78 | F42: 1.61 | G42: 1.55 | H42: 2.14 | I42: 1.18 | J42: 2 | K42: N | L42: 1
B43: - of which equipment | C43: 1.13 | D43: 1.1 | E43: 1.09 | F43: 0.99 | G43: 0.94 | H43: 1.31 | I43: 0.71 | J43: 1.22 | K43: N | L43: 1
B44: - of which installation | C44: 0.74 | D44: 0.72 | E44: 0.69 | F44: 0.62 | G44: 0.62 | H44: 0.83 | I44: 0.47 | J44: 0.78 | K44: M | L44: 1
B45: Fixed O&M (€/MW input/year) | C45: 54000 | D45: 43900 | E45: 41900 | F45: 37000 | G45: 37300 | H45: 51300 | I45: 27100 | J45: 46000 | K45: L | L45: 1
B46: Variable O&M (€/MWh input) | C46: 5.8 | D46: 5.8 | E46: 5.8 | F46: 5.8 | G46: 4.9 | H46: 6.6 | I46: 4.3 | J46: 7.2 | K46: K | L46: 1
B47: Nominal investment (€/(tonne/year)) | C47: 689 | D47: 672 | E47: 654 | F47: 593 | G47: 571 | H47: 788 | I47: 434 | J47: 738 | K47: N | L47: 1
B48: Fixed O&M (€/tonne) | C48: 20 | D48: 16 | E48: 15 | F48: 14 | G48: 14 | H48: 19 | I48: 10 | J48: 17 | K48: L | L48: 1;4
B49: Variable O&M (€/tonne) | C49: 17 | D49: 17 | E49: 17 | F49: 17 | G49: 14 | H49: 20 | I49: 13 | J49: 21 | K49: K | L49: 1;4
A52: References:
A53: 1 | B53: Rambøll present work, range of WtE-projects
A54: 2 | B54: Emission factors of 2006: 102 g/GJ NOx, <8,3 g/GJ for SO2, <0,34 g/GJ for CH4, 1,2 g/GJ for N2O, cf.
B55: Nielsen, M., Nielsen, O.-K. & Thomsen, M. 2010: Emissions from decentralised CHP plants
B56: 2007 - Energinet.dk Environmental project no. 07/1882. Project report 5 – Emission factors and
B57: emission inventory for decentralised CHP production. National Environmental Research Institute,
B58: Aarhus University. 113 pp. – NERI Technical report No. 786.
B59: http://www.dmu.dk/Pub/FR786.pdf.
A60: 3 | B60: Environmental permit of recently constructed WtE-facility includes NOx limit value of 180 mg/Nm³ =100 g/GJ. Operation is expected well below limit value. Cf. Miljøstyrelsen, "Tillæg til miljøgodkendelse, Ny ovnlinje 5 på Nordforbrænding, Juni 2013,"
B61: http://mst.dk/media/mst/Attachments/Tillgtilmiljgodkendelseovn5Juni2013.pdf
A62: 4 | B62: To scenarier for tilpasning af affaldsforbrændingskapaciteten i Danmark. EA Energianalyse 2014.
A64: Notes:
A65: A | B65: Assumed lower heating value 10.6 MJ/kg, waste input 74.7 tph = tonnes per hour (incineration capacity) divided in two, equally sized furnace/boiler units , corresponding to thermal input of 2x110 MW. One common turbine/generator set is foreseen. Live steam pressure in base case 50 bara, temperature 425 °C of 2015 and 2020, increasing to 440 °C and 450 °C, in 2030 and 2050, respectively. Efficiencies refer to lower heating value.
A66: B | B66: With flue gas condensation (condensation through heat exchange with DH-water, only) and a back-pressure turbine/condenser system optimised for DH return temperature 40°C and flow 80°C.
A67: C | B67: Annual average heat output is higher than nameplate because the total efficiency is constant, and the annual average electricity generation is lower than nameplate electricity output. The parasitic electricity consumption has been subtracted in the listed electricity efficiencies.
A68: D | B68: Additional heat potential for heat pump is the flue gas condensation potential remaining after the direct condensation stage (condensation by heat exchange with DH-water).
A69: E | B69: Focus on availability and ambitions of 2 years' continuous operation is expected to gradually reduce planned outage.
A70: F | B70: Regulation and start-up refer to electricity generation controlled by the turbine operation.The WtE facility would usually be operating at 100% thermal input, and the electricity output is controlled to the desired level by use of turbine by-pass, by which excess steam is used to produce DH-energy. Warm start-up time refers to 2 days down-time of the turbine.
A71: G | B71: The combustion process and boiler may be regulated approx. 1% per minute considering extensive use of inconell (in stead of refractory, which may limit rate of change to 0.5% per minute). Minimum load is typically 70% of thermal input under which limit it may be difficult to comply with the requirement of min. 2 sec residence time of the flue gas at min. 850 °C after the last air injection. Below this limit it may also be a challenge to ensure sufficient superheating of the steam. Warm start-up of the combustion process is typically 8 hours and cold start-up is 8 hours.
A72: H | B72: Assumed low SO2-emission 1 g/GJ in 2015 considering the use of flue gas condensation by wet scrubbing down-stream the flue gas treatment system. Sulphur content in fuel 270 g/GJ.
A73: I | B73: Increased focus on NOx reduction is expected in the future, requiring use of SNCR technology to its utmost potential by 2030 (at 60 g/GJ) and use of the more effective catalytic SCR-technology by 2050. The SCR-technology entails additional investment.
A74: J | B74: N2O is expected to be related primarily to the use of SNCR. This is why little N2O is expected when the SCR-deNOx technology is used (indicated by verly low NOx-level).
A75: K | B75: Variable O&M cost includes consumables (for FGT etc.), disposal of residues, small share of staff-cost and maintenance cost. Electricity consumption is not included, and revenues from sale of electricity and heat are not included. Taxes are not included.
A76: L | B76: Fixed O&M include amongst other things the major part of staffing and maintenance, analyses, research and development, accounting, insurances, fees, memberships, office. Not included are finance cost, depreciation and amortisation.
A77: M | B77: Installation includes civils works (including waste bunker) and project cost considering LOT-based tendering.
A78: N | B78: Assuming LOT-based tendering of electromechanic equipment.

Sheet 08 WtE CHP, Medium
B1: Medium Waste to Energy | H1: Back to Index
B3: Technology | C3: 08 Medium Waste to Energy CHP, Back pressure turbine, 80 MW feed
C4: 2015 | D4: 2020 | E4: 2030 | F4: 2050 | G4: Uncertainty (2020) | I4: Uncertainty (2050) | K4: Note | L4: Ref
B5: Energy/technical data | G5: Lower | H5: Upper | I5: Lower | J5: Upper
B6: Generating capacity for one unit (MWe) | C6: 18.4 | D6: 18.4 | E6: 18.9 | F6: 19.5 | G6: 17 | H6: 20 | I6: 17 | J6: 21.4 | K6: A, B
B7: Incineration capacity (Fuel input) (tonnes/h) | C7: 27.2 | D7: 27.2 | E7: 27.2 | F7: 27.2 | G7: 27.2 | H7: 27.2 | I7: 27.2 | J7: 27.2 | K7: A, B
B8: Electricity efficiency, net (%), name plate | C8: 23 | D8: 23 | E8: 23.6 | F8: 24.4 | G8: 21 | H8: 25 | I8: 21 | J8: 27 | K8: A, B,C
B9: Electricity efficiency, net (%), annual average | C9: 21.9 | D9: 21.9 | E9: 22.4 | F9: 23.2 | G9: 19 | H9: 24 | I9: 19 | J9: 25 | K9: A, B,C
B10: Heat efficiency, net (%), name plate | C10: 78 | D10: 78 | E10: 77.7 | F10: 77.3 | G10: 75 | H10: 83 | I10: 71 | J10: 85 | K10: A, B
B11: Heat efficiency, net (%), annual average | C11: 79.1 | D11: 79.1 | E11: 78.9 | F11: 78.6 | G11: 77 | H11: 84 | I11: 73 | J11: 86 | K11: A, B, C
B12: Additional heat potential with heat pumps (% of thermal input) | C12: 4.1 | D12: 4.1 | E12: 4 | F12: 3.7 | G12: 2 | H12: 5 | I12: 2 | J12: 5 | K12: A, B, D
B13: Cb coefficient (40°C/80°C) | C13: 0.3 | D13: 0.3 | E13: 0.3 | F13: 0.32 | G13: 0.27 | H13: 0.32 | I13: 0.27 | J13: 0.35 | K13: A, B
B14: Cv coefficient (40°C/80°C) | C14: 1 | D14: 1 | E14: 1 | F14: 1 | G14: 1 | H14: 1 | I14: 1 | J14: 1 | K14: A, B
B15: Forced outage (%) | C15: 1 | D15: 1 | E15: 1 | F15: 1 | G15: 1 | H15: 1 | I15: 1 | J15: 1 | L15: 1
B16: Planned outage (weeks per year) | C16: 3 | D16: 2.9 | E16: 2.6 | F16: 2.1 | G16: 2.4 | H16: 3.3 | I16: 1.6 | J16: 2.6 | K16: E | L16: 1
B17: Technical lifetime (years) | C17: 25 | D17: 25 | E17: 25 | F17: 25 | G17: 20 | H17: 35 | I17: 20 | J17: 35 | L17: 1
B18: Construction time (years) | C18: 2.5 | D18: 2.5 | E18: 2.5 | F18: 2.5 | G18: 2 | H18: 3 | I18: 1.5 | J18: 3 | L18: 1
B19: Space requirement (1000 m2/MWe) | C19: 1.6 | D19: 1.6 | E19: 1.6 | F19: 1.5 | G19: 1.4 | H19: 1.9 | I19: 1.2 | J19: 1.9 | L19: 1
B21: Primary regulation (% per 30 seconds) | C21: 5 | D21: 5 | E21: 5 | F21: 5 | G21: 5 | H21: 5 | I21: 5 | J21: 5 | K21: F
B22: Secondary regulation (% per minute) | C22: 10 | D22: 10 | E22: 10 | F22: 10 | G22: 10 | H22: 10 | I22: 10 | J22: 10 | K22: F, G
B23: Minimum load (% of full load) | C23: 20 | D23: 20 | E23: 20 | F23: 20 | G23: 20 | H23: 20 | I23: 20 | J23: 20 | K23: F, G
B24: Warm start-up time (hours) | C24: 0.5 | D24: 0.5 | E24: 0.5 | F24: 0.5 | G24: 0.5 | H24: 0.5 | I24: 0.5 | J24: 0.5 | K24: F, G
B25: Cold start-up time (hours) | C25: 2 | D25: 2 | E25: 2 | F25: 2 | G25: 2 | H25: 2 | I25: 2 | J25: 2 | K25: F, G
B26: Environment
B27: SO2 (degree of desulphuring, %) | C27: 99.8 | D27: 99.8 | E27: 99.8 | F27: 99.8 | G27: 99 | H27: 99.9 | I27: 99.5 | J27: 99.9 | K27: H | L27: 1
B28: NOX (g per GJ fuel) | C28: 90 | D28: 56 | E28: 45 | F28: 11 | G28: 11 | H28: 84 | I28: 5 | J28: 56 | K28: I | L28: 2;3
B29: CH4 (g per GJ fuel) | C29: 0.3 | D29: 0.1 | E29: 0.1 | F29: 0.1 | G29: 0 | H29: 0.1 | I29: 0 | J29: 0.1 | L29: 2
B30: N2O (g per GJ fuel) | C30: 1.2 | D30: 1 | E30: 1 | F30: 1 | G30: 1 | H30: 3 | I30: 0 | J30: 1 | K30: J | L30: 2
B31: Particles (g per GJ fuel) | C31: 0.3 | D31: 0.3 | E31: 0.3 | F31: 0.3 | G31: 0.1 | H31: 2 | I31: 0.1 | J31: 1 | K31: J | L31: 2
B32: Financial data
B33: Nominal investment (M€/MWe) | C33: 9.3 | D33: 9.1 | E33: 8.7 | F33: 7.6 | G33: 7.7 | H33: 10.7 | I33: 5.5 | J33: 9.5 | K33: N | L33: 1
B34: - of which equipment | C34: 5.7 | D34: 5.5 | E34: 5.4 | F34: 4.7 | G34: 4.7 | H34: 6.6 | I34: 3.4 | J34: 5.8 | K34: N | L34: 1
B35: - of which installation | C35: 3.7 | D35: 3.6 | E35: 3.3 | F35: 2.9 | G35: 3 | H35: 4.1 | I35: 2.2 | J35: 3.6 | K35: M | L35: 1
B36: Fixed O&M (€/MWe/year) | C36: 300700 | D36: 264800 | E36: 246700 | F36: 210600 | G36: 244200 | H36: 284600 | I36: 178000 | J36: 239500 | K36: L | L36: 1
B37: Variable O&M (€/MWh_e) | C37: 25 | D37: 25 | E37: 24.5 | F37: 23.7 | G37: 21.3 | H37: 28.8 | I37: 17.7 | J37: 29.6 | K37: K | L37: 1
B38: Technology specific data
B39: Steam reheat | C39: None | D39: None | E39: None | F39: None | G39: None | H39: None | I39: None | J39: None
B40: Flue gas condensation | C40: Yes | D40: Yes | E40: Yes | F40: Yes | G40: Yes | H40: Yes | I40: Yes | J40: Yes
B41: Combustion air humidification | C41: No | D41: No | E41: No | F41: No | G41: No | H41: Yes | I41: No | J41: Yes
B42: Nominal investment (M€/MW fuel input) | C42: 2.15 | D42: 2.1 | E42: 2.05 | F42: 1.86 | G42: 1.78 | H42: 2.46 | I42: 1.35 | J42: 2.31 | K42: N | L42: 1
B43: - of which equipment | C43: 1.31 | D43: 1.28 | E43: 1.26 | F43: 1.15 | G43: 1.08 | H43: 1.52 | I43: 0.82 | J43: 1.42 | K43: N | L43: 1
B44: - of which installation | C44: 0.84 | D44: 0.82 | E44: 0.78 | F44: 0.71 | G44: 0.7 | H44: 0.95 | I44: 0.53 | J44: 0.88 | K44: M | L44: 1
B45: Fixed O&M (€/MW input/year) | C45: 69300 | D45: 61000 | E45: 58200 | F45: 51400 | G45: 51900 | H45: 71200 | I45: 37800 | J45: 64000 | K45: L | L45: 1
B46: Variable O&M (€/MWh input) | C46: 5.8 | D46: 5.8 | E46: 5.8 | F46: 5.8 | G46: 4.9 | H46: 6.6 | I46: 4.3 | J46: 7.2 | K46: K | L46: 1
B47: Nominal investment (€/(tonne/year)) | C47: 792 | D47: 773 | E47: 753 | F47: 683 | G47: 657 | H47: 907 | I47: 499 | J47: 849 | K47: N | L47: 1
B48: Fixed O&M (€/tonne) | C48: 26 | D48: 22 | E48: 21 | F48: 19 | G48: 19 | H48: 26 | I48: 14 | J48: 24 | K48: L | L48: 1;4
B49: Variable O&M (€/tonne) | C49: 17 | D49: 17 | E49: 17 | F49: 17 | G49: 14 | H49: 20 | I49: 13 | J49: 21 | K49: K | L49: 1;4
A52: References:
A53: 1 | B53: Rambøll present work, range of WtE-projects
A54: 2 | B54: Emission factors of 2006: 102 g/GJ NOx, <8,3 g/GJ for SO2, <0,34 g/GJ for CH4, 1,2 g/GJ for N2O, cf.
B55: Nielsen, M., Nielsen, O.-K. & Thomsen, M. 2010: Emissions from decentralised CHP plants
B56: 2007 - Energinet.dk Environmental project no. 07/1882. Project report 5 – Emission factors and
B57: emission inventory for decentralised CHP production. National Environmental Research Institute,
B58: Aarhus University. 113 pp. – NERI Technical report No. 786.
B59: http://www.dmu.dk/Pub/FR786.pdf.
A60: 3 | B60: Environmental permit of recently constructed WtE-facility includes NOx limit value of 180 mg/Nm³ =100 g/GJ. Operation is expected well below limit value. Cf. Miljøstyrelsen, "Tillæg til miljøgodkendelse, Ny ovnlinje 5 på Nordforbrænding, Juni 2013,"
B61: http://mst.dk/media/mst/Attachments/Tillgtilmiljgodkendelseovn5Juni2013.pdf
A62: 4 | B62: To scenarier for tilpasning af affaldsforbrændingskapaciteten i Danmark. EA Energianalyse 2014.
A64: Notes:
A65: A | B65: Assumed lower heating value 10.6 MJ/kg, waste input 27.2 tph = tonnes per hour (incineration capacity), corresponding to thermal input of 80 MW. Live steam pressure in base case 50 bara, temperature 425 °C of 2015 and 2020, increasing to 440 °C and 450 °C, in 2030 and 2050, restpectively. Efficiencies refer to lower heating value.
A66: B | B66: With flue gas condensation (condensation through heat exchange with DH-water, only) and a back-pressure turbine/condenser system optimised for DH return temperature 40°C and flow 80°C
A67: C | B67: Annual average heat output is higher than nameplate because the total efficiency is constant, and the annual average electricity generation is lower than nameplate electricity output. The parasitic electricity consumption has been subtracted in the listed electricity efficiencies.
A68: D | B68: Additional heat potential for heat pump is the flue gas condensation potential remaining after the direct condensation stage (condensation by heat exchange with DH-water)
A69: E | B69: Focus on availability and ambitions of 2 years' continuous operation is expected to gradually reduce planned outage.
A70: F | B70: Regulation and start-up refer to electricity generation controlled by the turbine operation.The WtE facility would usually be operating at 100% thermal input, and the electricity output is controlled to the desired level by use of turbine by-pass, by which excess steam is used to produce DH-energy. Warm start-up time refers to 2 days down-time of the turbine.
A71: G | B71: The combustion process and boiler may be regulated approx. 1% per minute considering extensive use of inconell (in stead of refractory, which may limit rate of change to 0.5% per minute). Minimum load is typically 70% of thermal input under which limit it may be difficult to comply with the requirement of min. 2 sec residence time of the flue gas at min. 850 °C after the last air injection. Below this limit it may also be a challenge to ensure sufficient superheating of the steam. Warm start-up of the combustion process is typically 8 hours and cold start-up is 8 hours.
A72: H | B72: Assumed low SO2-emission 1 g/GJ in 2015 considering the use of flue gas condensation by wet scrubbing down-stream the flue gas treatment system. Sulphur content in fuel 270 g/GJ.
A73: I | B73: Increased focus on NOx reduction is expected in the future, requiring use of SNCR technology to its utmost potential by 2030 (at 60 g/GJ) and use of the more effective catalytic SCR-technology by 2050. The SCR-technology entails additional investment.
A74: J | B74: N2O is expected to be related primarily to the use of SNCR. This is why little N2O is expected when the SCR-deNOx technology is used (indicated by verly low NOx-level).
A75: K | B75: Variable O&M cost includes consumables (for FGT etc.), disposal of residues, small share of staff-cost and maintenance cost. Electricity consumption is not included, and revenues from sale of electricity and heat are not included. Taxes are not included.
A76: L | B76: Fixed O&M include amongst other things the major part of staffing and maintenance, analyses, research and development, accounting, insurances, fees, memberships, office. Not included are finance cost, depreciation and amortisation.
A77: M | B77: Installation includes civils works (including waste bunker) and project cost considering LOT-based tendering
A78: N | B78: Assuming LOT-based tendering of electromechanic equipment

Sheet 08 WtE CHP, Small
B1: Small Waste to Energy | H1: Back to Index
B3: Technology | C3: 08 Small Waste to Energy CHP, Back pressure turbine, 35 MW feed
C4: 2015 | D4: 2020 | E4: 2030 | F4: 2050 | G4: Uncertainty (2020) | I4: Uncertainty (2050) | K4: Note | L4: Ref
B5: Energy/technical data | G5: Lower | H5: Upper | I5: Lower | J5: Upper
B6: Generating capacity for one unit (MWe) | C6: 7.9 | D6: 7.9 | E6: 8.2 | F6: 8.3 | G6: 7.3 | H6: 8.5 | I6: 7.3 | J6: 9.1 | K6: A, B
B7: Incineration capacity (Fuel input) (tonnes/h) | C7: 11.9 | D7: 11.9 | E7: 11.9 | F7: 11.9 | G7: 11.9 | H7: 11.9 | I7: 11.9 | J7: 11.9 | K7: A, B
B8: Electricity efficiency, net (%), name plate | C8: 22.6 | D8: 22.6 | E8: 23.5 | F8: 23.7 | G8: 20.9 | H8: 24.3 | I8: 20.9 | J8: 25.9 | K8: A, B,C
B9: Electricity efficiency, net (%), annual average | C9: 21.4 | D9: 21.4 | E9: 22.3 | F9: 22.5 | G9: 18.8 | H9: 23.1 | I9: 18.8 | J9: 24.6 | K9: A, B,C
B10: Heat efficiency, net (%), name plate | C10: 78.5 | D10: 78.5 | E10: 77.8 | F10: 78.6 | G10: 75.5 | H10: 82.8 | I10: 72.3 | J10: 84.5 | K10: A, B
B11: Heat efficiency, net (%), annual average | C11: 79.6 | D11: 79.6 | E11: 79 | F11: 79.8 | G11: 77.6 | H11: 84.1 | I11: 74.4 | J11: 85.8 | K11: A, B, C
B12: Additional heat potential with heat pumps (% of thermal input) | C12: 4.1 | D12: 4.1 | E12: 4 | F12: 3.8 | G12: 2 | H12: 5.1 | I12: 1.9 | J12: 5.1 | K12: A, B, D
B13: Cb coefficient (40°C/80°C) | C13: 0.29 | D13: 0.29 | E13: 0.3 | F13: 0.3 | G13: 0.27 | H13: 0.31 | I13: 0.27 | J13: 0.33 | K13: A, B
B14: Cv coefficient (40°C/80°C) | C14: 1 | D14: 1 | E14: 1 | F14: 1 | G14: 1 | H14: 1 | I14: 1 | J14: 1 | K14: A, B
B15: Forced outage (%) | C15: 1 | D15: 1 | E15: 1 | F15: 1 | G15: 1 | H15: 1 | I15: 1 | J15: 1 | L15: 1
B16: Planned outage (weeks per year) | C16: 3.5 | D16: 3.3 | E16: 3 | F16: 2.5 | G16: 2.8 | H16: 3.8 | I16: 1.8 | J16: 3.1 | K16: E | L16: 1
B17: Technical lifetime (years) | C17: 25 | D17: 25 | E17: 25 | F17: 25 | G17: 20 | H17: 35 | I17: 20 | J17: 35 | L17: 1
B18: Construction time (years) | C18: 2.5 | D18: 2.5 | E18: 2.5 | F18: 2.5 | G18: 2 | H18: 3 | I18: 1.5 | J18: 3 | L18: 1
B19: Space requirement (1000 m2/MWe) | C19: 2.5 | D19: 2.5 | E19: 2.4 | F19: 2.4 | G19: 2.2 | H19: 2.9 | I19: 1.8 | J19: 3 | L19: 1
B21: Primary regulation (% per 30 seconds) | C21: NA | D21: NA | E21: NA | F21: NA | G21: NA | H21: NA | I21: NA | J21: NA | K21: F
B22: Secondary regulation (% per minute) | C22: 10 | D22: 10 | E22: 10 | F22: 10 | G22: 10 | H22: 10 | I22: 10 | J22: 10 | K22: F, G
B23: Minimum load (% of full load) | C23: 20 | D23: 20 | E23: 20 | F23: 20 | G23: 20 | H23: 20 | I23: 20 | J23: 20 | K23: F, G
B24: Warm start-up time (hours) | C24: 0.5 | D24: 0.5 | E24: 0.5 | F24: 0.5 | G24: 0.5 | H24: 0.5 | I24: 0.5 | J24: 0.5 | K24: F, G
B25: Cold start-up time (hours) | C25: 2 | D25: 2 | E25: 2 | F25: 2 | G25: 2 | H25: 2 | I25: 2 | J25: 2 | K25: F, G
B26: Environment
B27: SO2 (degree of desulphuring, %) | C27: 99.8 | D27: 99.8 | E27: 99.8 | F27: 99.8 | G27: 99 | H27: 99.9 | I27: 99.5 | J27: 99.9 | K27: H | L27: 1
B28: NOX (g per GJ fuel) | C28: 90 | D28: 67 | E28: 56 | F28: 22 | G28: 11 | H28: 84 | I28: 5 | J28: 56 | K28: I | L28: 2;3
B29: CH4 (g per GJ fuel) | C29: 0.3 | D29: 0.1 | E29: 0.1 | F29: 0.1 | G29: 0 | H29: 0.1 | I29: 0 | J29: 0.1 | L29: 2
B30: N2O (g per GJ fuel) | C30: 1.2 | D30: 1 | E30: 1 | F30: 1 | G30: 1 | H30: 3 | I30: 0 | J30: 1 | K30: J | L30: 2
B31: Particles (g per GJ fuel) | C31: 0.3 | D31: 0.3 | E31: 0.3 | F31: 0.3 | G31: 0.1 | H31: 2 | I31: 0.1 | J31: 1 | K31: J | L31: 2
B32: Financial data
B33: Nominal investment (M€/MWe) | C33: 10.7 | D33: 10.5 | E33: 9.6 | F33: 8.8 | G33: 8.9 | H33: 12.3 | I33: 6.4 | J33: 11 | K33: N | L33: 1
B34: - of which equipment | C34: 6.7 | D34: 6.5 | E34: 6 | F34: 5.6 | G34: 5.5 | H34: 7.7 | I34: 4 | J34: 6.9 | K34: N | L34: 1
B35: - of which installation | C35: 4.1 | D35: 4 | E35: 3.6 | F35: 3.2 | G35: 3.4 | H35: 4.5 | I35: 2.4 | J35: 4.1 | K35: M | L35: 1
B36: Fixed O&M (€/MWe/year) | C36: 427800 | D36: 413600 | E36: 372400 | F36: 329500 | G36: 380500 | H36: 446700 | I36: 276500 | J36: 375600 | K36: L | L36: 1
B37: Variable O&M (€/MWh_e) | C37: 25.6 | D37: 25.6 | E37: 24.6 | F37: 24.4 | G37: 21.7 | H37: 29.4 | I37: 18.3 | J37: 30.5 | K37: K | L37: 1
B38: Technology specific data
B39: Steam reheat | C39: None | D39: None | E39: None | F39: None | G39: None | H39: None | I39: None | J39: None
B40: Flue gas condensation | C40: Yes | D40: Yes | E40: Yes | F40: Yes | G40: Yes | H40: Yes | I40: Yes | J40: Yes
B41: Combustion air humidification | C41: No | D41: No | E41: No | F41: No | G41: No | H41: Yes | I41: No | J41: Yes
B42: Nominal investment (M€/MW fuel input) | C42: 2.42 | D42: 2.36 | E42: 2.25 | F42: 2.09 | G42: 2.01 | H42: 2.77 | I42: 1.52 | J42: 2.6 | K42: N | L42: 1
B43: - of which equipment | C43: 1.92 | D43: 1.47 | E43: 1.4 | F43: 1.32 | G43: 1.25 | H43: 1.75 | I43: 0.95 | J43: 1.64 | K43: N | L43: 1
B44: - of which installation | C44: 1.17 | D44: 0.89 | E44: 0.85 | F44: 0.77 | G44: 0.76 | H44: 1.03 | I44: 0.58 | J44: 0.96 | K44: M | L44: 1
B45: Fixed O&M (€/MW input/year) | C45: 96500 | D45: 93400 | E45: 87400 | F45: 78100 | G45: 79400 | H45: 108500 | I45: 57700 | J45: 97300 | K45: L | L45: 1
B46: Variable O&M (€/MWh input) | C46: 5.8 | D46: 5.8 | E46: 5.8 | F46: 5.8 | G46: 4.9 | H46: 6.6 | I46: 4.3 | J46: 7.2 | K46: K | L46: 1
B47: Nominal investment (€/(tonne/year)) | C47: 891 | D47: 869 | E47: 827 | F47: 770 | G47: 739 | H47: 1021 | I47: 561 | J47: 957 | K47: N | L47: 1
B48: Fixed O&M (€/tonne) | C48: 36 | D48: 34 | E48: 32 | F48: 29 | G48: 29 | H48: 40 | I48: 21 | J48: 36 | K48: L | L48: 1;4
B49: Variable O&M (€/tonne) | C49: 17 | D49: 17 | E49: 17 | F49: 17 | G49: 14 | H49: 20 | I49: 13 | J49: 21 | K49: K | L49: 1;4
A52: References:
A53: 1 | B53: Rambøll present work, range of WtE-projects
A54: 2 | B54: Emission factors of 2006: 102 g/GJ NOx, <8,3 g/GJ for SO2, <0,34 g/GJ for CH4, 1,2 g/GJ for N2O, cf.
B55: Nielsen, M., Nielsen, O.-K. & Thomsen, M. 2010: Emissions from decentralised CHP plants
B56: 2007 - Energinet.dk Environmental project no. 07/1882. Project report 5 – Emission factors and
B57: emission inventory for decentralised CHP production. National Environmental Research Institute,
B58: Aarhus University. 113 pp. – NERI Technical report No. 786.
B59: http://www.dmu.dk/Pub/FR786.pdf.
A60: 3 | B60: Environmental permit of recently constructed WtE-facility includes NOx limit value of 180 mg/Nm³ =100 g/GJ. Operation is expected well below limit value. Cf. Miljøstyrelsen, "Tillæg til miljøgodkendelse, Ny ovnlinje 5 på Nordforbrænding, Juni 2013,"
B61: http://mst.dk/media/mst/Attachments/Tillgtilmiljgodkendelseovn5Juni2013.pdf
A62: 4 | B62: To scenarier for tilpasning af affaldsforbrændingskapaciteten i Danmark. EA Energianalyse 2014.
A64: Notes:
A65: A | B65: Assumed lower heating value 10.6 MJ/kg, waste input 11.9 tph = tonnes per hour (incineration capacity), corresponding to thermal input of 35 MW. Live steam pressure in base case 50 bara, temperature 425 °C of 2015 and 2020, increasing to 440 °C and 450 °C, in 2030 and 2050, respectively. Efficiencies refer to lower heating value.
A66: B | B66: With flue gas condensation (condensation through heat exchange with DH-water, only) and a back-pressure turbine/condenser system optimised for DH return temperature 40°C and flow 80°C
A67: C | B67: Annual average heat output is higher than nameplate because the total efficiency is constant, and the annual average electricity generation is lower than nameplate electricity output. The parasitic electricity consumption has been subtracted in the listed electricity efficiencies.
A68: D | B68: Additional heat potential for heat pump is the flue gas condensation potential remaining after the direct condensation stage (condensation by heat exchange with DH-water)
A69: E | B69: Focus on availability and ambitions of 2 years' continuous operation is expected to gradually reduce planned outage.
A70: F | B70: Regulation and start-up refer to electricity generation controlled by the turbine operation.The WtE facility would usually be operating at 100% thermal input, and the electricity output is controlled to the desired level by use of turbine by-pass, by which excess steam is used to produce DH-energy. Warm start-up time refers to 2 days down-time of the turbine.
A71: G | B71: The combustion process and boiler may be regulated approx. 1% per minute considering extensive use of inconell (in stead of refractory, which may limit rate of change to 0.5% per minute). Minimum load is typically 70% of thermal input under which limit it may be difficult to comply with the requirement of min. 2 sec residence time of the flue gas at min. 850 °C after the last air injection. Below this limit it may also be a challenge to ensure sufficient superheating of the steam. Warm start-up of the combustion process is typically 8 hours and cold start-up is 8 hours.
A72: H | B72: Assumed low SO2-emission 1 g/GJ in 2015 considering the use of flue gas condensation by wet scrubbing down-stream the flue gas treatment system. Sulphur content in fuel 270 g/GJ.
A73: I | B73: Increased focus on NOx reduction is expected in the future, requiring use of SNCR technology to its utmost potential by 2030 (at 60 g/GJ) and use of the more effective catalytic SCR-technology by 2050. The SCR-technology entails additional investment.
A74: J | B74: N2O is expected to be related primarily to the use of SNCR. This is why little N2O is expected when the SCR-deNOx technology is used (indicated by verly low NOx-level).
A75: K | B75: Variable O&M cost includes consumables (for FGT etc.), disposal of residues, small share of staff-cost and maintenance cost. Electricity consumption is not included, and revenues from sale of electricity and heat are not included. Taxes are not included.
A76: L | B76: Fixed O&M include amongst other things the major part of staffing and maintenance, analyses, research and development, accounting, insurances, fees, memberships, office. Not included are finance cost, depreciation and amortisation.
A77: M | B77: Installation includes civils works (including waste bunker) and project cost considering LOT-based tendering
A78: N | B78: Assuming LOT-based tendering of electromechanic equipment

Sheet 08 WtE HOP
B1: Technology | H1: Back to Index
B3: Technology | C3: WtE, HOP, 35 MW feed
C4: 2015 | D4: 2020 | E4: 2030 | F4: 2050 | G4: Uncertainty (2020) | I4: Uncertainty (2050) | K4: Note | L4: Ref
B5: Energy/technical data | G5: Lower | H5: Upper | I5: Lower | J5: Upper
B6: Heat generation capacity for one unit (MW) | C6: 36.6 | D6: 36.6 | E6: 36.7 | F6: 36.9 | G6: 36.3 | H6: 37.5 | I6: 36.3 | J6: 37.7 | K6: A, B
B7: Incineration capacity (Fuel input) (tonnes/h) | C7: 11.9 | D7: 11.9 | E7: 11.9 | F7: 11.9 | G7: 11.9 | H7: 11.9 | I7: 11.9 | J7: 11.9 | K7: A, B
B8: Total heat efficiency, net (%), ref. LHV, name plate | C8: 104.7 | D8: 104.7 | E8: 105 | F8: 105.5 | G8: 104 | H8: 107 | I8: 104 | J8: 108 | K8: A, B, C
B9: Total heat efficiency , net (%), ref. LHV, annual average | C9: 104.7 | D9: 104.7 | E9: 105 | F9: 105.5 | G9: 104 | H9: 107 | I9: 104 | J9: 108 | K9: A, B, C
B10: Additional heat potential with heat pumps (% of thermal input) | C10: 4.1 | D10: 4.1 | E10: 4 | F10: 3.7 | G10: 2 | H10: 5 | I10: 2 | J10: 5 | K10: A, B, D
B11: Auxiliary electricity consumption (% of heat gen) | C11: 2.6 | D11: 2.6 | E11: 2.6 | F11: 2.5 | G11: 2 | H11: 2.7 | I11: 1.6 | J11: 2.6 | K11: A, B, C
B12: Forced outage (%) | C12: 1 | D12: 1 | E12: 1 | F12: 1 | G12: 1 | H12: 1 | I12: 1 | J12: 1 | L12: 1
B13: Planned outage (weeks per year) | C13: 3 | D13: 2.9 | E13: 2.6 | F13: 2.1 | G13: 2.4 | H13: 3.3 | I13: 1.6 | J13: 2.6 | K13: E | L13: 1
B14: Technical lifetime (years) | C14: 25 | D14: 25 | E14: 25 | F14: 25 | G14: 20 | H14: 35 | I14: 20 | J14: 35 | L14: 1
B15: Construction time (years) | C15: 2 | D15: 2 | E15: 2 | F15: 2 | G15: 1.5 | H15: 2.5 | I15: 1.5 | J15: 2.5 | L15: 1
B16: Space requirement (1000 m2/MWth heat output) | C16: 0.55 | D16: 0.55 | E16: 0.54 | F16: 0.54 | G16: 0.46 | H16: 0.63 | I16: 0.41 | J16: 0.68 | L16: 1
B18: Primary regulation (% per 30 seconds) | C18: NA | D18: NA | E18: NA | F18: NA | G18: NA | H18: NA | I18: NA | J18: NA | K18: F
B19: Secondary regulation (% per minute) | C19: 1 | D19: 1 | E19: 1 | F19: 1 | G19: 1 | H19: 1 | I19: 1 | J19: 1 | K19: F, G
B20: Minimum load (% of full load) | C20: 70 | D20: 70 | E20: 70 | F20: 70 | G20: 70 | H20: 70 | I20: 70 | J20: 70 | K20: F, G
B21: Warm start-up time (hours) | C21: 8 | D21: 8 | E21: 8 | F21: 8 | G21: 8 | H21: 8 | I21: 8 | J21: 8 | K21: F, G
B22: Cold start-up time (hours) | C22: 12 | D22: 12 | E22: 12 | F22: 12 | G22: 12 | H22: 12 | I22: 12 | J22: 12 | K22: F, G
B23: Environment
B24: SO2 (degree of desulphuring, %) | C24: 99.8 | D24: 99.8 | E24: 99.8 | F24: 99.8 | G24: 99 | H24: 99.9 | I24: 99.5 | J24: 99.9 | K24: H | L24: 1
B25: NOX (g per GJ fuel) | C25: 90 | D25: 67 | E25: 56 | F25: 22 | G25: 11 | H25: 84 | I25: 5 | J25: 56 | K25: I | L25: 2;3
B26: CH4 (g per GJ fuel) | C26: 0.3 | D26: 0.1 | E26: 0.1 | F26: 0.1 | G26: 0 | H26: 0.1 | I26: 0 | J26: 0.1 | L26: 2
B27: N2O (g per GJ fuel) | C27: 1.2 | D27: 1 | E27: 1 | F27: 1 | G27: 1 | H27: 3 | I27: 0 | J27: 1 | K27: J | L27: 2
B28: Particles (g per GJ fuel) | C28: 0.3 | D28: 0.3 | E28: 0.3 | F28: 0.3 | G28: 0.1 | H28: 2 | I28: 0.1 | J28: 1 | K28: J | L28: 2
B29: Financial data
B30: Nominal investment (M€/MWth - heat output) | C30: 1.8 | D30: 1.75 | E30: 1.66 | F30: 1.55 | G30: 1.53 | H30: 2.12 | I30: 1.24 | J30: 2.13 | K30: P
B31: - of which equipment | C31: 1.03 | D31: 1.01 | E31: 0.96 | F31: 0.92 | G31: 0.88 | H31: 1.24 | I31: 0.71 | J31: 1.24 | K31: P
B32: - of which installation | C32: 0.77 | D32: 0.75 | E32: 0.71 | F32: 0.64 | G32: 0.65 | H32: 0.88 | I32: 0.53 | J32: 0.88 | K32: P
B33: Fixed O&M (€/MWth/year), heat output | C33: 81300 | D33: 78600 | E33: 73300 | F33: 65300 | G33: 68000 | H33: 90100 | I33: 50700 | J33: 82500 | K33: P
B34: Variable O&M (€/MWh) heat output | C34: 5.5 | D34: 5.5 | E34: 5.5 | F34: 5.5 | G34: 4.7 | H34: 6.3 | I34: 4.1 | J34: 6.8 | K34: P
B35: Technology specific data
B36: Flue gas condensation | C36: Yes | D36: Yes | E36: Yes | F36: Yes | G36: Yes | H36: Yes | I36: Yes | J36: Yes | K36: N
B37: Combustion air humidification | C37: No | D37: No | E37: No | F37: No | G37: No | H37: Yes | I37: No | J37: Yes | K37: N
B38: Nominal investment (M€/MW fuel input) | C38: 1.88 | D38: 1.84 | E38: 1.75 | F38: 1.64 | G38: 1.6 | H38: 2.22 | I38: 1.31 | J38: 2.24 | K38: N | L38: 1
B39: - of which equipment | C39: 1.08 | D39: 1.05 | E39: 1 | F39: 0.97 | G39: 0.92 | H39: 1.3 | I39: 0.75 | J39: 1.31 | K39: N | L39: 1
B40: - of which installation | C40: 0.8 | D40: 0.78 | E40: 0.74 | F40: 0.67 | G40: 0.68 | H40: 0.92 | I40: 0.56 | J40: 0.93 | K40: M | L40: 1
B41: Fixed O&M (€/MW input/year) | C41: 85200 | D41: 82300 | E41: 77000 | F41: 68800 | G41: 70500 | H41: 96600 | I41: 52600 | J41: 88800 | K41: L | L41: 1
B42: Variable O&M (€/MWh input) | C42: 7.4 | D42: 7.6 | E42: 8.4 | F42: 8.7 | G42: 6.2 | H42: 8.5 | I42: 6.1 | J42: 10.3
B43: - of which is electricity costs (€/MWh) | C43: 1.6 | D43: 1.8 | E43: 2.6 | F43: 2.9 | G43: 1.3 | H43: 1.9 | I43: 1.8 | J43: 3.1 | K43: C
B44: - of which is other O&M costs (€/MWh) | C44: 5.8 | D44: 5.8 | E44: 5.8 | F44: 5.8 | G44: 4.9 | H44: 6.6 | I44: 4.3 | J44: 7.2 | K44: K | L44: 1
B45: Nominal investment (€/(tonne/year)) | C45: 693 | D45: 676 | E45: 643 | F45: 604 | G45: 589 | H45: 819 | I45: 482 | J45: 826 | K45: N | L45: 1
B46: Fixed O&M (€/tonne) | C46: 31 | D46: 30 | E46: 28 | F46: 25 | G46: 26 | H46: 36 | I46: 19 | J46: 33 | K46: L | L46: 1;4
B47: Variable O&M (€/tonne) | C47: 17 | D47: 17 | E47: 17 | F47: 17 | G47: 14 | H47: 20 | I47: 13 | J47: 21 | K47: K | L47: 1;4
A49: References:
A50: 1 | B50: Rambøll present work, range of WtE-projects
A51: 2 | B51: Emission factors of 2006: 102 g/GJ NOx, <8,3 g/GJ for SO2, <0,34 g/GJ for CH4, 1,2 g/GJ for N2O, cf.
B52: Nielsen, M., Nielsen, O.-K. & Thomsen, M. 2010: Emissions from decentralised CHP plants
B53: 2007 - Energinet.dk Environmental project no. 07/1882. Project report 5 – Emission factors and
B54: emission inventory for decentralised CHP production. National Environmental Research Institute,
B55: Aarhus University. 113 pp. – NERI Technical report No. 786.
B56: http://www.dmu.dk/Pub/FR786.pdf.
A57: 3 | B57: Environmental permit of recently constructed WtE-facility includes NOx limit value of 180 mg/Nm³ =100 g/GJ. Operation is expected well below limit value. Cf. Miljøstyrelsen, "Tillæg til miljøgodkendelse, Ny ovnlinje 5 på Nordforbrænding, Juni 2013,"
B58: http://mst.dk/media/mst/Attachments/Tillgtilmiljgodkendelseovn5Juni2013.pdf
A59: 4 | B59: To scenarier for tilpasning af affaldsforbrændingskapaciteten i Danmark. EA Energianalyse 2014.
A61: Notes:
A62: A | B62: Assumed lower heating value 10.6 MJ/kg, waste input 11.9 tph = tonnes per hour (incineration capacity), corresponding to thermal input of 35 MW. Efficiencies refer to lower heating value.
A63: B | B63: With flue gas condensation (condensation through heat exchange with DH-water, only), DH return temperature 40°C and flow 80°C
A64: C | B64: The stated total efficiency does NOT consider auxiliary electricity consumption. It describes the total net amount of heat produced at the plant. This is contrary to CHP where the auxiliary electricity is subtracted from the production to yield the net electricity efficiency. Instead the cost of auxiliary electricity consumption is included in variable O&M and is calculated using the following electricity prices in €/MWh: 2015: 63, 2020: 69, 2030: 101, 2050: 117. These prices include production costs and transport tariffs, but not any taxes or subsidies for renewable energy.
A65: D | B65: Additional heat potential for heat pump is the flue gas condensation potential remaining after the direct condensation stage (condensation by heat exchange with DH-water)
A66: E | B66: Focus on availability and ambitions of 2 years' continuous operation is expected to gradually reduce planned outage.
A67: F | B67: Regulation and start-up refer to electricity generation controlled by the turbine operation.The WtE facility would usually be operating at 100% thermal input, and the electricity output is controlled to the desired level by use of turbine by-pass, by which excess steam is used to produce DH-energy. Warm start-up time refers to 2 days down-time of the turbine.
A68: G | B68: The combustion process and boiler may be regulated approx. 1% per minute considering extensive use of inconell (in stead of refractory, which may limit rate of change to 0.5% per minute). Minimum load is typically 70% of thermal input under which limit it may be difficult to comply with the requirement of min. 2 sec residence time of the flue gas at min. 850 °C after the last air injection. Below this limit it may also be a challenge to ensure sufficient superheating of the steam. Warm start-up of the combustion process is typically 8 hours and cold start-up is 8 hours.
A69: H | B69: Assumed low SO2-emission 1 g/GJ in 2015 considering the use of flue gas condensation by wet scrubbing down-stream the flue gas treatment system. Sulphur content in fuel 270 g/GJ
A70: I | B70: Increased focus on NOx reduction is expected in the future, requiring use of SNCR technology to its utmost potential by 2030 (at 60 g/GJ) and use of the more effective catalytic SCR-technology by 2050. The SCR-technology entails additional investment.
A71: J | B71: N2O is expected to be related primarily to the use of SNCR. This is why little N2O is expected when the SCR-deNOx technology is used (indicated by verly low NOx-level).
A72: K | B72: Variable O&M cost includes consumables (for FGT etc.), disposal of residues, small share of staff-cost and maintenance cost. Electricity consumption is not included, and revenues from sale of electricity and heat are not included. Taxes are not included.
A73: L | B73: Fixed O&M include amongst other things the major part of staffing and maintenance, analyses, research and development, accounting, insurances, fees, memberships, office. Not included are finance cost, depreciation and amortisation.
A74: M | B74: Installation includes civils works (including waste bunker) and project cost considering LOT-based tendering
A75: N | B75: Assuming LOT-based tendering of electromechanic equipment
A76: P | B76: Reference to heat output because of the lack of electricity production

Sheet 09 Wood Chips, Large
B1: Large Wood Chips | H1: Back to Index
B3: Technology | C3: 09 Large Wood Chips CHP, 600 MW feed, back pressure
C4: 2015 | D4: 2020 | E4: 2030 | F4: 2050 | G4: Uncertainty (2020) | I4: Uncertainty (2050) | K4: Note | L4: Ref
B5: Energy/technical data | G5: Lower | H5: Upper | I5: Lower | J5: Upper
B6: Generating capacity for one unit (MWe) | C6: 176.5 | D6: 176.9 | E6: 177.5 | F6: 174.4 | G6: 162.9 | H6: 235 | I6: 170.9 | J6: 242.6 | K6: A
B7: Electricity efficiency, net (%), name plate | C7: 29.4 | D7: 29.5 | E7: 29.6 | F7: 29.1 | G7: 27 | H7: 39 | I7: 28 | J7: 40 | K7: A, H | L7: 1
B8: Electricity efficiency, net (%), annual average | C8: 27.9 | D8: 28 | E8: 28.1 | F8: 27.6 | G8: 24 | H8: 37 | I8: 26 | J8: 38 | K8: A, H | L8: 1
B9: Heat efficiency, net (%), name plate | C9: 82 | D9: 82.2 | E9: 82 | F9: 82.6 | G9: 45 | H9: 84 | I9: 43 | J9: 83 | K9: B, H | L9: 1
B10: Heat efficiency, net (%), annual average | C10: 83.5 | D10: 83.6 | E10: 83.5 | F10: 84 | G10: 47 | H10: 86 | I10: 46 | J10: 85 | K10: B, H | L10: 1
B11: Additional heat potential with heat pumps (% of thermal input) | C11: 2 | D11: 1.9 | E11: 1.9 | F11: 1.9 | G11: 2 | H11: 30 | I11: 2 | J11: 30 | K11: C | L11: 1
B12: Cb coefficient (40°C/80°C) | C12: 0.36 | D12: 0.36 | E12: 0.36 | F12: 0.35 | G12: 0.33 | H12: 0.48 | I12: 0.34 | J12: 0.49
B13: Cv coefficient (40°C/80°C) | C13: 1 | D13: 1 | E13: 1 | F13: 1 | G13: 1 | H13: 1 | I13: 1 | J13: 1
B14: Forced outage (%) | C14: 3 | D14: 3 | E14: 3 | F14: 3 | G14: 3 | H14: 3 | I14: 3 | J14: 3
B15: Planned outage (weeks per year) | C15: 3 | D15: 3 | E15: 3 | F15: 3 | G15: 2.6 | H15: 3.5 | I15: 2.3 | J15: 3.8
B16: Technical lifetime (years) | C16: 25 | D16: 25 | E16: 25 | F16: 25 | G16: 20 | H16: 35 | I16: 20 | J16: 35 | L16: 1
B17: Construction time (years) | C17: 5 | D17: 5 | E17: 5 | F17: 5 | G17: 4.5 | H17: 5.5 | I17: 4 | J17: 5.5 | L17: 1
B18: Space requirement (1000 m2/MWe) | C18: 0.08 | D18: 0.08 | E18: 0.08 | F18: 0.09 | G18: 0.07 | H18: 0.1 | I18: 0.06 | J18: 0.11 | L18: 1
B20: Primary regulation (% per 30 seconds) | C20: 2 | D20: 2 | E20: 2 | F20: 2 | G20: 2 | H20: 2 | I20: 2 | J20: 2
B21: Secondary regulation (% per minute) | C21: 4 | D21: 4 | E21: 4 | F21: 4 | G21: 4 | H21: 4 | I21: 4 | J21: 4 | K21: D | L21: 1
B22: Minimum load (% of full load) | C22: 45 | D22: 45 | E22: 45 | F22: 45 | G22: 45 | H22: 45 | I22: 45 | J22: 45
B23: Warm start-up time (hours) | C23: 2 | D23: 2 | E23: 2 | F23: 2 | G23: 2 | H23: 2 | I23: 2 | J23: 2 | K23: E+G | L23: 1
B24: Cold start-up time (hours) | C24: 12 | D24: 12 | E24: 12 | F24: 12 | G24: 12 | H24: 12 | I24: 12 | J24: 12 | L24: 1
B25: Environment
B26: SO2 (degree of desulphuring, %) | C26: 98 | D26: 98 | E26: 98 | F26: 98 | G26: 94.9 | H26: 99 | I26: 98 | J26: 99 | K26: F, L | L26: 1
B27: NOX (g per GJ fuel) | C27: 30 | D27: 24 | E27: 20 | F27: 12 | G27: 12 | H27: 30 | I27: 8 | J27: 20 | K27: F, L | L27: 1
B28: CH4 (g per GJ fuel) | C28: 3 | D28: 2 | E28: 2 | F28: 1 | G28: 1 | H28: 3 | I28: 0 | J28: 3 | K28: F, L | L28: 1
B29: N2O (g per GJ fuel) | C29: 10 | D29: 8 | E29: 6 | F29: 5 | G29: 5 | H29: 10 | I29: 3 | J29: 10 | K29: F, L | L29: 1
B30: Particles (g per GJ fuel) | C30: 0.3 | D30: 0.3 | E30: 0.3 | F30: 0.3 | G30: 0.1 | H30: 2 | I30: 0.1 | J30: 1 | K30: F, L | L30: 1
B31: Financial data
B32: Nominal investment (M€/MWe) | C32: 3.5 | D32: 3.4 | E32: 3.2 | F32: 3 | G32: 2.9 | H32: 4.1 | I32: 2.4 | J32: 4.2 | K32: J, K, L | L32: 1
B33: - of which equipment | C33: 2.3 | D33: 2.2 | E33: 2.1 | F33: 2 | G33: 1.8 | H33: 2.7 | I33: 1.5 | J33: 2.7 | K33: K, L
B34: - of which installation | C34: 1.2 | D34: 1.2 | E34: 1.1 | F34: 1 | G34: 1 | H34: 1.4 | I34: 0.9 | J34: 1.4 | K34: K, L
B35: Fixed O&M (€/MWe/year) | C35: 100500 | D35: 97600 | E35: 92300 | F35: 86300 | G35: 86600 | H35: 89600 | I35: 67200 | J35: 81300
B36: Variable O&M (€/MWh_e) | C36: 3.8 | D36: 3.8 | E36: 3.7 | F36: 3.8 | G36: 3.2 | H36: 4.3 | I36: 2.9 | J36: 4.8
B37: Technology specific data
B38: Steam reheat | C38: None | D38: None | E38: None | F38: None | G38: None | H38: Yes | I38: None | J38: Yes
B39: Flue gas condensation | C39: Yes | D39: Yes | E39: Yes | F39: Yes | G39: No | H39: Yes | I39: No | J39: Yes
B40: Combustion air humidification | C40: Yes | D40: Yes | E40: Yes | F40: Yes | G40: No | H40: Yes | I40: No | J40: Yes
B41: Nominal investment (M€/MW fuel input) | C41: 1.03 | D41: 1 | E41: 0.95 | F41: 0.88 | G41: 0.85 | H41: 1.2 | I41: 0.7 | J41: 1.21 | K41: J, K, L | L41: 1
B42: - of which equipment | C42: 0.66 | D42: 0.65 | E42: 0.62 | F42: 0.58 | G42: 0.54 | H42: 0.78 | I42: 0.44 | J42: 0.79 | K42: K, L
B43: - of which installation | C43: 0.36 | D43: 0.35 | E43: 0.34 | F43: 0.3 | G43: 0.31 | H43: 0.42 | I43: 0.25 | J43: 0.42 | K43: K, L
B44: Fixed O&M (€/MW input/year) | C44: 29500 | D44: 28800 | E44: 27300 | F44: 25100 | G44: 24300 | H44: 33900 | I44: 19100 | J44: 32900
B45: Variable O&M (€/MWh input) | C45: 1.1 | D45: 1.1 | E45: 1.1 | F45: 1.1 | G45: 0.9 | H45: 1.3 | I45: 0.8 | J45: 1.4
B46: Fuel storage specific cost in excess of 2 days (M€/MW_input/storage day) | C46: 0.01 | D46: 0.01 | E46: 0.009 | F46: 0.008 | G46: 0.009 | H46: 0.012 | I46: 0.007 | J46: 0.012 | K46: K
A49: References:
A50: 1 | B50: Rambøll Danmark, internal evaluation based on either existing projects, supplier offers, or pre-project studies.
A51: Notes:
A52: A | B52: The boiler in the plant is a circulating fluid bed boiler (CFB) producing steam to be used in a subsequent back pressure turbine without steam re-heat.
A53: B | B53: Through a turbine by-pass all the produced steam energy can be used for District Heat production.
A54: C | B54: Plants of this type may achieve up to 110 % efficiency using flue gas condensation with moist wood chips and 115 % efficiency with both flue gas condensation and absorption heat pumps activated. The colder the return temperature of the district heating, the higher the total efficiency at direct condensation. Direct condensation and combustion air humidification are included in all cases except in lower range of 2020 and 2050.
A55: D | B55: Secondary regulation normally relates to power production; for this type of plant it may not be of importance since load will normally follow heat consumption.
A56: E | B56: A limiting factor for the hot and cold start-up times is the size of the hot water tank (deaerator). Warm start-up time is particularly low for fluid bed types of plants.
A57: F | B57: It is to be expected that the NOx level is low from the CFB, and that the necessary DeNOx can be accomplished using SNCR, except where anticipated emission levels are below 20 g/GJ, in which case SCR is used.
A58: G | B58: Warm start is starting with a glowing bed and a warm deaerator.
A59: H | B59: The total efficiency is the sum of electricity efficiency and heat efficiency, applicable for "name plate" and "annual average", respectively. The "annual average" electricity efficiency is lower than "name plate" due to turbine outages and other incidents. The resulting lost power production is recovered as heat. This is why "annual average" heat efficiency is higher than "name plate" heat. Efficiencies refer to lower heating value. The parasitic electricity consumption has been subtracted in the listed electricity efficiencies.
A60: I | B60: Financial data and Technological specific data are essentially the total cost either divided by the electric net capacity or by the net heat capacity, i.e. corresponding to the indicated name plate efficiencies. This is to indicate that new plants may not fully take advantage of the technical capabilities for either full electricity production capacity or heat production capacity. The two cost for electricity and heat, respectively, are not to be added up!
A61: J | B61: Investment applies to a standard plant. There could be cost related to the actual project or site that adds to the total investment, e.g. additional fuel storage, facilities for chipping of logs, conditions for foundation and harbour facilities. Financial data and Technological specific data are essentially the total cost either divided by the electric net capacity, i.e. corresponding to the indicated name plate efficiencies, or by the thermal input. This is to indicate that new plants may not fully take advantage of the technical capabilities for full electricity production capacity. The two cost for electricity and thermal input, respectively, are not to be added up!
A62: K | B62: Note that investments include only two days fuel storage, and more may be optimal, depending on fuel supply opportunities and heat supply obligations, amongst other things. The additional investment is listed in the bottom row.
A63: L | B63: Includes the following processes: DeNOx (ammonia injection (SNCR) or catalytic (SCR)), SO2 capture by injection of lime or the use of another SO2 absorbing system, dust abatement by bag house filters

Sheet 09 Wood Chips, Medium
B1: Medium Wood Chips | H1: Back to Index
B3: Technology | C3: 09 Medium Wood Chips CHP, 80 MW feed, back pressure
C4: 2015 | D4: 2020 | E4: 2030 | F4: 2050 | G4: Uncertainty (2020) | I4: Uncertainty (2050) | K4: Note | L4: Ref
B5: Energy/technical data | G5: Lower | H5: Upper | I5: Lower | J5: Upper
B6: Generating capacity for one unit (MWe) | C6: 23.1 | D6: 23.1 | E6: 23.2 | F6: 22.8 | G6: 21.8 | H6: 30.9 | I6: 22.4 | J6: 31.8 | K6: A
B7: Electricity efficiency, net (%), name plate | C7: 28.9 | D7: 28.9 | E7: 29 | F7: 28.5 | G7: 27 | H7: 39 | I7: 28 | J7: 40 | K7: A, H, F | L7: 1
B8: Electricity efficiency, net (%), annual average | C8: 27.4 | D8: 27.4 | E8: 27.5 | F8: 27 | G8: 25 | H8: 37 | I8: 25 | J8: 38 | K8: A, H, F | L8: 1
B9: Heat efficiency, net (%), name plate | C9: 82.1 | D9: 82.1 | E9: 81.9 | F9: 82.5 | G9: 46 | H9: 84 | I9: 43 | J9: 83 | K9: B, H | L9: 1
B10: Heat efficiency, net (%), annual average | C10: 83.5 | D10: 83.5 | E10: 83.4 | F10: 83.9 | G10: 49 | H10: 86 | I10: 46 | J10: 85 | K10: B, H | L10: 1
B11: Additional heat potential with heat pumps (% of thermal input) | C11: 2 | D11: 2 | E11: 2 | F11: 2 | G11: 2 | H11: 28 | I11: 2 | J11: 30 | K11: C | L11: 1
B12: Cb coefficient (40°C/80°C) | C12: 0.35 | D12: 0.35 | E12: 0.35 | F12: 0.35 | G12: 0.33 | H12: 0.47 | I12: 0.34 | J12: 0.48
B13: Cv coefficient (40°C/80°C) | C13: 1 | D13: 1 | E13: 1 | F13: 1 | G13: 1 | H13: 1 | I13: 1 | J13: 1 | K13: I
B14: Forced outage (%) | C14: 3 | D14: 3 | E14: 3 | F14: 3 | G14: 3 | H14: 3 | I14: 3 | J14: 3
B15: Planned outage (weeks per year) | C15: 3 | D15: 3 | E15: 3 | F15: 3 | G15: 2.6 | H15: 3.5 | I15: 2.3 | J15: 3.8
B16: Technical lifetime (years) | C16: 25 | D16: 25 | E16: 25 | F16: 25 | G16: 20 | H16: 35 | I16: 20 | J16: 35 | L16: 1
B17: Construction time (years) | C17: 2.5 | D17: 2.5 | E17: 2.5 | F17: 2.5 | G17: 2 | H17: 3 | I17: 1.5 | J17: 3 | L17: 1
B18: Space requirement (1000 m2/MWe) | C18: 0.2 | D18: 0.2 | E18: 0.2 | F18: 0.2 | G18: 0.2 | H18: 0.2 | I18: 0.2 | J18: 0.3
B20: Primary regulation (% per 30 seconds) | C20: NA | D20: NA | E20: NA | F20: NA | G20: NA | H20: NA | I20: NA | J20: NA
B21: Secondary regulation (% per minute) | C21: 4 | D21: 4 | E21: 4 | F21: 4 | G21: 4 | H21: 4 | I21: 4 | J21: 4 | K21: D | L21: 1
B22: Minimum load (% of full load) | C22: 20 | D22: 20 | E22: 20 | F22: 20 | G22: 20 | H22: 20 | I22: 20 | J22: 20
B23: Warm start-up time (hours) | C23: 2 | D23: 2 | E23: 2 | F23: 2 | G23: 2 | H23: 2 | I23: 2 | J23: 2 | K23: E+G | L23: 1
B24: Cold start-up time (hours) | C24: 8 | D24: 8 | E24: 8 | F24: 8 | G24: 8 | H24: 8 | I24: 8 | J24: 8 | L24: 1
B25: Environment
B26: SO2 (degree of desulphuring, %) | C26: 98 | D26: 98 | E26: 98 | F26: 98 | G26: 94.9 | H26: 99 | I26: 98 | J26: 99 | K26: F, L | L26: 1
B27: NOX (g per GJ fuel) | C27: 90 | D27: 72 | E27: 41 | F27: 24 | G27: 41 | H27: 81 | I27: 20 | J27: 41 | K27: F, L | L27: 1
B28: CH4 (g per GJ fuel) | C28: 3 | D28: 2 | E28: 2 | F28: 1 | G28: 1 | H28: 3 | I28: 0 | J28: 3 | K28: F, L | L28: 1
B29: N2O (g per GJ fuel) | C29: 1 | D29: 1 | E29: 1 | F29: 1 | G29: 1 | H29: 3 | I29: 0 | J29: 1 | K29: F, L | L29: 1
B30: Particles (g per GJ fuel) | C30: 2 | D30: 0.3 | E30: 0.3 | F30: 0.3 | G30: 0.1 | H30: 2 | I30: 0.1 | J30: 1 | K30: F, L | L30: 1
B31: Financial data
B32: Nominal investment (M€/MWe) | C32: 3.7 | D32: 3.6 | E32: 3.5 | F32: 3.3 | G32: 3.1 | H32: 4.3 | I32: 2.5 | J32: 4.5 | K32: J, K, L | L32: 1
B33: - of which equipment | C33: 2.5 | D33: 2.4 | E33: 2.3 | F33: 2.2 | G33: 2 | H33: 2.9 | I33: 1.7 | J33: 3 | K33: K, L
B34: - of which installation | C34: 1.2 | D34: 1.2 | E34: 1.1 | F34: 1.1 | G34: 1 | H34: 1.4 | I34: 0.9 | J34: 1.5 | K34: K, L
B35: Fixed O&M (€/MWe/year) | C35: 158400 | D35: 153600 | E35: 144000 | F35: 132800 | G35: 133400 | H35: 137000 | I35: 101400 | J35: 123000
B36: Variable O&M (€/MWh_e) | C36: 3.8 | D36: 3.8 | E36: 3.8 | F36: 3.9 | G36: 3.3 | H36: 4.4 | I36: 2.9 | J36: 4.9
B37: Technology specific data
B38: Steam reheat | C38: None | D38: None | E38: None | F38: None | G38: None | H38: Yes | I38: None | J38: Yes
B39: Flue gas condensation | C39: Yes | D39: Yes | E39: Yes | F39: Yes | G39: No | H39: Yes | I39: No | J39: Yes
B40: Combustion air humidification | C40: Yes | D40: Yes | E40: Yes | F40: Yes | G40: No | H40: Yes | I40: No | J40: Yes
B41: Nominal investment (M€/MW fuel input) | C41: 1.08 | D41: 1.05 | E41: 1 | F41: 0.94 | G41: 0.88 | H41: 1.24 | I41: 0.72 | J41: 1.28 | K41: J, K, L | L41: 1
B42: - of which equipment | C42: 0.72 | D42: 0.71 | E42: 0.67 | F42: 0.64 | G42: 0.58 | H42: 0.83 | I42: 0.47 | J42: 0.87 | K42: K, L
B43: - of which installation | C43: 0.36 | D43: 0.35 | E43: 0.33 | F43: 0.3 | G43: 0.3 | H43: 0.41 | I43: 0.25 | J43: 0.41 | K43: K, L
B44: Fixed O&M (€/MW input/year) | C44: 45800 | D44: 44369 | E44: 41766 | F44: 37793 | G44: 37323 | H44: 51473 | I44: 28349 | J44: 48834
B45: Variable O&M (€/MWh input) | C45: 1.1 | D45: 1.1 | E45: 1.1 | F45: 1.1 | G45: 0.9 | H45: 1.3 | I45: 0.8 | J45: 1.4
B46: Fuel storage specific cost in excess of 2 days (M€/MW_input/storage day) | C46: 0.015 | D46: 0.015 | E46: 0.014 | F46: 0.013 | G46: 0.013 | H46: 0.017 | I46: 0.01 | J46: 0.017 | K46: K
A49: References:
A50: 1 | B50: Rambøll Danmark, internal evaluation based on either existing projects, supplier offers, or pre-project studies.
A51: Notes:
A52: A | B52: The boiler in the plant is a grate fired boiler producing steam to be used in a subsequent back pressure steam turbine. Though a grate is reasonable flexible with respect to combusting different fuels the fuel feed system will be dependent on the type of fuel. It is to be expected that it is necessary with a specific DeNOx plant (SNCR might not be sufficient).
A53: B | B53: Through a turbine by-pass all the produced steam energy is used for District Heat production.
A54: C | B54: Plants of this type may achieve up to 110 % efficiency using flue gas condensation with moist wood chips and 115 % efficiency with both flue gas condensation and absorption heat pumps activated. The colder the return temperature of the district heating, the higher the total efficiency at direct condensation. Direct condensation and combustion air humidification are included in all cases except in lower range of 2020 and 2050.
A55: D | B55: Secondary regulation normally relates to power production; for this type of plant it may not be of importance since load will normally follow heat consumption.
A56: E | B56: A limiting factor for the hot and cold start-up times is the size of the hot water tank (deaerator).
A57: F | B57: It is to be expected that necessary DeNOx can be accomplished using SNCR, except where anticipated emission levels are below 40 g/GJ in which case SCR is used with slight adverse effect on electricity efficiency.
A58: G | B58: Warm start is starting with a glowing fuel layer on the grate and a warm deaerator.
A59: H | B59: The total efficiency is the sum of electricity efficiency and heat efficiency, applicable for "name plate" and "annual average", respectively. The "annual average" electricity efficiency is lower than "name plate" due to turbine outages and other incidents. The resulting lost power production is recovered as heat. This is why "annual average" heat efficiency is higher than "name plate" heat. Efficiencies refer to lower heating value. The parasitic electricity consumption has been subtracted in the listed electricity efficiencies.
A60: I | B60: The Cv value does not exist for plants with a back pressure turbine or an ORC turbine
A61: J | B61: Investment applies to a standard plant. There could be cost related to the actual project or site that adds to the total investment, e.g. additional fuel storage, facilities for chipping of logs, conditions for foundation and harbour facilities. Financial data and Technological specific data are essentially the total cost either divided by the electric net capacity, i.e. corresponding to the indicated name plate efficiencies, or by the thermal input. This is to indicate that new plants may not fully take advantage of the technical capabilities for full electricity production capacity. The two cost for electricity and thermal input, respectively, are not to be added up!
A62: K | B62: Note that investments include only two days fuel storage, and more may be optimal, depending on fuel supply opportunities and heat supply obligations, amongst other things. The additional investment is listed in the bottom row.
A63: L | B63: Includes the following processes: DeNOx (ammonia injection (SNCR) or catalytic (SCR)), SO2 capture by injection of lime or the use of another SO2 absorbing system, dust abatement by bag house filters

Sheet 09 Wood Chips, Small
B1: Small Wood Chips | H1: Back to Index
B3: Technology | C3: 09 Small Wood Chips CHP, ORC 20 MW feed, back pressure
C4: 2015 | D4: 2020 | E4: 2030 | F4: 2050 | G4: Uncertainty (2020) | I4: Uncertainty (2050) | K4: Note | L4: Ref
B5: Energy/technical data | G5: Lower | H5: Upper | I5: Lower | J5: Upper
B6: Generating capacity for one unit (MWe) | C6: 2.9 | D6: 2.9 | E6: 2.9 | F6: 2.8 | G6: 2.8 | H6: 2.9 | I6: 2.7 | J6: 2.9 | K6: A
B7: Electricity efficiency, net (%), name plate | C7: 14.3 | D7: 14.3 | E7: 14.3 | F7: 14 | G7: 14 | H7: 14 | I7: 14 | J7: 14 | K7: A, H | L7: 1
B8: Electricity efficiency, net (%), annual average | C8: 13.5 | D8: 13.5 | E8: 13.6 | F8: 13.3 | G8: 13 | H8: 14 | I8: 12 | J8: 14 | K8: A, H | L8: 1
B9: Heat efficiency, net (%), name plate | C9: 97.3 | D9: 97.3 | E9: 97.3 | F9: 97.6 | G9: 71 | H9: 98 | I9: 69 | J9: 98 | K9: B, H | L9: 1
B10: Heat efficiency, net (%), annual average | C10: 98.1 | D10: 98.1 | E10: 98 | F10: 98.3 | G10: 72 | H10: 98 | I10: 71 | J10: 99 | K10: B, H | L10: 1
B11: Additional heat potential with heat pumps (% of thermal input) | C11: 2 | D11: 2 | E11: 2 | F11: 2 | G11: 2 | H11: 28 | I11: 2 | J11: 30 | K11: C | L11: 1
B12: Cb coefficient (40°C/80°C) | C12: 0.15 | D12: 0.15 | E12: 0.15 | F12: 0.14 | G12: 0.14 | H12: 0.15 | I12: 0.14 | J12: 0.15
B13: Cv coefficient (40°C/80°C) | C13: 1 | D13: 1 | E13: 1 | F13: 1 | G13: 1 | H13: 1 | I13: 1 | J13: 1 | K13: I
B14: Forced outage (%) | C14: 3 | D14: 3 | E14: 3 | F14: 3 | G14: 3 | H14: 3 | I14: 3 | J14: 3
B15: Planned outage (weeks per year) | C15: 3 | D15: 3 | E15: 3 | F15: 3 | G15: 2.6 | H15: 3.5 | I15: 2.3 | J15: 3.8
B16: Technical lifetime (years) | C16: 25 | D16: 25 | E16: 25 | F16: 25 | G16: 20 | H16: 35 | I16: 20 | J16: 35 | L16: 1
B17: Construction time (years) | C17: 1 | D17: 1 | E17: 1 | F17: 1 | G17: 0.5 | H17: 1.5 | I17: 0.5 | J17: 1.5 | L17: 1
B18: Space requirement (1000 m2/MWe) | C18: 0.7 | D18: 0.7 | E18: 0.7 | F18: 0.7 | G18: 0.6 | H18: 0.8 | I18: 0.5 | J18: 0.9
B20: Primary regulation (% per 30 seconds) | C20: NA | D20: NA | E20: NA | F20: NA | G20: NA | H20: NA | I20: NA | J20: NA
B21: Secondary regulation (% per minute) | C21: 10 | D21: 10 | E21: 10 | F21: 10 | G21: 10 | H21: 10 | I21: 10 | J21: 10 | K21: D | L21: 1
B22: Minimum load (% of full load) | C22: 20 | D22: 20 | E22: 20 | F22: 20 | G22: 20 | H22: 20 | I22: 20 | J22: 20 | K22: D | L22: 1
B23: Warm start-up time (hours) | C23: 0.25 | D23: 0.25 | E23: 0.25 | F23: 0.25 | G23: 0.25 | H23: 0.25 | I23: 0.25 | J23: 0.25 | K23: G | L23: 1
B24: Cold start-up time (hours) | C24: 0.5 | D24: 0.5 | E24: 0.5 | F24: 0.5 | G24: 0.5 | H24: 0.5 | I24: 0.5 | J24: 0.5 | L24: 1
B25: Environment
B26: SO2 (degree of desulphuring, %) | C26: 98 | D26: 98 | E26: 98 | F26: 98 | G26: 94.9 | H26: 99 | I26: 98 | J26: 99 | K26: F, L | L26: 1
B27: NOX (g per GJ fuel) | C27: 90 | D27: 63 | E27: 41 | F27: 32 | G27: 41 | H27: 81 | I27: 20 | J27: 41 | K27: F, L | L27: 1
B28: CH4 (g per GJ fuel) | C28: 16 | D28: 11 | E28: 8 | F28: 4 | G28: 4 | H28: 16 | I28: 2 | J28: 16 | K28: F, L | L28: 1
B29: N2O (g per GJ fuel) | C29: 1 | D29: 1 | E29: 1 | F29: 1 | G29: 1 | H29: 3 | I29: 0 | J29: 1 | K29: F, L | L29: 1
B30: Particles (g per GJ fuel) | C30: 2 | D30: 0.3 | E30: 0.3 | F30: 0.3 | G30: 0.1 | H30: 2 | I30: 0.1 | J30: 1 | K30: F, L | L30: 1
B31: Financial data
B32: Nominal investment (M€/MWe) | C32: 6.7 | D32: 6.5 | E32: 6.2 | F32: 6 | G32: 5.7 | H32: 7.7 | I32: 4.7 | J32: 8.1 | K32: E, J, K, L | L32: 1
B33: - of which equipment | C33: 4.1 | D33: 4 | E33: 3.8 | F33: 3.8 | G33: 3.5 | H33: 4.8 | I33: 2.9 | J33: 5.2 | K33: K, L
B34: - of which installation | C34: 2.5 | D34: 2.5 | E34: 2.3 | F34: 2.2 | G34: 2.1 | H34: 2.9 | I34: 1.8 | J34: 3 | K34: K, L
B35: Fixed O&M (€/MWe/year) | C35: 292700 | D35: 288900 | E35: 280500 | F35: 277900 | G35: 252000 | H35: 331000 | I35: 215600 | J35: 347000
B36: Variable O&M (€/MWh_e) | C36: 7.8 | D36: 7.8 | E36: 7.7 | F36: 7.9 | G36: 6.6 | H36: 8.9 | I36: 5.9 | J36: 9.8
B37: Technology specific data
B38: Steam reheat | C38: None | D38: None | E38: None | F38: None | G38: None | H38: None | I38: None | J38: None
B39: Flue gas condensation | C39: Yes | D39: Yes | E39: Yes | F39: Yes | G39: No | H39: Yes | I39: No | J39: Yes
B40: Combustion air humidification | C40: Yes | D40: Yes | E40: Yes | F40: Yes | G40: No | H40: Yes | I40: No | J40: Yes
B41: Nominal investment (M€/MW fuel input) | C41: 0.95 | D41: 0.93 | E41: 0.88 | F41: 0.84 | G41: 0.81 | H41: 1.09 | I41: 0.66 | J41: 1.14 | K41: J, K, L | L41: 1
B42: - of which equipment | C42: 0.59 | D42: 0.58 | E42: 0.55 | F42: 0.53 | G42: 0.5 | H42: 0.68 | I42: 0.41 | J42: 0.72 | K42: K, L
B43: - of which installation | C43: 0.36 | D43: 0.35 | E43: 0.33 | F43: 0.3 | G43: 0.31 | H43: 0.41 | I43: 0.25 | J43: 0.42 | K43: K, L
B44: Fixed O&M (€/MW input/year) | C44: 41800 | D44: 41200 | E44: 40200 | F44: 39000 | G44: 35300 | H44: 47800 | I44: 29600 | J44: 50100
B45: Variable O&M (€/MWh input) | C45: 1.1 | D45: 1.1 | E45: 1.1 | F45: 1.1 | G45: 0.9 | H45: 1.3 | I45: 0.8 | J45: 1.4
B46: Fuel storage specific cost in excess of 2 days (M€/MW_input/storage day) | C46: 0.02 | D46: 0.02 | E46: 0.019 | F46: 0.017 | G46: 0.017 | H46: 0.023 | I46: 0.014 | J46: 0.023 | K46: K
A49: References:
A50: 1 | B50: Rambøll Danmark, internal model and evaluation based on either existing projects, supplier offers, or pre-project studies.
A51: Notes:
A52: A | B52: The plant is directly producing hot water for District Heating by burning fuel on a grate. The electric power is produced by an ORC module (Organic Rankine Cycle; Waste Heat Recovery - WHR). Refer for instance to the following link for further information about technology and suppliers: http://www.enova.no/upload_images/36AC689098414B05A7112FA2EE985BDA.pdf . This is low temperature and low efficiency electric power but at an affordable price.
A53: B | B53: Boilers up to 20 MW fuel input for hot water production are more or less standardized products with a high degree of fuel flexibility (type of biomass, humidity etc.)
A54: C | B54: There are plants of this type with up to 110 % efficiency using flue gas condensation with moist wood chips and close to 120 % efficiency with both flue gas condensation and absorption heat pumps activated. The colder the return temperature of the district heating, the higher the total efficiencyat direct condensation. Direct condensation and combustion air humidification are included in all cases except in lower range of 2020 and 2050.
B55: Secondary regulation normally relates to power production; for this type of plant it may not be of importance. Though, the load control of the heat production is important and most units will perform better than the figure shown. Also, minimum load could be substantially lower.
A56: E | B56: Since electricity generation is only a secondary objective for minor heat producers, it may make more sense to relate the total investment only to the heat production capacity.
A57: F | B57: It is to be expected that necessary DeNOx can be accomplished using SNCR, except where anticipated emission levels are below 40 g/GJ
A58: G | B58: Warm start is starting with a glowing fuel layer on the grate.
A59: H | B59: The total efficiency is the sum of electricity efficiency and heat efficiency, applicable for "name plate" and "annual average", respectively. The "annual average" electricity efficiency is lower than "name plate" due to turbine outages and other incidents. The resulting lost power production is recovered as heat. This is why "annual average" heat efficiency is higher than "name plate" heat. Efficiencies refer to lower heating value. The parasitic electricity consumption has been subtracted in the listed electricity efficiencies.
A60: I | B60: Cv=1 describes turbine by-pass operation. During operation the turbine can be by-passed fully or partly for direct district heating production, at operator choice.
A61: J | B61: Investment applies to a standard plant. There could be cost related to the actual project or site that adds to the total investment, e.g. additional fuel storage, facilities for chipping of logs, conditions for foundation and harbour facilities. Financial data and Technological specific data are essentially the total cost either divided by the electric net capacity, i.e. corresponding to the indicated name plate efficiencies, or by the thermal input. This is to indicate that new plants may not fully take advantage of the technical capabilities for full electricity production capacity. The two cost for electricity and thermal input, respectively, are not to be added up!
A62: K | B62: Note that investments include only two days fuel storage, and more may be optimal, depending on fuel supply opportunities and heat supply obligations, amongst other things. The additional investment is listed in the bottom row.
A63: L | B63: Includes the following processes: DeNOx (ammonia injection (SNCR) or catalytic (SCR)), SO2 capture by injection of lime or the use of another SO2 absorbing system, dust abatement by bag house filters

Sheet 09 Wood Pellets, Large
B1: Large Wood Pellets | H1: Back to Index
B3: Technology | C3: 09 Large Wood Pellets CHP, 800 MW feed, back pressure
C4: 2015 | D4: 2020 | E4: 2030 | F4: 2050 | G4: Uncertainty (2020) | I4: Uncertainty (2050) | K4: Note | L4: Ref
B5: Energy/technical data | G5: Lower | H5: Upper | I5: Lower | J5: Upper
B6: Generating capacity for one unit (MWe) | C6: 260.6 | D6: 261.2 | E6: 261.9 | F6: 261.9 | G6: 258.5 | H6: 338.5 | I6: 258.5 | J6: 338.5 | K6: A
B7: Electricity efficiency, net (%), name plate | C7: 32.6 | D7: 32.6 | E7: 32.7 | F7: 32.7 | G7: 32 | H7: 42 | I7: 32 | J7: 42 | K7: A, H | L7: 1
B8: Electricity efficiency, net (%), annual average | C8: 30.9 | D8: 31 | E8: 31.1 | F8: 31.1 | G8: 29 | H8: 40 | I8: 29 | J8: 40 | K8: A, H | L8: 1
B9: Heat efficiency, net (%), name plate | C9: 63.8 | D9: 63.9 | E9: 63.8 | F9: 63.8 | G9: 43 | H9: 64 | I9: 43 | J9: 64 | K9: B, H | L9: 1
B10: Heat efficiency, net (%), annual average | C10: 65.4 | D10: 65.5 | E10: 65.4 | F10: 65.4 | G10: 47 | H10: 66 | I10: 47 | J10: 66 | K10: B, H | L10: 1
B11: Additional heat potential with heat pumps (% of thermal input) | C11: 1.7 | D11: 1.7 | E11: 1.7 | F11: 1.7 | G11: 2 | H11: 12 | I11: 2 | J11: 12 | K11: C | L11: 1
B12: Cb coefficient (40°C/80°C) | C12: 0.51 | D12: 0.51 | E12: 0.51 | F12: 0.51 | G12: 0.51 | H12: 0.66 | I12: 0.51 | J12: 0.66
B13: Cv coefficient (40°C/80°C) | C13: 1 | D13: 1 | E13: 1 | F13: 1 | G13: 1 | H13: 1 | I13: 1 | J13: 1 | K13: I
B14: Forced outage (%) | C14: 3 | D14: 3 | E14: 3 | F14: 3 | G14: 3 | H14: 3 | I14: 3 | J14: 3
B15: Planned outage (weeks per year) | C15: 3 | D15: 3 | E15: 3 | F15: 3 | G15: 2.6 | H15: 3.5 | I15: 2.3 | J15: 3.8
B16: Technical lifetime (years) | C16: 25 | D16: 25 | E16: 25 | F16: 25 | G16: 20 | H16: 35 | I16: 20 | J16: 35 | L16: 1
B17: Construction time (years) | C17: 1 | D17: 1 | E17: 1 | F17: 1 | G17: 0.5 | H17: 1.5 | I17: 0.5 | J17: 1.5 | L17: 1
B18: Space requirement (1000 m2/MWe) | C18: 0.06 | D18: 0.06 | E18: 0.06 | F18: 0.06 | G18: 0.05 | H18: 0.07 | I18: 0.04 | J18: 0.07
B20: Primary regulation (% per 30 seconds) | C20: 2 | D20: 2 | E20: 2 | F20: 2 | G20: 2 | H20: 2 | I20: 2 | J20: 2
B21: Secondary regulation (% per minute) | C21: 4 | D21: 4 | E21: 4 | F21: 4 | G21: 4 | H21: 4 | I21: 4 | J21: 4 | K21: D | L21: 1
B22: Minimum load (% of full load) | C22: 15 | D22: 15 | E22: 15 | F22: 15 | G22: 15 | H22: 15 | I22: 15 | J22: 15 | L22: 1
B23: Warm start-up time (hours) | C23: 2 | D23: 2 | E23: 2 | F23: 2 | G23: 2 | H23: 2 | I23: 2 | J23: 2 | K23: G | L23: 1
B24: Cold start-up time (hours) | C24: 12 | D24: 12 | E24: 12 | F24: 12 | G24: 12 | H24: 12 | I24: 12 | J24: 12 | K24: E | L24: 1
B25: Environment
B26: SO2 (degree of desulphuring, %) | C26: 98.3 | D26: 98.3 | E26: 98.3 | F26: 98.3 | G26: 95.6 | H26: 99.1 | I26: 98.3 | J26: 99.1 | K26: L | L26: 1
B27: NOX (g per GJ fuel) | C27: 20 | D27: 21 | E27: 18 | F27: 11 | G27: 11 | H27: 26 | I27: 7 | J27: 18 | K27: C,F,L
B28: CH4 (g per GJ fuel) | C28: 0 | D28: 0 | E28: 0 | F28: 0 | G28: 0 | H28: 0 | I28: 0 | J28: 0 | K28: L
B29: N2O (g per GJ fuel) | C29: 1 | D29: 1 | E29: 1 | F29: 1 | G29: 1 | H29: 3 | I29: 0 | J29: 1 | K29: L
B30: Particles (g per GJ fuel) | C30: 0.3 | D30: 0.3 | E30: 0.3 | F30: 0.3 | G30: 0.1 | H30: 2 | I30: 0.1 | J30: 1 | K30: L
B31: Financial data
B32: Nominal investment (M€/MWe) | C32: 2.4 | D32: 2.3 | E32: 2.2 | F32: 2 | G32: 2 | H32: 2.7 | I32: 1.6 | J32: 2.7 | K32: J,K,L | L32: 1
B33: - of which equipment | C33: 1.3 | D33: 1.3 | E33: 1.2 | F33: 1.1 | G33: 1.1 | H33: 1.5 | I33: 0.9 | J33: 1.5 | K33: K, L
B34: - of which installation | C34: 1 | D34: 1 | E34: 1 | F34: 0.9 | G34: 0.9 | H34: 1.2 | I34: 0.7 | J34: 1.2 | K34: K, L
B35: Fixed O&M (€/MWe/year) | C35: 65700 | D35: 64000 | E35: 61000 | F35: 55900 | G35: 54500 | H35: 57300 | I35: 43800 | J35: 56400
B36: Variable O&M (€/MWh_e) | C36: 1.6 | D36: 1.6 | E36: 1.6 | F36: 1.6 | G36: 1.3 | H36: 1.8 | I36: 1.2 | J36: 1.9
B37: Technology specific data
B38: Steam reheat | C38: None | D38: None | E38: None | F38: None | G38: None | H38: Yes | I38: None | J38: Yes
B39: Flue gas condensation | C39: Yes | D39: Yes | E39: Yes | F39: Yes | G39: No | H39: Yes | I39: No | J39: Yes
B40: Combustion air humidification | C40: Yes | D40: Yes | E40: Yes | F40: Yes | G40: No | H40: Yes | I40: No | J40: Yes
B41: Nominal investment (M€/MW fuel input) | C41: 0.77 | D41: 0.75 | E41: 0.72 | F41: 0.65 | G41: 0.64 | H41: 0.89 | I41: 0.53 | J41: 0.89 | K41: J,K,L | L41: 1
B42: - of which equipment | C42: 0.43 | D42: 0.42 | E42: 0.4 | F42: 0.36 | G42: 0.35 | H42: 0.49 | I42: 0.29 | J42: 0.5 | K42: K, L
B43: - of which installation | C43: 0.34 | D43: 0.33 | E43: 0.32 | F43: 0.29 | G43: 0.29 | H43: 0.39 | I43: 0.24 | J43: 0.4 | K43: K, L
B44: Fixed O&M (€/MW input/year) | C44: 21400 | D44: 20900 | E44: 20000 | F44: 18300 | G44: 17600 | H44: 24300 | I44: 14100 | J44: 23900
B45: Variable O&M (€/MWh input) | C45: 0.51 | D45: 0.51 | E45: 0.51 | F45: 0.51 | G45: 0.43 | H45: 0.59 | I45: 0.38 | J45: 0.64
B46: Fuel storage specific cost in excess of 2 days (M€/MW_input/storage day) | C46: 0.003 | D46: 0.002 | E46: 0.002 | F46: 0.002 | G46: 0.002 | H46: 0.003 | I46: 0.002 | J46: 0.003 | K46: K
A49: References:
A50: 1 | B50: Rambøll Danmark, internal evaluation based on either existing projects, supplier offers, or pre-project studies.
A51: Notes:
A52: A | B52: The boiler in the plant is a suspension fired boiler producing steam to be used in a subsequent steam turbine. Currently, the steam turbine is expected to be a back pressure turbine with no re-heat. In some of the future scenarios it is assumed that the prices on electricity will allow for an increased electrical efficiency and subsequently re-heating of steam is introduced.
A53: B | B53: Through a turbine by-pass all the produced steam energy can be used for District Heat production.
A54: C | B54: Since wood pellets are relatively dry there is often only a minor efficiency advantage in using flue gas condensation. There is though an environmental advantage in having a scrubber in the flue gas stream. Direct condensation and combustion air humidification are included in all cases except in lower range of 2020 and 2050.
A55: D | B55: This is given by grid code (Energinet.dk)
A56: E | B56: A limiting factor for the hot and cold start-up times is the size of the hot water tank (deaerator).
A57: F | B57: This plant is equiped with an SCR catalyst for DeNOx and an electrostatic precipitator for catching dust/fly ash
A58: G | B58: Warm start is starting with the steam system being pressurized.
A59: H | B59: The total efficiency is the sum of electricity efficiency and heat efficiency, applicable for "name plate" and "annual average", respectively. The "annual average" electricity efficiency is lower than "name plate" due to turbine outages and other incidents. The resulting lost power production is recovered as heat. This is why "annual average" heat efficiency is higher than "name plate" heat. Efficiencies refer to lower heating value. The parasitic electricity consumption has been subtracted in the listed electricity efficiencies.
A60: I | B60: The Cv value may vary according to the optimization of the plant. A modest value representing a choice with current power/heat prices is shown but an approximate BAT value is given as 'UPPER'
A61: J | B61: Investment applies to a standard plant. There could be cost related to the actual project or site that adds to the total investment, e.g. additional fuel storage, facilities for chipping of logs, conditions for foundation and harbour facilities. Financial data and Technological specific data are essentially the total cost either divided by the electric net capacity, i.e. corresponding to the indicated name plate efficiencies, or by the thermal input. This is to indicate that new plants may not fully take advantage of the technical capabilities for full electricity production capacity. The two cost for electricity and thermal input, respectively, are not to be added up!
A62: K | B62: Note that investments include only two days fuel storage, and more may be optimal, depending on fuel supply opportunities and heat supply obligations, amongst other things. The additional investment is listed in the bottom row.
A63: L | B63: Includes the following processes: DeNOx (ammonia injection (SNCR) or catalytic (SCR)), SO2 capture by injection of lime or the use of another SO2 absorbing system, dust abatement by bag house filters

Sheet 09 Wood Pellets, Medium
B1: Medium Wood Pellets | H1: Back to Index
B3: Technology | C3: 09 Medium Wood Pellets CHP, 80 MW feed, back pressure
C4: 2015 | D4: 2020 | E4: 2030 | F4: 2050 | G4: Uncertainty (2020) | I4: Uncertainty (2050) | K4: Note | L4: Ref
B5: Energy/technical data | G5: Lower | H5: Upper | I5: Lower | J5: Upper
B6: Generating capacity for one unit (MWe) | C6: 24.1 | D6: 24.1 | E6: 23.9 | F6: 23.9 | G6: 23.2 | H6: 32.5 | I6: 23.5 | J6: 32.7 | K6: A
B7: Electricity efficiency, net (%), name plate | C7: 30.2 | D7: 30.2 | E7: 29.8 | F7: 29.8 | G7: 29 | H7: 41 | I7: 29 | J7: 41 | K7: A, H, F | L7: 1
B8: Electricity efficiency, net (%), annual average | C8: 28.6 | D8: 28.6 | E8: 28.3 | F8: 28.3 | G8: 26 | H8: 39 | I8: 26 | J8: 39 | K8: A, H, F | L8: 1
B9: Heat efficiency, net (%), name plate | C9: 66.5 | D9: 66.5 | E9: 66.8 | F9: 66.8 | G9: 44 | H9: 69 | I9: 44 | J9: 68 | K9: A, H, F | L9: 1
B10: Heat efficiency, net (%), annual average | C10: 68 | D10: 68 | E10: 68.3 | F10: 68.3 | G10: 47 | H10: 71 | I10: 47 | J10: 70 | K10: B, H | L10: 1
B11: Additional heat potential with heat pumps (% of thermal input) | C11: 1.7 | D11: 1.7 | E11: 1.7 | F11: 1.7 | G11: 2 | H11: 12 | I11: 2 | J11: 12 | K11: C | L11: 1
B12: Cb coefficient (40°C/80°C) | C12: 0.45 | D12: 0.45 | E12: 0.45 | F12: 0.45 | G12: 0.44 | H12: 0.61 | I12: 0.44 | J12: 0.61
B13: Cv coefficient (40°C/80°C) | C13: 1 | D13: 1 | E13: 1 | F13: 1 | G13: 1 | H13: 1 | I13: 1 | J13: 1 | K13: I
B14: Forced outage (%) | C14: 3 | D14: 3 | E14: 3 | F14: 3 | G14: 3 | H14: 3 | I14: 3 | J14: 3
B15: Planned outage (weeks per year) | C15: 3 | D15: 3 | E15: 3 | F15: 3 | G15: 2.6 | H15: 3.5 | I15: 2.3 | J15: 3.8
B16: Technical lifetime (years) | C16: 25 | D16: 25 | E16: 25 | F16: 25 | G16: 20 | H16: 35 | I16: 20 | J16: 35 | L16: 1
B17: Construction time (years) | C17: 1 | D17: 1 | E17: 1 | F17: 1 | G17: 0.5 | H17: 1.5 | I17: 0.5 | J17: 1.5 | L17: 1
B18: Space requirement (1000 m2/MWe) | C18: 0.19 | D18: 0.19 | E18: 0.19 | F18: 0.19 | G18: 0.16 | H18: 0.21 | I18: 0.14 | J18: 0.24
B20: Primary regulation (% per 30 seconds) | C20: NA | D20: NA | E20: NA | F20: NA | G20: NA | H20: NA | I20: NA | J20: NA
B21: Secondary regulation (% per minute) | C21: 10 | D21: 10 | E21: 10 | F21: 10 | G21: 10 | H21: 10 | I21: 10 | J21: 10 | K21: D | L21: 1
B22: Minimum load (% of full load) | C22: 15 | D22: 15 | E22: 15 | F22: 15 | G22: 15 | H22: 15 | I22: 15 | J22: 15
B23: Warm start-up time (hours) | C23: 0.25 | D23: 0.25 | E23: 0.25 | F23: 0.25 | G23: 0.25 | H23: 0.25 | I23: 0.25 | J23: 0.25 | K23: E | L23: 1
B24: Cold start-up time (hours) | C24: 8 | D24: 8 | E24: 8 | F24: 8 | G24: 8 | H24: 8 | I24: 8 | J24: 8 | L24: 1
B25: Environment
B26: SO2 (degree of desulphuring, %) | C26: 98.3 | D26: 98.3 | E26: 98.3 | F26: 98.3 | G26: 95.6 | H26: 99.1 | I26: 98.3 | J26: 99.1 | K26: F, L | L26: 1
B27: NOX (g per GJ fuel) | C27: 78 | D27: 62 | E27: 35 | F27: 21 | G27: 35 | H27: 70 | I27: 18 | J27: 35 | K27: F, L | L27: 1
B28: CH4 (g per GJ fuel) | C28: 0 | D28: 0 | E28: 0 | F28: 0 | G28: 0 | H28: 0 | I28: 0 | J28: 0 | K28: F, L | L28: 1
B29: N2O (g per GJ fuel) | C29: 1 | D29: 1 | E29: 1 | F29: 1 | G29: 1 | H29: 3 | I29: 0 | J29: 1 | K29: F, L | L29: 1
B30: Particles (g per GJ fuel) | C30: 2 | D30: 0.3 | E30: 0.3 | F30: 0.3 | G30: 0.1 | H30: 2 | I30: 0.1 | J30: 1 | K30: F, L | L30: 1
B31: Financial data
B32: Nominal investment (M€/MWe) | C32: 3.2 | D32: 3.1 | E32: 3.1 | F32: 2.8 | G32: 2.6 | H32: 3.7 | I32: 2.2 | J32: 3.8 | K32: J,K, L | L32: 1
B33: - of which equipment | C33: 2 | D33: 2 | E33: 2 | F33: 1.8 | G33: 1.6 | H33: 2.4 | I33: 1.4 | J33: 2.5 | K33: K, L
B34: - of which installation | C34: 1.1 | D34: 1.1 | E34: 1.1 | F34: 1 | G34: 1 | H34: 1.3 | I34: 0.8 | J34: 1.3 | K34: K, L
B35: Fixed O&M (€/MWe/year) | C35: 130800 | D35: 127100 | E35: 123300 | F35: 110800 | G35: 110600 | H35: 110700 | I35: 85800 | J35: 104200
B36: Variable O&M (€/MWh_e) | C36: 1.7 | D36: 1.7 | E36: 1.7 | F36: 1.7 | G36: 1.4 | H36: 1.9 | I36: 1.3 | J36: 2.1
B37: Technology specific data
B38: Steam reheat | C38: None | D38: None | E38: None | F38: None | G38: None | H38: Yes | I38: None | J38: Yes
B39: Flue gas condensation | C39: Yes | D39: Yes | E39: Yes | F39: Yes | G39: No | H39: Yes | I39: No | J39: Yes
B40: Combustion air humidification | C40: Yes | D40: Yes | E40: Yes | F40: Yes | G40: No | H40: Yes | I40: No | J40: Yes
B41: Nominal investment (M€/MW fuel input) | C41: 0.95 | D41: 0.93 | E41: 0.91 | F41: 0.83 | G41: 0.77 | H41: 1.12 | I41: 0.66 | J41: 1.13 | K41: J,K, L | L41: 1
B42: - of which equipment | C42: 0.61 | D42: 0.59 | E42: 0.59 | F42: 0.54 | G42: 0.48 | H42: 0.73 | I42: 0.42 | J42: 0.73 | K42: K, L
B43: - of which installation | C43: 0.34 | D43: 0.33 | E43: 0.32 | F43: 0.29 | G43: 0.29 | H43: 0.4 | I43: 0.24 | J43: 0.4 | K43: K, L
B44: Fixed O&M (€/MW input/year) | C44: 39500 | D44: 38300 | E44: 36800 | F44: 33100 | G44: 32100 | H44: 45000 | I44: 25200 | J44: 42700
B45: Variable O&M (€/MWh input) | C45: 0.51 | D45: 0.51 | E45: 0.51 | F45: 0.51 | G45: 0.43 | H45: 0.59 | I45: 0.38 | J45: 0.64
B46: Fuel storage specific cost in excess of 2 days (M€/MW_input/storage day) | C46: 0.003 | D46: 0.003 | E46: 0.003 | F46: 0.003 | G46: 0.003 | H46: 0.003 | I46: 0.002 | J46: 0.003 | K46: K
A49: References:
A50: 1 | B50: Rambøll Danmark, internal evaluation based on either existing projects, supplier offers, or pre-project studies.
A51: Notes:
A52: A | B52: The boiler in the plant is a suspension fired boiler producing steam to be used in a subsequent back pressure steam turbine. It is possible to pulverize wood pellets and use it for suspension firing but it has not been possible to find an appropriate reference.
A53: B | B53: Through a turbine by-pass all the produced steam energy is used for District Heat production.
A54: C | B54: Since wood pellets are relatively dry there is often only a minor efficiency advantage in using flue gas condensation. There is though an environmental advantage in having a scrubber in the flue gas stream. Direct condensation is assumed in all cases. Combustion air humidification is included except in lower range of 2020 and 2050. Direct condensation and combustion air humidification are included in all cases except in lower range of 2020 and 2050.
A55: D | B55: Secondary regulation normally relates to power production; for this type of plant it may not be of importance since load will normally follow heat consumption.
A56: E | B56: A limiting factor for the hot and cold start-up times is the size of the hot water tank (deaerator).
A57: F | B57: SNCR is assumed at NOx emissions at no less than 40 g/GJ. At lower NOx-levels it is chosen to include a tail-end SCR catalyst with slight adverse effect on electricity efficiency.
A58: G | B58: Warm start is starting with a glowing fuel layer on the grate and a warm deaerator.
A59: H | B59: The total efficiency is the sum of electricity efficiency and heat efficiency, applicable for "name plate" and "annual average", respectively. The "annual average" electricity efficiency is lower than "name plate" due to turbine outages and other incidents. The resulting lost power production is recovered as heat. This is why "annual average" heat efficiency is higher than "name plate" heat. Efficiencies refer to lower heating value. The parasitic electricity consumption has been subtracted in the listed electricity efficiencies.
A60: I | B60: The Cv value does not exist for plants with a back pressure turbine or an ORC turbine
A61: J | B61: Investment applies to a standard plant. There could be cost related to the actual project or site that adds to the total investment, e.g. additional fuel storage, facilities for chipping of logs, conditions for foundation and harbour facilities. Financial data and Technological specific data are essentially the total cost either divided by the electric net capacity, i.e. corresponding to the indicated name plate efficiencies, or by the thermal input. This is to indicate that new plants may not fully take advantage of the technical capabilities for full electricity production capacity. The two cost for electricity and thermal input, respectively, are not to be added up!
A62: K | B62: Note that investments include only two days fuel storage, and more may be optimal, depending on fuel supply opportunities and heat supply obligations, amongst other things. The additional investment is listed in the bottom row.
A63: L | B63: Includes the following processes: DeNOx (ammonia injection (SNCR) or catalytic (SCR)), SO2 capture by injection of lime or the use of another SO2 absorbing system, dust abatement by bag house filters

Sheet 09 Wood Pellets, Small
B1: Small Wood Pellets | H1: Back to Index
B3: Technology | C3: 09 Small Wood Pellets CHP, 20 MW feed, back pressure
C4: 2015 | D4: 2020 | E4: 2030 | F4: 2050 | G4: Uncertainty (2020) | I4: Uncertainty (2050) | K4: Note | L4: Ref
B5: Energy/technical data | G5: Lower | H5: Upper | I5: Lower | J5: Upper
B6: Generating capacity for one unit (MWe) | C6: 3 | D6: 3 | E6: 3 | F6: 3 | G6: 2.9 | H6: 3 | I6: 2.9 | J6: 3 | K6: A
B7: Electricity efficiency, net (%), name plate | C7: 15.1 | D7: 15.1 | E7: 14.9 | F7: 14.9 | G7: 15 | H7: 15 | I7: 15 | J7: 15 | K7: A, H | L7: 1
B8: Electricity efficiency, net (%), annual average | C8: 14.4 | D8: 14.4 | E8: 14.2 | F8: 14.2 | G8: 13 | H8: 14 | I8: 13 | J8: 14 | K8: A, H | L8: 1
B9: Heat efficiency, net (%), name plate | C9: 82.2 | D9: 82.2 | E9: 82.4 | F9: 82.4 | G9: 71 | H9: 83 | I9: 72 | J9: 83 | K9: B, H | L9: 1
B10: Heat efficiency, net (%), annual average | C10: 83 | D10: 83 | E10: 83.1 | F10: 83.1 | G10: 73 | H10: 84 | I10: 73 | J10: 84 | K10: B, H | L10: 1
B11: Additional heat potential with heat pumps (% of thermal input) | C11: 1.7 | D11: 1.7 | E11: 1.7 | F11: 1.7 | G11: 2 | H11: 12 | I11: 2 | J11: 12 | K11: C | L11: 1
B12: Cb coefficient (40°C/80°C) | C12: 0.18 | D12: 0.18 | E12: 0.18 | F12: 0.18 | G12: 0.18 | H12: 0.19 | I12: 0.18 | J12: 0.18
B13: Cv coefficient (40°C/80°C) | C13: 1 | D13: 1 | E13: 1 | F13: 1 | G13: 1 | H13: 1 | I13: 1 | J13: 1 | K13: I
B14: Forced outage (%) | C14: 3 | D14: 3 | E14: 3 | F14: 3 | G14: 3 | H14: 3 | I14: 3 | J14: 3
B15: Planned outage (weeks per year) | C15: 3 | D15: 3 | E15: 3 | F15: 3 | G15: 2.6 | H15: 3.5 | I15: 2.3 | J15: 3.8
B16: Technical lifetime (years) | C16: 25 | D16: 25 | E16: 25 | F16: 25 | G16: 20 | H16: 35 | I16: 20 | J16: 35 | L16: 1
B17: Construction time (years) | C17: 1 | D17: 1 | E17: 1 | F17: 1 | G17: 0.5 | H17: 1.5 | I17: 0.5 | J17: 1.5 | L17: 1
B18: Space requirement (1000 m2/MWe) | C18: 0.5 | D18: 0.5 | E18: 0.5 | F18: 0.5 | G18: 0.4 | H18: 0.6 | I18: 0.4 | J18: 0.6
B20: Primary regulation (% per 30 seconds) | C20: NA | D20: NA | E20: NA | F20: NA | G20: NA | H20: NA | I20: NA | J20: NA
B21: Secondary regulation (% per minute) | C21: 10 | D21: 10 | E21: 10 | F21: 10 | G21: 10 | H21: 10 | I21: 10 | J21: 10 | K21: D | L21: 1
B22: Minimum load (% of full load) | C22: 20 | D22: 20 | E22: 20 | F22: 20 | G22: 20 | H22: 20 | I22: 20 | J22: 20 | K22: D | L22: 1
B23: Warm start-up time (hours) | C23: 0.25 | D23: 0.25 | E23: 0.25 | F23: 0.25 | G23: 0.25 | H23: 0.25 | I23: 0.25 | J23: 0.25 | K23: G | L23: 1
B24: Cold start-up time (hours) | C24: 0.5 | D24: 0.5 | E24: 0.5 | F24: 0.5 | G24: 0.5 | H24: 0.5 | I24: 0.5 | J24: 0.5 | L24: 1
B25: Environment
B26: SO2 (degree of desulphuring, %) | C26: 98.3 | D26: 98.3 | E26: 98.3 | F26: 98.3 | G26: 95.6 | H26: 99.1 | I26: 98.3 | J26: 99.1 | K26: F, L | L26: 1
B27: NOX (g per GJ fuel) | C27: 90 | D27: 54 | E27: 35 | F27: 28 | G27: 35 | H27: 70 | I27: 18 | J27: 35 | K27: F, L | L27: 1
B28: CH4 (g per GJ fuel) | C28: 0 | D28: 0 | E28: 0 | F28: 0 | G28: 0 | H28: 0 | I28: 0 | J28: 0 | K28: F, L | L28: 1
B29: N2O (g per GJ fuel) | C29: 1 | D29: 1 | E29: 1 | F29: 1 | G29: 1 | H29: 3 | I29: 0 | J29: 1 | K29: F, L | L29: 1
B30: Particles (g per GJ fuel) | C30: 2 | D30: 0.3 | E30: 0.3 | F30: 0.3 | G30: 0.1 | H30: 2 | I30: 0.1 | J30: 1 | K30: F, L | L30: 1
B31: Financial data
B32: Nominal investment (M€/MWe) | C32: 6.3 | D32: 6.2 | E32: 6.2 | F32: 5.6 | G32: 5.4 | H32: 7.6 | I32: 4.7 | J32: 7.7 | K32: E, J, K, L | L32: 1
B33: - of which equipment | C33: 4.1 | D33: 4 | E33: 4.1 | F33: 3.8 | G33: 3.5 | H33: 5 | I33: 3.2 | J33: 5.1 | K33: K, L
B34: - of which installation | C34: 2.2 | D34: 2.1 | E34: 2.1 | F34: 1.9 | G34: 1.9 | H34: 2.5 | I34: 1.6 | J34: 2.6 | K34: K, L
B35: Fixed O&M (€/MWe/year) | C35: 280900 | D35: 275900 | E35: 274800 | F35: 257800 | G35: 243500 | H35: 322400 | I35: 204700 | J35: 329400
B36: Variable O&M (€/MWh_e) | C36: 3.4 | D36: 3.4 | E36: 3.4 | F36: 3.4 | G36: 2.9 | H36: 3.9 | I36: 2.6 | J36: 4.3
B37: Technology specific data
B38: Steam reheat | C38: None | D38: None | E38: None | F38: None | G38: None | H38: None | I38: None | J38: None
B39: Flue gas condensation | C39: Yes | D39: Yes | E39: Yes | F39: Yes | G39: No | H39: Yes | I39: No | J39: Yes
B40: Combustion air humidification | C40: Yes | D40: Yes | E40: Yes | F40: Yes | G40: No | H40: Yes | I40: No | J40: Yes
B41: Nominal investment (M€/MW fuel input) | C41: 0.96 | D41: 0.93 | E41: 0.93 | F41: 0.84 | G41: 0.81 | H41: 1.14 | I41: 0.71 | J41: 1.15 | K41: E,J,K, L | L41: 1
B42: - of which equipment | C42: 0.63 | D42: 0.61 | E42: 0.62 | F42: 0.56 | G42: 0.53 | H42: 0.76 | I42: 0.47 | J42: 0.76 | K42: K, L
B43: - of which installation | C43: 0.33 | D43: 0.32 | E43: 0.31 | F43: 0.28 | G43: 0.28 | H43: 0.38 | I43: 0.23 | J43: 0.39 | K43: K, L
B44: Fixed O&M (€/MW input/year) | C44: 42500 | D44: 41700 | E44: 41100 | F44: 38500 | G44: 35700 | H44: 49100 | I44: 30000 | J44: 49500
B45: Variable O&M (€/MWh input) | C45: 0.51 | D45: 0.51 | E45: 0.51 | F45: 0.51 | G45: 0.43 | H45: 0.59 | I45: 0.38 | J45: 0.64
B46: Fuel storage specific cost in excess of 2 days (M€/MW_input/storage day) | C46: 0.004 | D46: 0.004 | E46: 0.004 | F46: 0.003 | G46: 0.003 | H46: 0.005 | I46: 0.003 | J46: 0.005 | K46: K
A49: References:
A50: 1 | B50: Rambøll Danmark, internal evaluation based on either existing projects, supplier offers, or pre-project studies.
A51: Notes:
A52: A | B52: The plant is directly producing hot water for District Heating by burning fuel on a grate. The electric power is produced by an ORC module (Organic Rankine Cycle; Waste Heat Recovery - WHR). Refer for instance to the following link for further information about technology and suppliers: http://www.enova.no/upload_images/36AC689098414B05A7112FA2EE985BDA.pdf . This is low temperature and low efficiency electric power but at an affordable price.
A53: B | B53: Boilers up to 20 MW fuel input for hot water production are more or less standardized products with a high degree of fuel flexibility (type of biomass, humidity etc.)
A54: C | B54: There are plants of this type with up to 110 % efficiency using flue gas condensation with moist wood chips and close to 120 % efficiency with both flue gas condensation and absorption heat pumps activated. The colder the return temperature of the district heating, the higher the total efficiency at direct condensation. Direct condensation and combustion air humidification are included in all cases except in lower range of 2020 and 2050.
A55: D | B55: Secondary regulation normally relates to power production; for this type of plant it may not be of importance. Though, the load control of the heat production is important and most units will perform better than the figure shown. Also, minimum load could be substantially lower.
A56: E | B56: Since electricity generation is only a secondary objective for minor heat producers, it may make more sense to relate the total investment only to the thermail input.
A57: F | B57: It is anticipated that for the smaller units the supplier has a SNCR solutiuon to avoid NOx emissions sufficiently. Little SO2, CH4 and N2O are emitted when combusting wooddy biomass.
A58: G | B58: Warm start is starting with a glowing fuel layer on the grate.
A59: H | B59: The total efficiency is the sum of electricity efficiency and heat efficiency, applicable for "name plate" and "annual average", respectively. The "annual average" electricity efficiency is lower than "name plate" due to turbine outages and other incidents. The resulting lost power production is recovered as heat. This is why "annual average" heat efficiency is higher than "name plate" heat. Efficiencies refer to lower heating value. The parasitic electricity consumption has been subtracted in the listed electricity efficiencies.
A60: I | B60: The Cv value does not exist for plants with a back pressure turbine or an ORC turbine
A61: J | B61: Investment applies to a standard plant. There could be cost related to the actual project or site that adds to the total investment, e.g. additional fuel storage, facilities for chipping of logs, conditions for foundation and harbour facilities. Financial data and Technological specific data are essentially the total cost either divided by the electric net capacity, i.e. corresponding to the indicated name plate efficiencies, or by the thermal input. This is to indicate that new plants may not fully take advantage of the technical capabilities for full electricity production capacity. The two cost for electricity and thermal input, respectively, are not to be added up!
A62: K | B62: Note that investments include only two days fuel storage, and more may be optimal, depending on fuel supply opportunities and heat supply obligations, amongst other things. The additional investment is listed in the bottom row.
A63: L | B63: Includes the following processes: DeNOx (ammonia injection (SNCR) or catalytic (SCR)), SO2 capture by injection of lime or the use of another SO2 absorbing system, dust abatement by bag house filters

Sheet 09 Straw, Large
B1: Large Straw | H1: Back to Index
B3: Technology | C3: 09 Large Straw CHP, 132 MW feed, back pressure
C4: 2015 | D4: 2020 | E4: 2030 | F4: 2050 | G4: Uncertainty (2020) | I4: Uncertainty (2050) | K4: Note | L4: Ref
B5: Energy/technical data | G5: Lower | H5: Upper | I5: Lower | J5: Upper
B6: Generating capacity for one unit (MWe) | C6: 40.7 | D6: 40.7 | E6: 40.9 | F6: 40.9 | G6: 39.1 | H6: 53.4 | I6: 40.3 | J6: 54.5 | K6: A
B7: Electricity efficiency, net (%), name plate | C7: 30.9 | D7: 30.9 | E7: 30.9 | F7: 30.9 | G7: 30 | H7: 40 | I7: 30 | J7: 41 | K7: A, H | L7: 1
B8: Electricity efficiency, net (%), annual average | C8: 29.3 | D8: 29.3 | E8: 29.4 | F8: 29.4 | G8: 27 | H8: 38 | I8: 27 | J8: 39 | K8: A, H | L8: 1
B9: Heat efficiency, net (%), name plate | C9: 67.9 | D9: 67.9 | E9: 67.8 | F9: 67.8 | G9: 45 | H9: 69 | I9: 44 | J9: 68 | K9: B, H | L9: 1
B10: Heat efficiency, net (%), annual average | C10: 69.5 | D10: 69.5 | E10: 69.4 | F10: 69.4 | G10: 48 | H10: 71 | I10: 47 | J10: 70 | K10: B, H | L10: 1
B11: Additional heat potential with heat pumps (% of thermal input) | C11: 1.7 | D11: 1.7 | E11: 1.7 | F11: 1.7 | G11: 2 | H11: 14 | I11: 2 | J11: 14 | K11: C | L11: 1
B12: Cb coefficient (40°C/80°C) | C12: 0.45 | D12: 0.45 | E12: 0.46 | F12: 0.46 | G12: 0.44 | H12: 0.6 | I12: 0.45 | J12: 0.61
B13: Cv coefficient (40°C/80°C) | C13: 1 | D13: 1 | E13: 1 | F13: 1 | G13: 1 | H13: 1 | I13: 1 | J13: 1 | K13: I
B14: Forced outage (%) | C14: 3 | D14: 3 | E14: 3 | F14: 3 | G14: 3 | H14: 3 | I14: 3 | J14: 3
B15: Planned outage (weeks per year) | C15: 3 | D15: 3 | E15: 3 | F15: 3 | G15: 2.6 | H15: 3.5 | I15: 2.3 | J15: 3.8
B16: Technical lifetime (years) | C16: 25 | D16: 25 | E16: 25 | F16: 25 | G16: 20 | H16: 35 | I16: 20 | J16: 35 | L16: 1
B17: Construction time (years) | C17: 3 | D17: 3 | E17: 3 | F17: 3 | G17: 2.5 | H17: 3.5 | I17: 2 | J17: 3.5 | L17: 1
B18: Space requirement (1000 m2/MWe) | C18: 0.2 | D18: 0.2 | E18: 0.2 | F18: 0.2 | G18: 0.2 | H18: 0.3 | I18: 0.2 | J18: 0.3
B20: Primary regulation (% per 30 seconds) | C20: 2 | D20: 2 | E20: 2 | F20: 2 | G20: 2 | H20: 2 | I20: 2 | J20: 2
B21: Secondary regulation (% per minute) | C21: 4 | D21: 4 | E21: 4 | F21: 4 | G21: 4 | H21: 4 | I21: 4 | J21: 4 | K21: D | L21: 1
B22: Minimum load (% of full load) | C22: 40 | D22: 40 | E22: 40 | F22: 40 | G22: 40 | H22: 40 | I22: 40 | J22: 40
B23: Warm start-up time (hours) | C23: 2 | D23: 2 | E23: 2 | F23: 2 | G23: 2 | H23: 2 | I23: 2 | J23: 2 | K23: E | L23: 1
B24: Cold start-up time (hours) | C24: 8 | D24: 8 | E24: 8 | F24: 8 | G24: 8 | H24: 8 | I24: 8 | J24: 8 | L24: 1
B25: Environment
B26: SO2 (degree of desulphuring, %) | C26: 95.5 | D26: 96.4 | E26: 99.1 | F26: 99.8 | G26: 90.9 | H26: 99.8 | I26: 95.5 | J26: 99.9 | K26: F, L | L26: 1
B27: NOX (g per GJ fuel) | C27: 84 | D27: 67 | E27: 36 | F27: 18 | G27: 18 | H27: 84 | I27: 7 | J27: 36 | K27: F, L | L27: 1
B28: CH4 (g per GJ fuel) | C28: 0 | D28: 0 | E28: 0 | F28: 0 | G28: 0 | H28: 0 | I28: 0 | J28: 0 | K28: F, L | L28: 1
B29: N2O (g per GJ fuel) | C29: 1 | D29: 1 | E29: 1 | F29: 1 | G29: 1 | H29: 3 | I29: 0 | J29: 1 | K29: F, L | L29: 1
B30: Particles (g per GJ fuel) | C30: 0.3 | D30: 0.3 | E30: 0.3 | F30: 0.3 | G30: 0.1 | H30: 2 | I30: 0.1 | J30: 1 | K30: F, L | L30: 1
B31: Financial data
B32: Nominal investment (M€/MWe) | C32: 3.5 | D32: 3.5 | E32: 3.3 | F32: 3 | G32: 2.9 | H32: 4.1 | I32: 2.4 | J32: 4.1 | K32: J,K,L | L32: 1
B33: - of which equipment | C33: 2.2 | D33: 2.1 | E33: 2 | F33: 1.8 | G33: 1.8 | H33: 2.5 | I33: 1.5 | J33: 2.5 | K33: J,K,L
B34: - of which installation | C34: 1.4 | D34: 1.3 | E34: 1.3 | F34: 1.1 | G34: 1.2 | H34: 1.6 | I34: 0.9 | J34: 1.6 | K34: J,K,L
B35: Fixed O&M (€/MWe/year) | C35: 128700 | D35: 124900 | E35: 117300 | F35: 104700 | G35: 109600 | H35: 110400 | I35: 81500 | J35: 101600 | K35: J
B36: Variable O&M (€/MWh_e) | C36: 1.9 | D36: 1.9 | E36: 1.9 | F36: 1.9 | G36: 1.7 | H36: 2.2 | I36: 1.5 | J36: 2.4 | K36: J
B37: Technology specific data
B38: Steam reheat | C38: None | D38: None | E38: None | F38: None | G38: None | H38: Yes | I38: None | J38: Yes
B39: Flue gas condensation | C39: Yes | D39: Yes | E39: Yes | F39: Yes | G39: No | H39: Yes | I39: No | J39: Yes
B40: Combustion air humidification | C40: Yes | D40: Yes | E40: Yes | F40: Yes | G40: No | H40: Yes | I40: No | J40: Yes
B41: Nominal investment (M€/MW fuel input) | C41: 1.09 | D41: 1.07 | E41: 1.01 | F41: 0.92 | G41: 0.9 | H41: 1.25 | I41: 0.74 | J41: 1.26 | K41: J,K,L | L41: 1
B42: - of which equipment | C42: 0.67 | D42: 0.66 | E42: 0.63 | F42: 0.57 | G42: 0.55 | H42: 0.77 | I42: 0.45 | J42: 0.78 | K42: K,L
B43: - of which installation | C43: 0.42 | D43: 0.41 | E43: 0.39 | F43: 0.35 | G43: 0.36 | H43: 0.48 | I43: 0.29 | J43: 0.48 | K43: K,L
B44: Fixed O&M (€/MW input/year) | C44: 39700 | D44: 38500 | E44: 36300 | F44: 32400 | G44: 32500 | H44: 44600 | I44: 24900 | J44: 41900 | K44: J
B45: Variable O&M (€/MWh input) | C45: 0.6 | D45: 0.6 | E45: 0.6 | F45: 0.6 | G45: 0.51 | H45: 0.69 | I45: 0.45 | J45: 0.75 | K45: J
B46: Fuel storage specific cost in excess of 2 days (M€/MW_input/storage day) | C46: 0.065 | D46: 0.063 | E46: 0.06 | F46: 0.055 | G46: 0.055 | H46: 0.075 | I46: 0.045 | J46: 0.075 | K46: K
A49: References:
A50: 1 | B50: Rambøll Danmark, internal evaluation based on either existing projects, supplier offers, or pre-project studies.
A51: Notes:
A52: A | B52: The boiler in the plant is grate fired producing steam to be used in a subsequent back pressure steam turbine. Though a grate is reasonable flexible with respect to combusting different fuels the fuel feed system will be dependent on the type of fuel used.
A53: B | B53: Through a turbine by-pass all the produced steam energy can be used for District Heat production.
A54: C | B54: Since straw is relatively dry there is often only a minor efficiency advantage in using flue gas condensation. There is though an environmental advantage in having a scrubber in the flue gas stream. Direct condensation and combustion air humidification are included in all cases except in lower range of 2020 and 2050.
A55: D | B55: Secondary regulation normally relates to power production; for this type of plant it may not be of importance since load will normally follow heat consumption.
A56: E | B56: A limiting factor for the hot and cold start-up times is the size of the hot water tank (deaerator).
A57: F | B57: For NOx-emissions no lower than 40 g/GJ SNCR is assumed. It is probably necessary to include a tail-end SCR catalyst to fulfill expected BREF requirements, particularly after year 2030. This has slight adverse effect on the electricity efficiency.
A58: G | B58: Warm start is starting with a glowing fuel layer on the grate and a warm deaerator.
A59: H | B59: The total efficiency is the sum of electricity efficiency and heat efficiency, applicable for "name plate" and "annual average", respectively. The "annual average" electricity efficiency is lower than "name plate" due to turbine outages and other incidents. The resulting lost power production is recovered as heat. This is why "annual average" heat efficiency is higher than "name plate" heat. Efficiencies refer to lower heating value. The parasitic electricity consumption has been subtracted in the listed electricity efficiencies.
A60: I | B60: The Cv value does not exist for plants with a back pressure turbine or an ORC turbine
A61: J | B61: Investment applies to a standard plant. There could be cost related to the actual project or site that adds to the total investment, e.g. additional fuel storage, facilities for chipping of logs, conditions for foundation and harbour facilities. Financial data and Technological specific data are essentially the total cost either divided by the electric net capacity, i.e. corresponding to the indicated name plate efficiencies, or by the thermal input. This is to indicate that new plants may not fully take advantage of the technical capabilities for full electricity production capacity. The two cost for electricity and thermal input, respectively, are not to be added up!
A62: K | B62: Note that investments include only two days fuel storage, and more may be optimal, depending on fuel supply opportunities and heat supply obligations, amongst other things. The additional investment is listed in the bottom row.
A63: L | B63: Includes the following processes: DeNOx (ammonia injection (SNCR) or catalytic (SCR)), SO2 capture by injection of lime or the use of another SO2 absorbing system, dust abatement by bag house filters

Sheet 09 Straw, Medium
B1: Medium Straw | H1: Back to Index
B3: Technology | C3: 09 Medium Straw CHP, 80 MW feed, back pressure
C4: 2015 | D4: 2020 | E4: 2030 | F4: 2050 | G4: Uncertainty (2020) | I4: Uncertainty (2050) | K4: Note | L4: Ref
B5: Energy/technical data | G5: Lower | H5: Upper | I5: Lower | J5: Upper
B6: Generating capacity for one unit (MWe) | C6: 24.8 | D6: 24.4 | E6: 24.5 | F6: 24.5 | G6: 23.5 | H6: 25.1 | I6: 24.1 | J6: 25.2 | K6: A
B7: Electricity efficiency, net (%), name plate | C7: 31 | D7: 30.5 | E7: 30.6 | F7: 30.6 | G7: 29 | H7: 31 | I7: 30 | J7: 32 | K7: A, H | L7: 1
B8: Electricity efficiency, net (%), annual average | C8: 29.4 | D8: 29 | E8: 29.1 | F8: 29.1 | G8: 26 | H8: 30 | I8: 27 | J8: 30 | K8: A, H | L8: 1
B9: Heat efficiency, net (%), name plate | C9: 67.3 | D9: 67.7 | E9: 67.6 | F9: 67.6 | G9: 54 | H9: 69 | I9: 54 | J9: 68 | K9: B, H | L9: 1
B10: Heat efficiency, net (%), annual average | C10: 68.8 | D10: 69.3 | E10: 69.2 | F10: 69.2 | G10: 57 | H10: 71 | I10: 57 | J10: 70 | K10: B, H | L10: 1
B11: Additional heat potential with heat pumps (% of thermal input) | C11: 1.7 | D11: 1.7 | E11: 1.7 | F11: 1.7 | G11: 2 | H11: 14 | I11: 2 | J11: 14 | K11: C | L11: 1
B12: Cb coefficient (40°C/80°C) | C12: 0.46 | D12: 0.45 | E12: 0.45 | F12: 0.45 | G12: 0.43 | H12: 0.46 | I12: 0.45 | J12: 0.47
B13: Cv coefficient (40°C/80°C) | C13: 1 | D13: 1 | E13: 1 | F13: 1 | G13: 1 | H13: 1 | I13: 1 | J13: 1 | K13: I
B14: Forced outage (%) | C14: 4 | D14: 4 | E14: 4 | F14: 4 | G14: 4 | H14: 4 | I14: 4 | J14: 4
B15: Planned outage (weeks per year) | C15: 4 | D15: 4 | E15: 4 | F15: 4 | G15: 3.4 | H15: 4.6 | I15: 3 | J15: 5
B16: Technical lifetime (years) | C16: 25 | D16: 25 | E16: 25 | F16: 25 | G16: 20 | H16: 35 | I16: 20 | J16: 35 | L16: 1
B17: Construction time (years) | C17: 2.5 | D17: 2.5 | E17: 2.5 | F17: 2.5 | G17: 2 | H17: 3 | I17: 1.5 | J17: 3 | L17: 1
B18: Space requirement (1000 m2/MWe) | C18: 0.3 | D18: 0.3 | E18: 0.3 | F18: 0.3 | G18: 0.2 | H18: 0.3 | I18: 0.2 | J18: 0.4
B20: Primary regulation (% per 30 seconds) | C20: NA | D20: NA | E20: NA | F20: NA | G20: NA | H20: NA | I20: NA | J20: NA
B21: Secondary regulation (% per minute) | C21: 4 | D21: 4 | E21: 4 | F21: 4 | G21: 4 | H21: 4 | I21: 4 | J21: 4 | K21: D | L21: 1
B22: Minimum load (% of full load) | C22: 40 | D22: 40 | E22: 40 | F22: 40 | G22: 40 | H22: 40 | I22: 40 | J22: 40
B23: Warm start-up time (hours) | C23: 2 | D23: 2 | E23: 2 | F23: 2 | G23: 2 | H23: 2 | I23: 2 | J23: 2 | K23: E | L23: 1
B24: Cold start-up time (hours) | C24: 8 | D24: 8 | E24: 8 | F24: 8 | G24: 8 | H24: 8 | I24: 8 | J24: 8 | L24: 1
B25: Environment
B26: SO2 (degree of desulphuring, %) | C26: 95.5 | D26: 96.4 | E26: 99.1 | F26: 99.8 | G26: 90.9 | H26: 99.8 | I26: 95.5 | J26: 99.9 | K26: F, L | L26: 1
B27: NOX (g per GJ fuel) | C27: 87 | D27: 70 | E27: 47 | F27: 29 | G27: 18 | H27: 87 | I27: 7 | J27: 47 | K27: F, L | L27: 1
B28: CH4 (g per GJ fuel) | C28: 0 | D28: 0 | E28: 0 | F28: 0 | G28: 0 | H28: 0 | I28: 0 | J28: 0 | K28: F, L | L28: 1
B29: N2O (g per GJ fuel) | C29: 1 | D29: 1 | E29: 1 | F29: 1 | G29: 1 | H29: 3 | I29: 0 | J29: 1 | K29: F, L | L29: 1
B30: Particles (g per GJ fuel) | C30: 2 | D30: 0.3 | E30: 0.3 | F30: 0.3 | G30: 0.1 | H30: 2 | I30: 0.1 | J30: 1 | K30: F, L | L30: 1
B31: Financial data
B32: Nominal investment (M€/MWe) | C32: 3.7 | D32: 3.8 | E32: 3.6 | F32: 3.3 | G32: 3.1 | H32: 4.5 | I32: 2.6 | J32: 4.5 | K32: J,K,L | L32: 1
B33: - of which equipment | C33: 2.3 | D33: 2.3 | E33: 2.2 | F33: 2 | G33: 1.8 | H33: 2.7 | I33: 1.6 | J33: 2.8 | K33: J,K,L | L33: 1
B34: - of which installation | C34: 1.5 | D34: 1.5 | E34: 1.4 | F34: 1.3 | G34: 1.3 | H34: 1.7 | I34: 1 | J34: 1.7 | K34: J,K,L | L34: 1
B35: Fixed O&M (€/MWe/year) | C35: 150400 | D35: 149900 | E35: 141100 | F35: 126300 | G35: 129400 | H35: 168700 | I35: 98000 | J35: 158100 | K35: J | L35: 1
B36: Variable O&M (€/MWh_e) | C36: 1.9 | D36: 2 | E36: 2 | F36: 2 | G36: 1.7 | H36: 2.3 | I36: 1.5 | J36: 2.4 | K36: J | L36: 1
B37: Technology specific data
B38: Steam reheat | C38: None | D38: None | E38: None | F38: None | G38: None | H38: None | I38: None | J38: None
B39: Flue gas condensation | C39: Yes | D39: Yes | E39: Yes | F39: Yes | G39: No | H39: Yes | I39: No | J39: Yes
B40: Combustion air humidification | C40: Yes | D40: Yes | E40: Yes | F40: Yes | G40: No | H40: Yes | I40: No | J40: Yes
B41: Nominal investment (M€/MW fuel input) | C41: 1.16 | D41: 1.16 | E41: 1.1 | F41: 1 | G41: 0.95 | H41: 1.36 | I41: 0.81 | J41: 1.37 | K41: J,K,L | L41: 1
B42: - of which equipment | C42: 0.7 | D42: 0.71 | E42: 0.68 | F42: 0.62 | G42: 0.56 | H42: 0.84 | I42: 0.49 | J42: 0.84 | K42: K,L
B43: - of which installation | C43: 0.46 | D43: 0.45 | E43: 0.42 | F43: 0.38 | G43: 0.39 | H43: 0.53 | I43: 0.32 | J43: 0.53 | K43: K,L
B44: Fixed O&M (€/MW input/year) | C44: 46600 | D44: 45800 | E44: 43200 | F44: 38700 | G44: 38000 | H44: 53000 | I44: 29600 | J44: 49900 | K44: J
B45: Variable O&M (€/MWh input) | C45: 0.6 | D45: 0.6 | E45: 0.6 | F45: 0.6 | G45: 0.51 | H45: 0.69 | I45: 0.45 | J45: 0.75 | K45: J
B46: Fuel storage specific cost in excess of 2 days (M€/MW_input/storage day) | C46: 0.07 | D46: 0.068 | E46: 0.065 | F46: 0.059 | G46: 0.06 | H46: 0.081 | I46: 0.049 | J46: 0.081 | K46: K
A49: References:
A50: 1 | B50: Rambøll Danmark, internal evaluation based on either existing projects, supplier offers, or pre-project studies.
A51: Notes:
A52: A | B52: The boiler in the plant is grate fired producing steam to be used in a subsequent back pressure steam turbine. Though a grate is reasonable flexible with respect to combusting different fuels the fuel feed system will be dependent on the type of fuel used.
A53: B | B53: Through a turbine by-pass all the produced steam energy can be used for District Heat production.
A54: C | B54: Since straw is relatively dry there is often only a minor efficiency advantage in using flue gas condensation. There is though an environmental advantage in having a scrubber in the flue gas stream. Direct condensation and combustion air humidification are included in all cases except in lower range of 2020 and 2050.
A55: D | B55: Secondary regulation normally relates to power production; for this type of plant it may not be of importance since load will normally follow heat consumption.
A56: E | B56: A limiting factor for the hot and cold start-up times is the size of the hot water tank (deaerator).
A57: F | B57: For NOx-emissions no lower than 40 g/GJ SNCR is assumed. It is probably necessary to include a tail-end SCR catalyst to fulfill expected BREF requirements, particularly after year 2030. This has slight adverse effect on the electricity efficiency.
A58: G | B58: Warm start is starting with a glowing fuel layer on the grate and a warm deaerator.
A59: H | B59: The total efficiency is the sum of electricity efficiency and heat efficiency, applicable for "name plate" and "annual average", respectively. The "annual average" electricity efficiency is lower than "name plate" due to turbine outages and other incidents. The resulting lost power production is recovered as heat. This is why "annual average" heat efficiency is higher than "name plate" heat. Efficiencies refer to lower heating value. The parasitic electricity consumption has been subtracted in the listed electricity efficiencies.
A60: I | B60: The Cv value does not exist for plants with a back pressure turbine or an ORC turbine
A61: J | B61: Investment applies to a standard plant. There could be cost related to the actual project or site that adds to the total investment, e.g. additional fuel storage, facilities for chipping of logs, conditions for foundation and harbour facilities. Financial data and Technological specific data are essentially the total cost either divided by the electric net capacity, i.e. corresponding to the indicated name plate efficiencies, or by the thermal input. This is to indicate that new plants may not fully take advantage of the technical capabilities for full electricity production capacity. The two cost for electricity and thermal input, respectively, are not to be added up!
A62: K | B62: Note that investments include only two days fuel storage, and more may be optimal, depending on fuel supply opportunities and heat supply obligations, amongst other things. The additional investment is listed in the bottom row.
A63: L | B63: Includes the following processes: DeNOx (ammonia injection (SNCR) or catalytic (SCR)), SO2 capture by injection of lime or the use of another SO2 absorbing system, dust abatement by bag house filters

Sheet 09 Straw, Small
B1: Small Straw | H1: Back to Index
B3: Technology | C3: 09 Small Straw CHP, 20 MW feed, back pressure
C4: 2015 | D4: 2020 | E4: 2030 | F4: 2050 | G4: Uncertainty (2020) | I4: Uncertainty (2050) | K4: Note | L4: Ref
B5: Energy/technical data | G5: Lower | H5: Upper | I5: Lower | J5: Upper
B6: Generating capacity for one unit (MWe) | C6: 3 | D6: 3 | E6: 3 | F6: 3 | G6: 3 | H6: 3 | I6: 2.9 | J6: 3 | K6: A
B7: Electricity efficiency, net (%), name plate | C7: 15 | D7: 15 | E7: 15 | F7: 14.8 | G7: 15 | H7: 15 | I7: 15 | J7: 15 | K7: A, H | L7: 1
B8: Electricity efficiency, net (%), annual average | C8: 14.2 | D8: 14.2 | E8: 14.3 | F8: 14.1 | G8: 13 | H8: 14 | I8: 13 | J8: 14 | K8: A, H | L8: 1
B9: Heat efficiency, net (%), name plate | C9: 84.2 | D9: 84.2 | E9: 84.2 | F9: 84.4 | G9: 72 | H9: 85 | I9: 71 | J9: 85 | K9: B, H | L9: 1
B10: Heat efficiency, net (%), annual average | C10: 85 | D10: 85 | E10: 84.9 | F10: 85.1 | G10: 74 | H10: 85 | I10: 73 | J10: 86 | K10: B, H | L10: 1
B11: Additional heat potential with heat pumps (% of thermal input) | C11: 1.7 | D11: 1.7 | E11: 1.7 | F11: 1.7 | G11: 2 | H11: 13 | I11: 2 | J11: 14 | K11: C | L11: 1
B12: Cb coefficient (40°C/80°C) | C12: 0.18 | D12: 0.18 | E12: 0.18 | F12: 0.18 | G12: 0.18 | H12: 0.18 | I12: 0.17 | J12: 0.18
B13: Cv coefficient (40°C/80°C) | C13: 1 | D13: 1 | E13: 1 | F13: 1 | G13: 1 | H13: 1 | I13: 1 | J13: 1 | K13: I
B14: Forced outage (%) | C14: 4 | D14: 4 | E14: 4 | F14: 4 | G14: 4 | H14: 4 | I14: 4 | J14: 4
B15: Planned outage (weeks per year) | C15: 4 | D15: 4 | E15: 4 | F15: 4 | G15: 3.4 | H15: 4.6 | I15: 3 | J15: 5
B16: Technical lifetime (years) | C16: 25 | D16: 25 | E16: 25 | F16: 25 | G16: 20 | H16: 35 | I16: 20 | J16: 35 | L16: 1
B17: Construction time (years) | C17: 1 | D17: 1 | E17: 1 | F17: 1 | G17: 0.5 | H17: 1.5 | I17: 0.5 | J17: 1.5 | L17: 1
B18: Space requirement (1000 m2/MWe) | C18: 1 | D18: 1 | E18: 1 | F18: 1 | G18: 0.9 | H18: 1.2 | I18: 0.8 | J18: 1.3
B20: Primary regulation (% per 30 seconds) | C20: NA | D20: NA | E20: NA | F20: NA | G20: NA | H20: NA | I20: NA | J20: NA
B21: Secondary regulation (% per minute) | C21: 10 | D21: 10 | E21: 10 | F21: 10 | G21: 10 | H21: 10 | I21: 10 | J21: 10 | K21: D | L21: 1
B22: Minimum load (% of full load) | C22: 50 | D22: 50 | E22: 50 | F22: 50 | G22: 50 | H22: 50 | I22: 50 | J22: 50 | K22: D | L22: 1
B23: Warm start-up time (hours) | C23: 0.25 | D23: 0.25 | E23: 0.25 | F23: 0.25 | G23: 0.25 | H23: 0.25 | I23: 0.25 | J23: 0.25 | K23: G | L23: 1
B24: Cold start-up time (hours) | C24: 0.5 | D24: 0.5 | E24: 0.5 | F24: 0.5 | G24: 0.5 | H24: 0.5 | I24: 0.5 | J24: 0.5 | L24: 1
B25: Environment
B26: SO2 (degree of desulphuring, %) | C26: 95.5 | D26: 96.4 | E26: 99.1 | F26: 99.8 | G26: 90.9 | H26: 99.8 | I26: 95.5 | J26: 99.9 | K26: F, L | L26: 1
B27: NOX (g per GJ fuel) | C27: 90 | D27: 72 | E27: 55 | F27: 44 | G27: 55 | H27: 90 | I27: 44 | J27: 55 | K27: F, L | L27: 1
B28: CH4 (g per GJ fuel) | C28: 16 | D28: 11 | E28: 8 | F28: 4 | G28: 4 | H28: 16 | I28: 2 | J28: 16 | K28: F, L | L28: 1
B29: N2O (g per GJ fuel) | C29: 1 | D29: 1 | E29: 1 | F29: 1 | G29: 1 | H29: 3 | I29: 0 | J29: 1 | K29: F, L | L29: 1
B30: Particles (g per GJ fuel) | C30: 2 | D30: 0.3 | E30: 0.3 | F30: 0.3 | G30: 0.1 | H30: 2 | I30: 0.1 | J30: 1 | K30: F, L | L30: 1
B31: Financial data
B32: Nominal investment (M€/MWe) | C32: 7 | D32: 6.8 | E32: 6.4 | F32: 6.2 | G32: 5.9 | H32: 8 | I32: 5.2 | J32: 8.4 | K32: E,J,K,L | L32: 1
B33: - of which equipment | C33: 3.9 | D33: 3.8 | E33: 3.6 | F33: 3.6 | G33: 3.3 | H33: 4.5 | I33: 3 | J33: 4.9 | K33: K,L
B34: - of which installation | C34: 3 | D34: 3 | E34: 2.8 | F34: 2.6 | G34: 2.6 | H34: 3.5 | I34: 2.1 | J34: 3.6 | K34: K,L
B35: Fixed O&M (€/MWe/year) | C35: 323800 | D35: 318200 | E35: 306800 | F35: 298000 | G35: 276300 | H35: 365100 | I35: 235200 | J35: 378700 | K35: J
B36: Variable O&M (€/MWh_e) | C36: 4 | D36: 4 | E36: 4 | F36: 4 | G36: 3.4 | H36: 4.6 | I36: 3 | J36: 5.1 | K36: J
B37: Technology specific data
B38: Steam reheat | C38: None | D38: None | E38: None | F38: None | G38: None | H38: None | I38: None | J38: None
B39: Flue gas condensation | C39: Yes | D39: Yes | E39: Yes | F39: Yes | G39: No | H39: Yes | I39: No | J39: Yes
B40: Combustion air humidification | C40: Yes | D40: Yes | E40: Yes | F40: Yes | G40: No | H40: Yes | I40: No | J40: Yes
B41: Nominal investment (M€/MW fuel input) | C41: 1.05 | D41: 1.02 | E41: 0.97 | F41: 0.92 | G41: 0.89 | H41: 1.2 | I41: 0.77 | J41: 1.25 | K41: E,J,K,L | L41: 1
B42: - of which equipment | C42: 0.59 | D42: 0.58 | E42: 0.55 | F42: 0.53 | G42: 0.5 | H42: 0.68 | I42: 0.45 | J42: 0.72 | K42: K,L
B43: - of which installation | C43: 0.46 | D43: 0.44 | E43: 0.42 | F43: 0.38 | G43: 0.39 | H43: 0.52 | I43: 0.32 | J43: 0.53 | K43: K,L
B44: Fixed O&M (€/MW input/year) | C44: 48600 | D44: 47700 | E44: 46100 | F44: 44100 | G44: 40800 | H44: 55300 | I44: 34200 | J44: 56500 | K44: J
B45: Variable O&M (€/MWh input) | C45: 0.6 | D45: 0.6 | E45: 0.6 | F45: 0.6 | G45: 0.51 | H45: 0.69 | I45: 0.45 | J45: 0.75 | K45: J
B46: Fuel storage specific cost in excess of 2 days (M€/MW_input/storage day) | C46: 0.08 | D46: 0.078 | E46: 0.074 | F46: 0.067 | G46: 0.068 | H46: 0.092 | I46: 0.056 | J46: 0.093 | K46: K
A49: References:
A50: 1 | B50: Rambøll Danmark, internal evaluation based on either existing projects, supplier offers, or pre-project studies. NOTICE: There are to our knowledge no references on ORC plants running on straw.
A51: Notes:
A52: A | B52: The plant is directly producing hot water for District Heating by burning fuel on a grate. The electric power is produced by an ORC module (Organic Rankine Cycle; Waste Heat Recovery - WHR). Refer for instance to the following link for further information about technology and suppliers: http://www.enova.no/upload_images/36AC689098414B05A7112FA2EE985BDA.pdf . This is low temperature and low efficiency electric power but at an affordable price.
A53: B | B53: Boilers up to 20 MW fuel input for hot water production are more or less standardized products with a high degree of fuel flexibility (type of biomass, humidity etc.)
A54: C | B54: Since straw is relatively dry there is often only a minor efficiency advantage in using flue gas condensation. There is though an environmental advantage in having a scrubber in the flue gas stream. Direct condensation and combustion air humidification are included in all cases except in lower range of 2020 and 2050.
A55: D | B55: Secondary regulation normally relates to power production; for this type of plant it may not be of importance. Though, the load control of the heat production is important and most units will perform better than the figure shown. Also, minimum load could be substantially lower.
A56: E | B56: Since electricity generation is only a secondary objective for minor heat producers, it may make more sense to relate the total investment only to the heat production capacity.
A57: F | B57: It is anticipated that for the smaller units the supplier has a SNCR solutiuon to limit NOx emissions. SO2, CH4 and N2O emissions are low when combusting biomass.
A58: G | B58: Warm start is starting with a glowing fuel layer on the grate.
A59: H | B59: The total efficiency is the sum of electricity efficiency and heat efficiency, applicable for "name plate" and "annual average", respectively. The "annual average" electricity efficiency is lower than "name plate" due to turbine outages and other incidents. The resulting lost power production is recovered as heat. This is why "annual average" heat efficiency is higher than "name plate" heat. Efficiencies refer to lower heating value. The parasitic electricity consumption has been subtracted in the listed electricity efficiencies.
A60: I | B60: The Cv value does not exist for plants with a back pressure turbine or an ORC turbine
A61: J | B61: Investment applies to a standard plant. There could be cost related to the actual project or site that adds to the total investment, e.g. additional fuel storage, facilities for chipping of logs, conditions for foundation and harbour facilities. Financial data and Technological specific data are essentially the total cost either divided by the electric net capacity, i.e. corresponding to the indicated name plate efficiencies, or by the thermal input. This is to indicate that new plants may not fully take advantage of the technical capabilities for full electricity production capacity. The two cost for electricity and thermal input, respectively, are not to be added up!
A62: K | B62: Note that investments include only two days fuel storage, and more may be optimal, depending on fuel supply opportunities and heat supply obligations, amongst other things. The additional investment is listed in the bottom row.
A63: L | B63: Includes the following processes: DeNOx (ammonia injection (SNCR) or catalytic (SCR)), SO2 capture by injection of lime or the use of another SO2 absorbing system, dust abatement by bag house filters

Sheet 09 Wood Chips HOP
B1: Technology | H1: Back to Index
B3: Technology | C3: Wood Chips, HOP, 6 MW feed
C4: 2015 | D4: 2020 | E4: 2030 | F4: 2050 | G4: Uncertainty (2020) | I4: Uncertainty (2050) | K4: Note | L4: Ref
B5: Energy/technical data | G5: Lower | H5: Upper | I5: Lower | J5: Upper
B6: Heat generation capacity for one unit (MW) | C6: 6.9 | D6: 6.9 | E6: 6.9 | F6: 6.9 | G6: 5.3 | H6: 6.9 | I6: 5.3 | J6: 6.9 | K6: A | L6: 1
B7: Total efficiency, net (%), name plate | C7: 114.9 | D7: 114.9 | E7: 114.9 | F7: 114.9 | G7: 89 | H7: 115 | I7: 89 | J7: 115 | K7: B,C | L7: 1
B8: Total efficiency , net (%), annual average | C8: 114.9 | D8: 114.9 | E8: 114.9 | F8: 114.9 | G8: 89 | H8: 115 | I8: 89 | J8: 115 | K8: B,C | L8: 1
B9: Additional heat potential with heat pumps (% of thermal input) | C9: 2 | D9: 2 | E9: 2 | F9: 2 | G9: 2 | H9: 28 | I9: 2 | J9: 28 | K9: D | L9: 1
B10: Auxiliary electricity consumption (% of heat gen) | C10: 2.3 | D10: 2.3 | E10: 2.3 | F10: 2.3 | G10: 2.2 | H10: 2.5 | I10: 1.8 | J10: 2.5 | K10: C,K
B11: Forced outage (%) | C11: 3 | D11: 3 | E11: 3 | F11: 3 | G11: 3 | H11: 3 | I11: 3 | J11: 3
B12: Planned outage (weeks per year) | C12: 2 | D12: 2 | E12: 2 | F12: 2 | G12: 1.7 | H12: 2.3 | I12: 1.5 | J12: 2.5
B13: Technical lifetime (years) | C13: 25 | D13: 25 | E13: 25 | F13: 25 | G13: 20 | H13: 35 | I13: 20 | J13: 35 | L13: 1
B14: Construction time (years) | C14: 1 | D14: 1 | E14: 1 | F14: 1 | G14: 0.5 | H14: 1.5 | I14: 0.5 | J14: 1.5 | L14: 1
B15: Space requirement (1000 m2/MWth heat output) | C15: 0.2 | D15: 0.2 | E15: 0.2 | F15: 0.2 | G15: 0.2 | H15: 0.3 | I15: 0.2 | J15: 0.3
B17: Primary regulation (% per 30 seconds) | C17: NA | D17: NA | E17: NA | F17: NA | G17: NA | H17: NA | I17: NA | J17: NA
B18: Secondary regulation (% per minute) | C18: 10 | D18: 10 | E18: 10 | F18: 10 | G18: 10 | H18: 10 | I18: 10 | J18: 10 | K18: E | L18: 1
B19: Minimum load (% of full load) | C19: 20 | D19: 20 | E19: 20 | F19: 20 | G19: 20 | H19: 20 | I19: 20 | J19: 20 | K19: E | L19: 1
B20: Warm start-up time (hours) | C20: 0.25 | D20: 0.25 | E20: 0.25 | F20: 0.25 | G20: 0.25 | H20: 0.25 | I20: 0.25 | J20: 0.25 | K20: H | L20: 1
B21: Cold start-up time (hours) | C21: 0.5 | D21: 0.5 | E21: 0.5 | F21: 0.5 | G21: 0.5 | H21: 0.5 | I21: 0.5 | J21: 0.5 | L21: 1
B22: Environment
B23: SO2 (degree of desulphuring, %) | C23: 98 | D23: 98 | E23: 98 | F23: 98 | G23: 89.9 | H23: 99 | I23: 98 | J23: 99 | K23: G | L23: 1
B24: NOX (g per GJ fuel) | C24: 90 | D24: 63 | E24: 49 | F24: 41 | G24: 41 | H24: 81 | I24: 28 | J24: 41 | K24: I
B25: CH4 (g per GJ fuel) | C25: 16 | D25: 11 | E25: 8 | F25: 4 | G25: 4 | H25: 16 | I25: 2 | J25: 16 | K25: I
B26: N2O (g per GJ fuel) | C26: 4 | D26: 3 | E26: 3 | F26: 1 | G26: 1 | H26: 4 | I26: 1 | J26: 4 | K26: I
B27: Particles (g per GJ fuel) | C27: 2 | D27: 0.3 | E27: 0.3 | F27: 0.3 | G27: 0.1 | H27: 2 | I27: 0.1 | J27: 1 | K27: I
B28: Financial data
B29: Nominal investment (M€/MWth - heat output) | C29: 0.7 | D29: 0.68 | E29: 0.65 | F29: 0.59 | G29: 0.6 | H29: 0.81 | I29: 0.49 | J29: 0.81 | K29: F, L
B30: - of which equipment | C30: 0.41 | D30: 0.4 | E30: 0.38 | F30: 0.34 | G30: 0.35 | H30: 0.47 | I30: 0.28 | J30: 0.47 | K30: F, L
B31: - of which installation | C31: 0.3 | D31: 0.29 | E31: 0.27 | F31: 0.25 | G31: 0.25 | H31: 0.34 | I31: 0.21 | J31: 0.34 | K31: F, L
B32: Fixed O&M (€/MWth/year), heat output | C32: 32800 | D32: 32200 | E32: 31200 | F32: 29300 | G32: 35800 | H32: 37300 | I32: 29300 | J32: 37600
B33: Variable O&M (€/MWh) heat output | C33: 1 | D33: 1 | E33: 1 | F33: 1 | G33: 0.8 | H33: 1.1 | I33: 0.7 | J33: 1.2
B34: Technology specific data
B35: Flue gas condensation | C35: Yes | D35: Yes | E35: Yes | F35: Yes | G35: No | H35: Yes | I35: No | J35: Yes | K35: J, L
B36: Combustion air humidification | C36: Yes | D36: Yes | E36: Yes | F36: Yes | G36: No | H36: Yes | I36: No | J36: Yes | K36: J, L
B37: Nominal investment (M€/MW fuel input) | C37: 0.81 | D37: 0.79 | E37: 0.75 | F37: 0.68 | G37: 0.69 | H37: 0.93 | I37: 0.56 | J37: 0.94 | K37: J, L | L37: 1
B38: - of which equipment | C38: 0.47 | D38: 0.46 | E38: 0.43 | F38: 0.39 | G38: 0.4 | H38: 0.54 | I38: 0.32 | J38: 0.54 | K38: L
B39: - of which installation | C39: 0.34 | D39: 0.33 | E39: 0.32 | F39: 0.29 | G39: 0.29 | H39: 0.39 | I39: 0.24 | J39: 0.39 | K39: L
B40: Fixed O&M (€/MW input/year) | C40: 37700 | D40: 37100 | E40: 35900 | F40: 33700 | G40: 31700 | H40: 42900 | I40: 26000 | J40: 43300
B41: Variable O&M (€/MWh input) | C41: 2.5 | D41: 2.7 | E41: 3.4 | F41: 3.7 | G41: 2.4 | H41: 3 | I41: 2.9 | J41: 4.3
B42: - of which is electricity costs (€/MWh) | C42: 1.4 | D42: 1.6 | E42: 2.3 | F42: 2.6 | G42: 1.5 | H42: 1.7 | I42: 2.1 | J42: 2.9 | K42: C
B43: - of which is other O&M costs (€/MWh) | C43: 1.1 | D43: 1.1 | E43: 1.1 | F43: 1.1 | G43: 0.9 | H43: 1.3 | I43: 0.8 | J43: 1.4
B44: Fuel storage specific cost in excess of 2 days (M€/MW_input/storage day) | C44: 0.02 | D44: 0.02 | E44: 0.019 | F44: 0.017 | G44: 0.017 | H44: 0.023 | I44: 0.014 | J44: 0.023 | K44: L
A47: References:
A48: 1 | B48: Rambøll Danmark, internal evaluation based on either existing projects, supplier offers, or pre-project studies.
A49: Notes:
A50: A | B50: The plant is directly producing hot water for District Heating by burning fuel on a grate.
A51: B | B51: Boilers up to 20 MW fuel input for hot water production are more or less standardized products with a high degree of fuel flexibility (type of biomass, humidity etc.)
A52: C | B52: Efficiencies refer to lower heating value. The stated total efficiency does NOT consider auxiliary electricity consumption. It describes the total net amount of heat produced at the plant. This is contrary to CHP where the auxiliary electricity is subtracted from the production to yield the net electricity efficiency. Instead the cost of auxiliary electricity consumption is included in variable O&M and is calculated using the following electricity prices in €/MWh: 2015: 63, 2020: 69, 2030: 101, 2050: 117. These prices include production costs and transport tariffs, but not any taxes or subsidies for renewable energy.
A53: D | B53: There are plants of this type with up to 108 % efficiency using flue gas condensation with moist wood chips and close to 115 % efficiency with both flue gas condensation and absorption heat pumps activated. The colder the return temperature of the district heating, the higher the total efficiency at direct condensation. Direct condensation and combustion air humidification are included in all cases except in lower range of 2020 and 2050.
A54: E | B54: Load control of the heat production is important and units of this size can make rapid load variations. Similarly, the minimum load is quite low
A55: F | B55: Reference to heat output because of the lack of electricity production
A56: G | B56: assuming content of sulphur in fuel of 20 g/GJ
A57: H | B57: Warm start is starting with a glowing fuel layer on the grate.
A58: I | B58: Estimated from: Nielsen, M., Nielsen, O.-K., Plejdrup, M. & Hjelgaard, K., 2010: Danish Emission Inventories for Stationary Combustion Plants. Inventories until 2008. National Environmental Research Institute, Aarhus University, Denmark. 236 pp. – NERI Technical Report No. 795. http://www.dmu.dk/Pub/FR795.pdf.
A59: J | B59: The nominal investment is in the range 0.6 to 1.1 M€/Mwth
A60: K | B60: Result of model calculation, there are reports of DH plants operating at lower power consumption, down to 1% of heat generation.
A61: L | B61: Note that investments include only two days fuel storage, and more may be optimal, depending on fuel supply opportunities and heat supply obligations, amongst other things. The additional investment is listed in the bottom row.

Sheet 09 Wood Pellets HOP
B1: Technology | H1: Back to Index
B3: Technology | C3: Wood Pellets, HOP, 6 MW feed
C4: 2015 | D4: 2020 | E4: 2030 | F4: 2050 | G4: Uncertainty (2020) | I4: Uncertainty (2050) | K4: Note | L4: Ref
B5: Energy/technical data | G5: Lower | H5: Upper | I5: Lower | J5: Upper
B6: Heat generation capacity for one unit (MW) | C6: 6 | D6: 6 | E6: 6 | F6: 6 | G6: 5.4 | H6: 6 | I6: 5.4 | J6: 6 | K6: A | L6: 1
B7: Total efficiency, net (%), name plate | C7: 100.1 | D7: 100.1 | E7: 100.1 | F7: 100.1 | G7: 90 | H7: 100 | I7: 90 | J7: 100 | K7: B,C | L7: 1
B8: Total efficiency , net (%), annual average | C8: 100.1 | D8: 100.1 | E8: 100.1 | F8: 100.1 | G8: 90 | H8: 100 | I8: 90 | J8: 100 | K8: B,C | L8: 1
B9: Additional heat potential with heat pumps (% of thermal input) | C9: 1.7 | D9: 1.7 | E9: 1.7 | F9: 1.7 | G9: 2 | H9: 12 | I9: 2 | J9: 12 | K9: D | L9: 1
B10: Auxiliary electricity consumption (% of heat gen) | C10: 2.1 | D10: 2.1 | E10: 2.1 | F10: 2.1 | G10: 1.8 | H10: 2.3 | I10: 1.4 | J10: 2.3 | K10: C,K
B11: Forced outage (%) | C11: 3 | D11: 3 | E11: 3 | F11: 3 | G11: 3 | H11: 3 | I11: 3 | J11: 3
B12: Planned outage (weeks per year) | C12: 3 | D12: 3 | E12: 3 | F12: 3 | G12: 2.6 | H12: 3.5 | I12: 2.3 | J12: 3.8
B13: Technical lifetime (years) | C13: 25 | D13: 25 | E13: 25 | F13: 25 | G13: 20 | H13: 35 | I13: 20 | J13: 35 | L13: 1
B14: Construction time (years) | C14: 1 | D14: 1 | E14: 1 | F14: 1 | G14: 0.5 | H14: 1.5 | I14: 0.5 | J14: 1.5 | L14: 1
B15: Space requirement (1000 m2/MWth heat output) | C15: 0.2 | D15: 0.2 | E15: 0.2 | F15: 0.2 | G15: 0.1 | H15: 0.2 | I15: 0.1 | J15: 0.2
B17: Primary regulation (% per 30 seconds) | C17: NA | D17: NA | E17: NA | F17: NA | G17: NA | H17: NA | I17: NA | J17: NA
B18: Secondary regulation (% per minute) | C18: 10 | D18: 10 | E18: 10 | F18: 10 | G18: 10 | H18: 10 | I18: 10 | J18: 10 | K18: E | L18: 1
B19: Minimum load (% of full load) | C19: 40 | D19: 40 | E19: 40 | F19: 40 | G19: 40 | H19: 40 | I19: 40 | J19: 40 | K19: E | L19: 1
B20: Warm start-up time (hours) | C20: 0.25 | D20: 0.25 | E20: 0.25 | F20: 0.25 | G20: 0.25 | H20: 0.25 | I20: 0.25 | J20: 0.25 | K20: H | L20: 1
B21: Cold start-up time (hours) | C21: 0.5 | D21: 0.5 | E21: 0.5 | F21: 0.5 | G21: 0.5 | H21: 0.5 | I21: 0.5 | J21: 0.5 | L21: 1
B22: Environment
B23: SO2 (degree of desulphuring, %) | C23: 98.3 | D23: 98.3 | E23: 98.3 | F23: 98.3 | G23: 91.3 | H23: 99.1 | I23: 98.3 | J23: 99.1 | K23: G | L23: 1
B24: NOX (g per GJ fuel) | C24: 90 | D24: 54 | E24: 42 | F24: 35 | G24: 35 | H24: 70 | I24: 25 | J24: 35 | K24: G | L24: 1
B25: CH4 (g per GJ fuel) | C25: 0 | D25: 0 | E25: 0 | F25: 0 | G25: 0 | H25: 0 | I25: 0 | J25: 0 | K25: G | L25: 1
B26: N2O (g per GJ fuel) | C26: 1 | D26: 1 | E26: 1 | F26: 1 | G26: 1 | H26: 3 | I26: 0 | J26: 1 | K26: G | L26: 1
B27: Particles (g per GJ fuel) | C27: 2 | D27: 0.3 | E27: 0.3 | F27: 0.3 | G27: 0.1 | H27: 2 | I27: 0.1 | J27: 1 | K27: G | L27: 1
B28: Financial data
B29: Nominal investment (M€/MWth - heat output) | C29: 0.74 | D29: 0.72 | E29: 0.69 | F29: 0.67 | G29: 0.63 | H29: 0.9 | I29: 0.57 | J29: 0.91 | K29: F, L
B30: - of which equipment | C30: 0.45 | D30: 0.44 | E30: 0.42 | F30: 0.43 | G30: 0.38 | H30: 0.57 | I30: 0.36 | J30: 0.57 | K30: F, L
B31: - of which installation | C31: 0.29 | D31: 0.28 | E31: 0.27 | F31: 0.24 | G31: 0.25 | H31: 0.33 | I31: 0.2 | J31: 0.34 | K31: F, L
B32: Fixed O&M (€/MWth/year), heat output | C32: 34000 | D32: 33000 | E32: 31300 | F32: 29200 | G32: 31700 | H32: 39200 | I32: 25600 | J32: 37400 | K32: F
B33: Variable O&M (€/MWh) heat output | C33: 0.5 | D33: 0.5 | E33: 0.5 | F33: 0.5 | G33: 0.4 | H33: 0.6 | I33: 0.4 | J33: 0.6 | K33: F
B34: Technology specific data
B35: Flue gas condensation | C35: Yes | D35: Yes | E35: Yes | F35: Yes | G35: No | H35: Yes | I35: No | J35: Yes | K35: J
B36: Combustion air humidification | C36: Yes | D36: Yes | E36: Yes | F36: Yes | G36: No | H36: Yes | I36: No | J36: Yes | K36: J
B37: Nominal investment (M€/MW fuel input) | C37: 0.74 | D37: 0.72 | E37: 0.69 | F37: 0.67 | G37: 0.63 | H37: 0.9 | I37: 0.57 | J37: 0.91 | K37: J, L | L37: 1
B38: - of which equipment | C38: 0.45 | D38: 0.44 | E38: 0.42 | F38: 0.43 | G38: 0.38 | H38: 0.57 | I38: 0.36 | J38: 0.57 | K38: L
B39: - of which installation | C39: 0.29 | D39: 0.28 | E39: 0.27 | F39: 0.24 | G39: 0.25 | H39: 0.34 | I39: 0.2 | J39: 0.34 | K39: L
B40: Fixed O&M (€/MW input/year) | C40: 34000 | D40: 33100 | E40: 31300 | F40: 29300 | G40: 28300 | H40: 39300 | I40: 22900 | J40: 37500
B41: Variable O&M (€/MWh input) | C41: 1.8 | D41: 1.9 | E41: 2.6 | F41: 2.9 | G41: 1.6 | H41: 2.2 | I41: 2.1 | J41: 3.3
B42: - of which is electricity costs (€/MWh) | C42: 1.3 | D42: 1.4 | E42: 2.1 | F42: 2.4 | G42: 1.2 | H42: 1.6 | I42: 1.7 | J42: 2.7 | K42: C
B43: - of which is other O&M costs (€/MWh) | C43: 0.5 | D43: 0.5 | E43: 0.5 | F43: 0.5 | G43: 0.4 | H43: 0.6 | I43: 0.4 | J43: 0.6
B44: Fuel storage specific cost in excess of 2 days (M€/MW_input/storage day) | C44: 0.004 | D44: 0.004 | E44: 0.004 | F44: 0.003 | G44: 0.003 | H44: 0.005 | I44: 0.003 | J44: 0.005 | K44: L
A47: References:
A48: 1 | B48: Rambøll Danmark, internal evaluation based on either existing projects, supplier offers, or pre-project studies.
A49: Notes:
A50: A | B50: The plant is directly producing hot water for District Heating by burning fuel on a grate.
A51: B | B51: Boilers up to 20 MW fuel input for hot water production are more or less standardized products with a high degree of fuel flexibility (type of biomass, humidity etc.)
A52: C | B52: The stated total efficiency does NOT consider auxiliary electricity consumption. It describes the total net amount of heat produced at the plant. This is contrary to CHP where the auxiliary electricity is subtracted from the production to yield the net electricity efficiency. Instead the cost of auxiliary electricity consumption is included in variable O&M and is calculated using the following electricity prices in €/MWh: 2015: 63, 2020: 69, 2030: 101, 2050: 117. These prices include production costs and transport tariffs, but not any taxes or subsidies for renewable energy.
A53: D | B53: There are plants of this type with up to 108 % efficiency using flue gas condensation with moist wood chips and close to 115 % efficiency with both flue gas condensation and absorption heat pumps activated. The colder the return temperature of the district heating, the higher the total efficiency at direct condensation. Direct condensation and combustion air humidification are included in all cases except in lower range of 2020 and 2050.
A54: E | B54: Load control of the heat production is important and units of this size can make rapid load variations. Similarly, the minimum load is quite low
A55: F | B55: Reference to heat output because of the lack of electricity production
A56: G | B56: Emissions shall comply with Danish EPA guideline, Luftvejledningen. It is anticipated that for the smaller units the supplier has an SNCR solutiuon to reduce NOx emissions sufficiently.
A57: I | B57: Warm start is starting with a glowing fuel layer on the grate.
A58: J | B58: The nominal investment is in the range 0.6 to 1.1 M€/Mwth
A59: K | B59: Result of model calculation, there are reports of DH plants operating at lower power consumption
A60: L | B60: Note that investments include only two days fuel storage, and more may be optimal, depending on fuel supply opportunities and heat supply obligations, amongst other things. The additional investment is listed in the bottom row.

Sheet 09 Straw HOP
B1: Technology | H1: Back to Index
B3: Technology | C3: Straw, HOP, 6 MW feed
C4: 2015 | D4: 2020 | E4: 2030 | F4: 2050 | G4: Uncertainty (2020) | I4: Uncertainty (2050) | K4: Note | L4: Ref
B5: Energy/technical data | G5: Lower | H5: Upper | I5: Lower | J5: Upper
B6: Heat generation capacity for one unit (MW) | C6: 6.1 | D6: 6.1 | E6: 6.1 | F6: 6.1 | G6: 5.4 | H6: 6.1 | I6: 5.4 | J6: 6.1 | K6: A | L6: 1
B7: Total efficiency, net (%), name plate | C7: 102.1 | D7: 102.1 | E7: 102.1 | F7: 102.1 | G7: 89 | H7: 102 | I7: 89 | J7: 102 | K7: B,C | L7: 1
B8: Total efficiency , net (%), annual average | C8: 102.1 | D8: 102.1 | E8: 102.1 | F8: 3 | G8: 89 | H8: 102 | I8: 89 | J8: 102 | K8: B,C | L8: 1
B9: Additional heat potential with heat pumps (% of thermal input) | C9: 1.7 | D9: 1.7 | E9: 1.7 | F9: 1.7 | G9: 2 | H9: 14 | I9: 2 | J9: 14 | K9: D | L9: 1
B10: Auxiliary electricity consumption (% of heat gen) | C10: 2.1 | D10: 2.1 | E10: 2.1 | F10: 2.1 | G10: 1.9 | H10: 2.3 | I10: 1.5 | J10: 2.3 | K10: C,J
B11: Forced outage (%) | C11: 4 | D11: 4 | E11: 4 | F11: 4 | G11: 4 | H11: 4 | I11: 4 | J11: 4
B12: Planned outage (weeks per year) | C12: 4 | D12: 4 | E12: 4 | F12: 4 | G12: 3.4 | H12: 4.6 | I12: 3 | J12: 5
B13: Technical lifetime (years) | C13: 25 | D13: 25 | E13: 25 | F13: 25 | G13: 20 | H13: 35 | I13: 20 | J13: 35 | L13: 1
B14: Construction time (years) | C14: 1 | D14: 1 | E14: 1 | F14: 1 | G14: 0.5 | H14: 1.5 | I14: 0.5 | J14: 1.5 | L14: 1
B15: Space requirement (1000 m2/MWe) | C15: 0.2 | D15: 0.2 | E15: 0.2 | F15: 0.2 | G15: 0.2 | H15: 0.3 | I15: 0.2 | J15: 0.3
B17: Primary regulation (% per 30 seconds) | C17: NA | D17: NA | E17: NA | F17: NA | G17: NA | H17: NA | I17: NA | J17: NA
B18: Secondary regulation (% per minute) | C18: 10 | D18: 10 | E18: 10 | F18: 10 | G18: 10 | H18: 10 | I18: 10 | J18: 10 | K18: E | L18: 1
B19: Minimum load (% of full load) | C19: 50 | D19: 50 | E19: 50 | F19: 50 | G19: 50 | H19: 50 | I19: 50 | J19: 50 | K19: E | L19: 1
B20: Warm start-up time (hours) | C20: 0.25 | D20: 0.25 | E20: 0.25 | F20: 0.25 | G20: 0.25 | H20: 0.25 | I20: 0.25 | J20: 0.25 | K20: H | L20: 1
B21: Cold start-up time (hours) | C21: 0.5 | D21: 0.5 | E21: 0.5 | F21: 0.5 | G21: 0.5 | H21: 0.5 | I21: 0.5 | J21: 0.5 | L21: 1
B22: Environment
B23: SO2 (degree of desulphuring, %) | C23: 95.5 | D23: 96.4 | E23: 99.1 | F23: 99.8 | G23: 90.9 | H23: 99.8 | I23: 95.5 | J23: 99.9 | K23: G | L23: 1
B24: NOX (g per GJ fuel) | C24: 90 | D24: 72 | E24: 73 | F24: 73 | G24: 36 | H24: 90 | I24: 18 | J24: 73 | K24: G | L24: 1
B25: CH4 (g per GJ fuel) | C25: 16 | D25: 11 | E25: 8 | F25: 4 | G25: 4 | H25: 16 | I25: 2 | J25: 16 | K25: G | L25: 1
B26: N2O (g per GJ fuel) | C26: 4 | D26: 3 | E26: 2 | F26: 1 | G26: 1 | H26: 4 | I26: 1 | J26: 4 | K26: G | L26: 1
B27: Particles (g per GJ fuel) | C27: 2 | D27: 0.3 | E27: 0.3 | F27: 0.3 | G27: 0.1 | H27: 2 | I27: 0.1 | J27: 1 | K27: G | L27: 1
B28: Financial data
B29: Nominal investment (M€/MWth - heat output) | C29: 0.91 | D29: 0.89 | E29: 0.84 | F29: 0.76 | G29: 0.77 | H29: 1.09 | I29: 0.63 | J29: 1.1 | K29: F,K
B30: - of which equipment | C30: 0.44 | D30: 0.43 | E30: 0.41 | F30: 0.37 | G30: 0.37 | H30: 0.56 | I30: 0.31 | J30: 0.56 | K30: F,K
B31: - of which installation | C31: 0.47 | D31: 0.46 | E31: 0.43 | F31: 0.39 | G31: 0.4 | H31: 0.54 | I31: 0.32 | J31: 0.54 | K31: F,K
B32: Fixed O&M (€/MWth/year), heat output | C32: 52900 | D32: 51300 | E32: 48400 | F32: 43300 | G32: 50200 | H32: 60200 | I32: 38000 | J32: 56200 | K32: F
B33: Variable O&M (€/MWh) heat output | C33: 0.6 | D33: 0.6 | E33: 0.6 | F33: 0.6 | G33: 0.5 | H33: 0.7 | I33: 0.4 | J33: 0.7 | K33: F
B34: Technology specific data
B35: Flue gas condensation | C35: Yes | D35: Yes | E35: Yes | F35: Yes | G35: No | H35: Yes | I35: No | J35: Yes
B36: Combustion air humidification | C36: Yes | D36: Yes | E36: Yes | F36: Yes | G36: No | H36: Yes | I36: No | J36: Yes
B37: Nominal investment (M€/MW fuel input) | C37: 0.93 | D37: 0.9 | E37: 0.86 | F37: 0.78 | G37: 0.79 | H37: 1.12 | I37: 0.64 | J37: 1.12 | K37: I,K | L37: 1
B38: - of which equipment | C38: 0.45 | D38: 0.44 | E38: 0.42 | F38: 0.38 | G38: 0.38 | H38: 0.57 | I38: 0.31 | J38: 0.57 | K38: K
B39: - of which installation | C39: 0.48 | D39: 0.46 | E39: 0.44 | F39: 0.4 | G39: 0.41 | H39: 0.55 | I39: 0.33 | J39: 0.55 | K39: K
B40: Fixed O&M (€/MW input/year) | C40: 54000 | D40: 52400 | E40: 49400 | F40: 44200 | G40: 44800 | H40: 61600 | I40: 33900 | J40: 57500
B41: Variable O&M (€/MWh input) | C41: 1.9 | D41: 2.1 | E41: 2.7 | F41: 3.1 | G41: 1.8 | H41: 2.3 | I41: 2.2 | J41: 3.5
B42: - of which is electricity costs (€/MWh) | C42: 1.3 | D42: 1.5 | E42: 2.1 | F42: 2.5 | G42: 1.3 | H42: 1.6 | I42: 1.7 | J42: 2.7 | K42: C
B43: - of which is other O&M costs (€/MWh) | C43: 0.6 | D43: 0.6 | E43: 0.6 | F43: 0.6 | G43: 0.5 | H43: 0.7 | I43: 0.5 | J43: 0.8
B44: Fuel storage specific cost in excess of 2 days (M€/MW_input/storage day) | C44: 0.08 | D44: 0.078 | E44: 0.074 | F44: 0.067 | G44: 0.068 | H44: 0.092 | I44: 0.056 | J44: 0.093 | K44: K
A47: References:
A48: 1 | B48: Rambøll Danmark, internal evaluation based on either existing projects, supplier offers, or pre-project studies.
A49: Notes:
A50: A | B50: The plant is directly producing hot water for District Heating by burning fuel on a grate.
A51: B | B51: Boilers up to 20 MW fuel input for hot water production are more or less standardized products with a high degree of fuel flexibility (type of biomass, humidity etc.)
A52: C | B52: The stated total efficiency does NOT consider auxiliary electricity consumption. It describes the total net amount of heat produced at the plant. This is contrary to CHP where the auxiliary electricity is subtracted from the production to yield the net electricity efficiency. Instead the cost of auxiliary electricity consumption is included in variable O&M and is calculated using the following electricity prices in €/MWh: 2015: 63, 2020: 69, 2030: 101, 2050: 117. These prices include production costs and transport tariffs, but not any taxes or subsidies for renewable energy.
A53: D | B53: Since straw is relatively dry there is often only a minor efficiency advantage in using flue gas condensation. There is though an environmental advantage in having a scrubber in the flue gas stream. Direct condensation and combustion air humidification are included in all cases except in lower range of 2020 and 2050.
A54: E | B54: Load control of the heat production is important and units of this size can make rapid load variations. Similarly, the minimum load is quite low
A55: F | B55: Reference to heat output because of the lack of electricity production
A56: G | B56: Emissions shall comply with Danish EPA guideline, Luftvejledningen. It is anticipated that for the smaller units the supplier has an SNCR solutiuon to reduce NOx emissions sufficiently.
B57: Warm start is starting with a glowing fuel layer on the grate.
A58: I | B58: The nominal investment is in the range 0.6 to 1.1 M€/MWth
A59: J | B59: Result of model calculation, there are reports of DH plants operating at lower power consumption
A60: K | B60: Note that investments include only two days fuel storage, and more may be optimal, depending on fuel supply opportunities and heat supply obligations, amongst other things. The additional investment is listed in the bottom row.

Sheet 10 Stirling
B1: 10 Stirling Engines, Gasified Biomass | H1: Back to Index
B3: Technology | C3: Stirling engine, fired by gasified biomass
C4: 2015 | D4: 2020 | E4: 2030 | F4: 2050 | G4: Note | H4: Ref
B5: Energy/technical data
B6: Generating capacity electric, (kW) | C6: 37 | D6: 40 | H6: 1
B7: Generating capacity, heat, (kJ/s) | C7: 120 | D7: 120 | H7: 1
B8: Electrical efficiency (%) | C8: 20 | D8: 22 | G8: A | H8: 1
B9: Time for wam-up (hours) | C9: 1 | D9: 1 | H9: 1
B10: Forces outage (%) | C10: 4 | D10: 3 | H10: 1
B11: Planned outage (weeks per year) | C11: 3 | D11: 2 | H11: 1
B12: Technical lifetime (years) | C12: 15 | D12: 15 | H12: 1
B13: Construction time (years) | C13: 0.4 | D13: 0.3 | G13: B | H13: 1
B14: Environment
B15: SO2 (degree of desulphuring, %) | C15: 0 | D15: 0 | H15: 1
B16: NOx (ppm) | C16: 130 | D16: 100 | H16: 1
B17: CH4 (ppm) | C17: 0 | D17: 0 | H17: 1
B18: N20 (ppm) | C18: 0 | D18: 0 | H18: 1
B19: Financial data
B20: Specific investment costs (M€/MW) | C20: 5 | D20: 3.8 | G20: C+E | H20: 1
B21: Fixed O&M (€/MW/year) | C21: 32000 | D21: 32000 | G21: D+E | H21: 1
B22: Variable O&M (€/MWh) | C22: 26 | D22: 21 | G22: D+E | H22: 1
A24: References:
A25: 1 | B25: Stirling DK, December 2009
A26: Notes:
A27: A | B27: The efficiency of the gasifier is 97%, while the total efficiency for the whole system is 90% (2020).
A28: B | B28: The plants may be delivered as pre-assembled container solutions reducing construction times on site to a couple of weeks.
A29: C | B29: Complete plant, including gasifier, combustion chambers, engines, control system, piping, and instrumentation.
A30: D | B30: O&M for the Stirling engine itself is (2010) around 16 €/MWh, while the remianing O&M costs are for biomass feeding, gasification, heat exchangers etc.
A31: E | B31: Cost data are the same as in the 2010 catalogue, however inflated from price level 2008 to 2011 by multiplying with a general inflation factor 1.053

Sheet 11 SOFC-CHP
H1: Back to Index
B3: Technology | C3: 11 SOFC - CHP Natural Gas / Biogas
C4: 2015 | D4: 2020 | E4: 2030 | F4: 2050 | G4: Uncertainty (2020) | I4: Uncertainty (2050) | K4: Note | L4: Ref
B5: Energy/technical data | G5: Lower | H5: Upper | I5: Lower | J5: Upper
B6: Generating capacity for one unit (MWe) | C6: 0.25 | D6: 2.5 | E6: 10 | F6: 20 | K6: A | L6: 3; *; *; *
B7: Electricity efficiency (condensation mode for extraction plants), net (%), name plate | C7: 56 | D7: 58 | E7: 60 | F7: 60
B8: Electricity efficiency (condensation mode for extraction plants), net (%), annual average | C8: 56 | D8: 58 | E8: 60 | F8: 60 | G8: 52 | H8: 60 | I8: 56 | J8: 62 | K8: B | L8: 3; *; *; *
B9: Cb coefficient (50oC/100oC) | C9: - | D9: =2500/1500 -> 1.666666667 | E9: =10000/6200 -> 1.612903226 | F9: =20000/12400 -> 1.612903226 | K9: C, L | L9: -; *; *; *
B10: Cv coefficient (50oC/100oC) | C10: - | D10: - | E10: - | F10: -
B11: Forced outage (%)
B12: Planned outage (weeks per year)
B13: Technical lifetime (years) | C13: 15 | D13: 20 | E13: 20 | F13: 20 | K13: D | L13: 6; 6; *; *
B14: Construction time (years) | C14: 1 | D14: 1 | E14: 1 | F14: 1
B16: Regulation ability
B17: Primary regulation (% per 30 seconds)
B18: Secondary regulation (% per minute)
B19: Minimum load (% of full load) | C19: 70 | D19: 70 | E19: 70 | F19: 70
B20: Warm start-up time (hours) | C20: 0.025 | D20: 0.025 | E20: 0.025 | F20: 0.025 | K20: E
B21: Cold start-up time (hours) | C21: 25 | D21: 25 | E21: 25 | F21: 25 | K21: E | L21: *; *; *; *
B23: Environment
B24: SO2 (degree of desulphuring, %) | C24: 100 | D24: 100 | E24: 100 | F24: 100 | L24: 3
B25: NOX (g per GJ fuel) | C25: 1.3 | D25: 1.4 | E25: 1.5 | F25: 1.6 | L25: 3
B26: CH4 (g per GJ fuel) | C26: 1.25 | D26: 1.25 | E26: 1.25 | F26: 1.25 | K26: F | L26: 7
B27: N2O (g per GJ fuel) | C27: NA | D27: NA | E27: NA | F27: NA | K27: F | L27: *
B29: Financial data (in 2015€)
B30: Nominal investment (M€/MW) | C30: 8.3 | D30: 3.3 | E30: 2 | F30: 0.8 | G30: 2.7 | H30: 5.8 | I30: 0.4 | J30: 1.3 | K30: G, H, I, J | L30: 8, 13
B31: - of which equipment | C31: =0.8*C30 -> 6.64 | D31: =0.7*D30 -> 2.31 | E31: =0.6*E30 -> 1.2 | F31: =0.58*F30 -> 0.464 | K31: G
B32: - of which installation | C32: =C30-C31 -> 1.66 | D32: =D30-D31 -> 0.99 | E32: =E30-E31 -> 0.8 | F32: =F30-F31 -> 0.336 | K32: G
B33: Fixed O&M (€/MW/year) | C33: =0.05*C30*1000000 -> 415000 | D33: 165000 | E33: 100000 | F33: 40000 | G33: 135000 | H33: 290000 | I33: 20000 | J33: 65000 | K33: K | L33: 8
B34: Variable O&M (€/MWh) | C34: -
B35: Startup cost (€/MW/startup) | C35: -
B37: Technology specific data
B41: Notes:
A42: A | B42: Installed systems consist of modules of app. 200 kWel power, these modules can be clustered into larger units. Today, often up to app. 2 MWel power and upwards. [5,8]
A43: B | B43: The electrical efficiency (based on the lower heating value, LHV) of Bloom Energy’s systems decreases from an initial value of 60 % to 52 % by the end-of life for the stacks. This gives an average electrical efficiency of 56 % for the life-time of a stack. Uncertainties represent the aforementioned interval.
A44: C | B44: No CHP-systems in this power range are available, therefore, Bloom Energy ES-5710 unit has been chosen as the reference system. This system is a power producing system and does not take the produced heat into account. . The produced heat can be used as thermal storage, hot water production, heating or for feed in to the distributed heating system. High total efficiencies can be expected as the systems are compact and with a small surface area, leading to low heat losses and thereby high total system efficiency. Thus it is not unrealistic to assume a total efficiency above 90 % (thermal efficiency > 35 %) for this type of system.
A45: D | B45: Values correspond to the durability for the whole plant; the stack may be exchanged several times during the life time of the plant.
A46: E | B46: Start up from outdoor temperature or room temperature takes rather long time, this is mainly due to the large amount of ceramic material which require slow heating ramps. If the system is at operating temperature the stack can be started up quickly, assuming that gases are supplied and help systems are active. Also shut down can be performed quickly, not counting in the time required to cool the system.
A47: F | B47: Value for SOFC microCHP systems used here, since SOFC-CHP’s has the same operating principle.
A48: G | B48: A bloom unit costs approximately 6600 euro per kWel. To this must the installation costs be added, which of course depends on the location and the size of the unit. Additional costs are also to cover for necessary modifications of the system, e.g. implementation of hot water storage and subsystems for exporting the heat from the unit to surrounding buildings or distributed heating grid.
A49: H | B49: Start up from outdoor temperature or room temperature takes rather long time, this is mainly due to the large amount of ceramic material which require slow heating ramps. If the system is at operating temperature the stack can be started up quickly, assuming that gases are supplied and help systems are active. Also shut down can be performed quickly, not counting in the time required to cool the system.
A50: I | B50: The best estimates for nominal investments in 2020, 2030 and 2050 are estimated from [9]. In 2020 an annual production of 50 units is assumed, in 2030 a yearly production of 250 units is assumed, and in 2050 a production of 4000 units per year is assumed.
A51: J | B51: Estimation of uncertainties for investment costs are estimated from [9] with an annual production of 10/150 units in 2020 and 1000/10000 units in 2050
A52: K | B52: Fixed O&M costs are estimated as 5% of the investment cost.
A53: L | B53: The heat efficiency, which can be derived, depends on the return temperature of the cooling circuit and the size of the heat exchanger.
B55: References:
A56: [1] | B56: BloomEnergy, www.bloomenergy.com, 2014-11-11
A57: [2] | B57: https://www.mhps.com/en/technology/index.html, 2014-11-14
A58: [3] | B58: BloomEnergy, Product datasheet: ES-5710 Energy Saver, November 2014: http://c0688662.cdn.cloudfiles.rackspacecloud.com/downloads_pdf_Bloomenergy_DataSheet_ES-5710.pdf
A59: [4] | B59: BloomEnergy, Product datasheet: ES-5700 Energy Saver, November 2014: http://c0688662.cdn.cloudfiles.rackspacecloud.com/downloads_pdf_Bloomenergy_DataSheet_ES-5700.pdf
A60: [5] | B60: Iskov H., Rasmussen N.B., “Update of technology data for energy plants: Fuel cells, electrolysis and technologies for bio-SNG”, Danish gas Technology centre, 2013.
A61: [6] | B61: Fuel Cell and Hydrogen Joint Undertaking: “Multi – Annual Work Plan 2014-2020”, adopted 2014-06-30
A62: [7] | B62: http://www.asue.de, 2014-11-17
A63: [8] | B63: BloomEnergy Server, http://en.wikipedia.org/wiki/Bloom_Energy_Server, 2015-02-02
A64: [13] | B64: Chick, LA; Gotthold, DW; Weimar, MR; Whyatt, GA, Cost Study for Manufacturing of Solid Oxide Fuel Cell Power Systems, 2013, Pacific Northwest National Laboratory prepared for the U.S. Department of Energy.
A65: * | B65: An asterisk in the reference indicate high uncertainty or "guesstimate", where more certain data where not available

Sheet 12 LT-PEMFC CHP
H1: Back to Index
B3: Technology | C3: 12 LT-PEMFC CHP hydrogen gas
C4: 2015 | D4: 2020 | E4: 2030 | F4: 2050 | G4: Uncertainty (2020) | I4: Uncertainty (2050) | K4: Note | L4: Ref
B5: Energy/technical data | G5: Lower | H5: Upper | I5: Lower | J5: Upper
B6: Generating capacity for one unit (MWe) | C6: 0.05 | D6: 0.1 | E6: 1 | F6: 2 | L6: 5
B7: Electricity efficiency (condensation mode for extraction plants), net (%), name plate | C7: 45 | D7: 50 | E7: 50 | F7: 50 | L7: 5
B8: Electricity efficiency (condensation mode for extraction plants), net (%), annual average | C8: 45 | D8: 50 | E8: 50 | F8: 50 | G8: 45 | H8: 52 | I8: 46 | J8: 53 | K8: A | L8: 3, 5
B9: Cb coefficient (50oC/100oC) | C9: - | D9: =50/40 -> 1.25 | E9: =50/40 -> 1.25 | F9: =50/40 -> 1.25 | K9: D
B10: Cv coefficient (50oC/100oC) | C10: - | D10: - | E10: - | F10: -
B11: Forced outage (%) | C11: 0.1 | D11: 0.1 | E11: 0.1 | F11: 0.1
B12: Planned outage (weeks per year) | D12: 0.1 | E12: 0.1 | F12: 0.1
B13: Technical lifetime (years) | C13: 10 | D13: 10 | E13: 10 | F13: 10 | L13: 5
B14: Construction time (years) | C14: 1 | D14: 1 | E14: 1 | F14: 1
B16: Regulation ability
B17: Primary regulation (% per 30 seconds) | C17: =0.05/C6/2*100 -> 50 | D17: =0.05/D6/2*100 -> 25 | E17: =0.05/E6/2*100 -> 2.5 | F17: =0.05/F6/2*100 -> 1.25
B18: Secondary regulation (% per minute)
B19: Minimum load (% of full load) | C19: 10 | D19: 10 | E19: 10 | F19: 10
B20: Warm start-up time (hours) | C20: 0.01 | D20: 0.01 | E20: 0.01 | F20: 0.01
B21: Cold start-up time (hours)
B23: Environment
B24: SO2 (degree of desulphuring, %) | C24: 100 | D24: 100 | E24: 100 | F24: 100
B25: NOX (g per GJ fuel) | C25: 0 | D25: 0 | E25: 0 | F25: 0
B26: CH4 (g per GJ fuel) | C26: 0 | D26: 0 | E26: 0 | F26: 0
B27: N2O (g per GJ fuel) | C27: 0 | D27: 0 | E27: 0 | F27: 0
B29: Financial data (in 2015€)
B30: Nominal investment (M€/MW) | C30: 1.9 | D30: 1.3 | E30: 1.1 | F30: 0.8 | G30: 1.1 | H30: 1.6 | I30: 0.5 | J30: 0.9 | K30: B | L30: 3, 4
B31: - of which equipment | C31: 1.6 | D31: 1 | E31: 0.8 | F31: 0.6 | L31: 4
B32: - of which installation | C32: 0.3 | D32: 0.3 | E32: 0.3 | F32: 0.2 | L32: 4
B33: Fixed O&M (€/MW/year) | C33: =C30*0.05*1000000 -> 95000 | D33: =D30*0.05*1000000 -> 65000 | E33: =E30*0.05*1000000 -> 55000 | F33: =F30*0.05*1000000 -> 40000 | K33: C
B34: Variable O&M (€/MWh)
B36: Technology specific data
B37: Minimum load efficiency (%) | C37: 30 | D37: 35 | E37: 35 | F37: 35 | L37: 5
A39: Notes:
A40: A | B40: Uncertainties for efficiency based on [2]
A41: B | B41: Estimation of uncertainties for nominal investment costs based on [2]
A42: C | B42: Fixed O&M costs are estimated to 5% of the investment cost based on [2]
A43: D | B43: The heat efficiency, which can be derived, depends on the return temperature of the cooling circuit and the size of the heat exchanger.
A45: References:
A46: [3] | B46: International Energy Agency, 2015, Technology Roadmap - Hydrogen and Fuel Cells.
A47: [4] | B47: Ea Energy Analyses et al. 2016, Technology Data for Hydrogen Technologies.
A48: [5] | B48: Practical data and expert opinion from Dantherm Power
A49: * | B49: An asterisk in the reference indicate high uncertainty or "guesstimate", where more certain data where not available.

Sheet 20 Onshore turbines
G1: Back to Index | H1: Back to Index
B3: Technology | C3: 20 Large wind turbines on land
B4: Year of final investment decision | C4: 2015 | D4: 2020 | E4: 2030 | F4: 2050 | G4: Uncertainty (2020) | I4: Uncertainty (2050) | K4: Note | L4: Ref
B5: Energy/technical data | G5: Lower | H5: Upper | I5: Lower | J5: Upper
B6: Generating capacity for one unit (MW) | C6: 3.5 | D6: 3.5 | E6: 4 | F6: 5 | G6: 2 | H6: 6 | I6: 1.5 | J6: 8 | K6: A1 | L6: 3
B7: Average annual full-load hours | C7: 3100 | D7: 3150 | E7: 3200 | F7: 3300 | G7: 2000 | H7: 4000 | I7: 2000 | J7: 4500 | K7: A, L | L7: 3
B8: Forced outage (%) | C8: 0.03 | D8: 0.025 | E8: 0.02 | F8: 0.015 | G8: 0.01 | H8: 0.05 | I8: 0.01 | J8: 0.05 | K8: B | L8: 4
B9: Planned outage (%) | C9: 0.003 | D9: 0.003 | E9: 0.003 | F9: 0.003 | G9: 0.001 | H9: 0.005 | I9: 0.001 | J9: 0.005 | K9: C | L9: 4
B10: Technical lifetime (years) | C10: 25 | D10: 27 | E10: 30 | F10: 30 | G10: 25 | H10: 35 | I10: 25 | J10: 40 | K10: D | L10: 14
B11: Construction time (years) | C11: 1.5 | D11: 1.5 | E11: 1.5 | F11: 1.5 | G11: 1 | H11: 3 | I11: 1 | J11: 3 | K11: E | L11: 4
B12: Space requirement (1000m2/MW) | C12: --- | D12: --- | E12: --- | F12: --- | G12: --- | H12: --- | I12: --- | J12: --- | K12: F
B13: Regulation ability
B14: Primary regulation (% per 30 seconds) | K14: G
B15: Secondary regulation (% per minute) | K15: G
B16: Financial data (in 2015€)
B17: Nominal investment (M€/MW) incl grid connection | C17: 1.071 | D17: 0.98532 | E17: 0.9064944 | F17: 0.833974848 | G17: 0.886788 | H17: 1.083852 | I17: 0.6671798784 | J17: 1.000769818 | K17: H | L17: 16, 2, 4
B18: Nominal investment (M€/MW) excl. grid connection (5% of nom. Investment) | C18: 1.02 | D18: 0.94 | E18: 0.86 | F18: 0.79 | G18: 0.846 | H18: 1.034 | I18: 0.632 | J18: 0.948 | K18: I, M | L18: 16, 2, 4
B19: - of which equipment | C19: 0.75 | D19: 0.75 | E19: 0.75 | F19: 0.75 | G19: 0.7 | H19: 0.8 | I19: 0.7 | J19: 0.8 | L19: 4
B20: - of which installation | C20: 0.25 | D20: 0.25 | E20: 0.25 | F20: 0.25 | G20: 0.2 | H20: 0.3 | I20: 0.2 | J20: 0.3 | L20: 4
B21: Fixed O&M (€/MW/year) | C21: 25600 | D21: 23900 | E21: 22300 | F21: 21200 | G21: 21510 | H21: 26290 | I21: 16960 | J21: 25440 | K21: J,N
B22: Variable O&M (€/MWh) | C22: 2.8 | D22: 2.5 | E22: 2.3 | F22: 2.1 | G22: 2.25 | H22: 2.75 | I22: 1.68 | J22: 2.52 | K22: J,N | L22: 4, 15, 18
B23: Technology specific data
B24: Rotor diameter | C24: 120 | D24: 120 | E24: 130 | F24: 150 | G24: 90 | H24: 130 | I24: 100 | J24: 150 | K24: K | L24: 4
B25: Hub height | C25: 90 | D25: 90 | E25: 100 | F25: 110 | G25: 85 | H25: 120 | I25: 85 | J25: 150 | L25: 4
B26: Specific power (W/m2) | C26: 309.4682063 | D26: 309.4682063 | E26: 301.3587267 | F26: 282.94236 | G26: 270 | H26: 350 | I26: 250 | J26: 350
B27: Average capacity factor | C27: 0.3652968037 | D27: 0.3710045662 | E27: 0.3767123288 | F27: 0.3881278539 | G27: 0.2283105023 | H27: 0.4566210046 | I27: 0.2283105023 | J27: 0.5136986301 | L27: 4
B28: Average availability (%) | C28: 0.967 | D28: 0.972 | E28: 0.977 | F28: 0.982 | G28: 0.989 | H28: 0.945 | I28: 0.989 | J28: 0.945 | L28: 4
A30: References:
A31: 2 | B31: DTU International Energy Report - Wind Energy, DTU, 2014
A32: 3 | B32: Master data register of wind turbines at end of December 2014, Danish Energy Agency, 2015
A33: 4 | B33: Nielsen, P. et. al., Vindmøllers økonomi EUDP projekt 33033-0196, 2010
A34: 14 | B34: Information from Energinet.dk based on analyses of resent installed projects (2013-14), published under "Købsretsordningen", 2015
A35: 15 | B35: Når all-inclusive service alligevel ikke dækker alt, Naturlig Energi, nov. 2014
A36: 16 | B36: Schwabe, P., Lensink, S. & Hand, M., IEA Wind Task 26: Multi-national case study of the financial cost of wind energy, 2011
A37: 18 | B37: Hvor længe holder en mølle, Naturlig Energi, januar 2012
A39: Notes:
A40: A1 | B40: The capacity is set to 3.5 MW in 2015 and 2020 based on data of current wind turbines (Stamdataregisteret) and under the anticipation that the maximum height will not exeed 150m before 2020. From 2030 a slight increase in generator size, and hub height is assumed.
A41: A | B41: The full load hours (annual produktion (MWh) per installed power (MW)) depending on the actual location of the wind farm, wake losses and technological characteristics of the individual turbine. The value is an average for the expected locations of the wind farms. FLH also depends on wake losses, noise reduction and technological characteristics of the individual turbine. The level for 2015 and 2020 is based on data for existing onshore turbines of the same configuration (Stamdataregisteret) and recent prospects for onshore projects published in relation to Køberetsordningen. For 2030 and 2050 a slight increase is assumed based on decrease in specific power and increase in hub height.
A42: B | B42: Modern turbines has typically higher forced outage than older smaller turbines had when they were newer due to more complex technology.
A43: C | B43: Planned outage is typically 1-2 service visits a year, with a maximum duration of one work day, but there can also be planned outage due to shadow flicker stop or sector management (protect turbines at given wind speeds and directions, where they are dense spaced).
A44: D | B44: The life time depends on the wind conditions; average annual speed and turbulence, relative to the design class of the turbine
A45: E | B45: The construction time is the periode from FID to commissioning. But from first "dig" to turbines are in operation less than ½ a year is needed for smaller wind farms (clusters), where the similar periode for larger wind farms will be longer. The planning time from idea to construction starts will typically be 2-3 years, but can be essentially more if permitting problems occour.
A46: F | B46: An area of around 50 m x 50 m is needed for a modern wind turbine. Another way of defining the "area use" could be the noise zone, which ranges up to 600-800 m from the wind turbine in worst case.
A47: G | B47: Wind turbines can be downward regulated within very short time and can therefore (if the wind is blowing) be used in both the primary and secondary downward regulation.
A48: H | B48: 2015 Investment cost based on a number of recent prospects for projects published in relation to Køberetsordningen. The price is excl. land rent, buy out of existing older turbines and possible buy out of settlements within wind farm area which are highly variable costs.
A49: I | B49: The grid connection is sozialized in Denmark and can be subtracted from the given nominal investment seen from the project owner
A50: J | B50: 75 % of the total yearly O&M costs are assumed to be fixed cost and 25 % are assumed to be variable cost.
A51: K | B51: Currently only turbines up to 150 m total height is installed commercially in Denmark because of strict demands to higher turbines. No change in the national regulation is assumed until after 2020. Some test sites allow for larger turbines. Aboard e.g. in Germany windmills with at total higher of 200 m is installed today.
A52: L | B52: It is expected that the production (FLH) increase 1.5 % from 2015 to 2020 and 2020-2030 and 3% in from 2030-2050
A53: M | B53: It is predicted that the investment cost for on shore turbines will be reduced 8% in each period; 2015-2020, 2020-2030 and 2030-2050.
A54: N | B54: t is predicted that the cost of O&M for on shore turbines will be reduced 8% in each period; 2015-2020, 2020-2030 and 2030-2050.
A56: All references holds the same numbering as for the chapter "Wind turbines on-shore"

Sheet 20 Domestic turbines
G1: Back to Index | H1: Back to Index
B3: Technology | C3: 20 Small wind turbines, grid connected (< 25 kW)
B4: Year of final investment decision | C4: 2015 | D4: 2020 | E4: 2030 | F4: 2050 | G4: Uncertainty (2020) | I4: Uncertainty (2050) | K4: Note | L4: Ref
B5: Energy/technical data | G5: Lower | H5: Upper | I5: Lower | J5: Upper
B6: Generating capacity for one unit (MW) | C6: < 0,025 | G6: 0.005 | H6: 0.025 | I6: 0.005 | J6: 0.025
B7: Average annual full-load hours | C7: 1600 | D7: 1600 | E7: 1600 | F7: 1600 | G7: 1000 | H7: 2300 | I7: 1000 | J7: 2300 | K7: A,J
B8: Forced outage (%) | C8: 0.03 | D8: 0.03 | E8: 0.03 | F8: 0.03 | G8: 0.02 | H8: 0.1 | I8: 0.02 | J8: 0.1
B9: Planned outage (%) | C9: 0.003 | D9: 0.003 | E9: 0.003 | F9: 0.003 | G9: 0.001 | H9: 0.005 | I9: 0.001 | J9: 0.005 | K9: B
B10: Technical lifetime (years) | C10: 20 | D10: 20 | E10: 20 | F10: 20 | G10: --- | H10: --- | I10: --- | J10: ---
B11: Construction time (years) | C11: 1 | D11: 1 | E11: 1 | F11: 1 | G11: 0.5 | H11: 1.5 | I11: 0.5 | J11: 1.5
B12: Space requirement (1000m2/MW) | C12: 0.8 | D12: 0.8 | E12: 0.8 | F12: 0.8 | G12: --- | H12: --- | I12: --- | J12: --- | K12: C
B13: Regulation ability
B14: Primary regulation (% per 30 seconds) | C14: --- | D14: --- | E14: --- | F14: --- | G14: --- | H14: --- | I14: --- | J14: --- | K14: D
B15: Secondary regulation (% per minute) | C15: --- | D15: --- | E15: --- | F15: --- | G15: --- | H15: --- | I15: --- | J15: --- | K15: D
B16: Financial data (in 2015€)
B17: Nominal investment (M€/MW) | C17: 4 | D17: 3.8 | E17: 3.61 | F17: 3.4295 | G17: 3 | H17: 6 | I17: 3 | J17: 6 | K17: E/F
B18: - of which equipment | C18: 0.9 | D18: 0.9 | E18: 0.9 | F18: 0.9 | G18: 0.85 | H18: 0.95 | I18: 0.85 | J18: 0.95 | K18: E/F
B19: - of which installation | C19: 0.1 | D19: 0.1 | E19: 0.1 | F19: 0.1 | G19: 0.15 | H19: 0.05 | I19: 0.15 | J19: 0.05 | K19: E/F
B20: Fixed O&M (€/MW/year) | C20: 100000 | D20: 95000 | E20: 90000 | F20: 85000 | G20: --- | H20: --- | I20: --- | J20: --- | K20: G
B21: Variable O&M (€/MWh) | C21: --- | D21: --- | E21: --- | F21: --- | G21: --- | H21: --- | I21: --- | J21: ---
B22: Technology specific data
B23: Rotor diameter | C23: 8 | D23: 8 | E23: 8 | F23: 8 | G23: 4 | H23: 14 | I23: 4 | J23: 14 | K23: H
B24: Hub height | C24: 18 | D24: 18 | E24: 18 | F24: 18 | G24: 14 | H24: 18 | I24: 14 | J24: 18 | K24: H
B25: Fixed O&M (€/unit) | C25: 540 | D25: 540 | E25: 540 | F25: 540 | G25: 350 | H25: 700 | I25: 350 | J25: 700 | K25: E/F
A28: Notes:
A29: A | B29: The annual production is very sensitive to conditions at the actual site. Values outside the range is observed.
A30: B | B30: The maintenance normally consists of 1 -2 annual service visits.
A31: C | B31: An area of around 5 m x 5 m is needed for at small wind turbine. The real "area use" is the noise zone, which ranges up to 100 m from the wind turbine in worst case.
A32: D | B32: Not considered relevant for small domestic turbines.
A33: E | B33: Based on information from manufacturers and resellers. The
A34: F | B34: The prices depends significantly on turbine size (5 kW - 6 M€/MW; 10 kW - 4 M€/MW ; 25 kW - 3 M€/MW)
A35: G | B35: The service cost is assumed fixed to 100€/kW/y.
A36: H | B36: Domestic turbines have a maximum total height of 25 m according to Danish regulations.
A37: J | B37: No development in the capacity factor is expected, because no changing in the size limitation (legislation) is expected. And because location is crucial and one must expect the turbines is put up at the best positions already. But change in legislation i

Sheet 21 Offshore turbines
G1: Back to Index | H1: Back to Index
B2: Updated June 2017 (Financial data (Investment cost and O&M))
B4: Technology | C4: 21 Large wind turbines off-shore
B5: Year of final investment decision | C5: 2015 | D5: 2020 | E5: 2030 | F5: 2050 | G5: Uncertainty (2020) | I5: Uncertainty (2050) | K5: Note | L5: Ref
B6: Energy/technical data | G6: Lower | H6: Upper | I6: Lower | J6: Upper
B7: Generating capacity for one unit (MW) | C7: 8 | D7: 10 | E7: 12 | F7: 15 | G7: 4 | H7: 10 | I7: 4 | J7: 20 | L7: 6, 13, 10
B8: Average annual full-load hours | C8: 4400 | D8: 4500 | E8: 4650 | F8: 4900 | G8: 4000 | H8: 5000 | I8: 4000 | J8: 5500 | K8: A | L8: 8, 10, 27
B9: Forced outage (%) | C9: 0.04 | D9: 0.03 | E9: 0.03 | F9: 0.02 | G9: 0.01 | H9: 0.05 | I9: 0.01 | J9: 0.05 | K9: B | L9: 27
B10: Planned outage (%) | C10: 0.003 | D10: 0.003 | E10: 0.003 | F10: 0.003 | G10: 0.001 | H10: 0.005 | I10: 0.001 | J10: 0.005 | K10: C
B11: Technical lifetime (years) | C11: 25 | D11: 27 | E11: 30 | F11: 30 | G11: 20 | H11: 35 | I11: 20 | J11: 35 | K11: D
B12: Construction time (years) | C12: 3 | D12: 2.5 | E12: 2.5 | F12: 2 | G12: 1.5 | H12: 4 | I12: 1.5 | J12: 4 | K12: E | L12: 27
B13: Space requirement (1000m2/MW) | C13: 185 | D13: 185 | E13: 185 | F13: 185 | G13: 168 | H13: 204 | I13: 168 | J13: 204 | K13: F | L13: 14
B14: Regulation ability
B15: Primary regulation (% per 30 seconds) | K15: G
B16: Secondary regulation (% per minute) | K16: G
B17: Financial data (in 2015€)
B18: Nominal investment (M€/MW) excl. grid connection | C18: 2.46 | D18: 1.92 | E18: 1.64 | F18: 1.39 | G18: 1.73 | H18: 2.02 | I18: 1.11 | J18: 1.53 | K18: H,J,K | L18: [10, 15, 16, 30, 31,33.34]
B19: Nominal investment (M€/MW) grid connection | C19: 0.4 | D19: =C19*(1-0.01)^(D5-C5) -> 0.38039602 | E19: =D19*(1-0.0075)^(E5-D5) -> 0.3528101888 | F19: =E19*(1-0.005)^(F5-E5) -> 0.3191557944 | G19: 0.35 | H19: 0.41 | I19: 0.27 | J19: 0.37 | K19: L | L19: [31,35]
B20: - of which equipment | C20: 0.45 | D20: 0.45 | E20: 0.45 | F20: 0.45 | G20: 0.4 | H20: 0.5 | I20: 0.4 | J20: 0.5 | L20: [26, 12, 27]
B21: - of which installation | C21: 0.55 | D21: 0.55 | E21: 0.55 | F21: 0.55 | G21: 0.5 | H21: 0.6 | I21: 0.5 | J21: 0.6 | L21: [26, 12, 27]
B22: Fixed O&M (€/MW/year) | C22: 57300 | D22: 44300 | E22: 37800 | F22: 32100 | G22: 39900 | H22: 46500 | I22: 25700 | J22: 35300 | K22: I, J | L22: [31, 32, 34]
B23: Variable O&M (€/MWh) | C23: 4.3 | D23: 3.3 | E23: 2.7 | F23: 2.2 | G23: 3 | H23: 3.4 | I23: 1.7 | J23: 2.4 | K23: I, J | L23: [26, 12, 27, 31,32,34]
B24: Technology specific data
B25: Rotor diameter | C25: 164 | D25: 190 | E25: 210 | F25: 240 | G25: --- | H25: --- | I25: --- | J25: --- | L25: 14, 10
B26: Hub height | C26: 103 | D26: 115 | E26: 125 | F26: 140 | G26: --- | H26: --- | I26: --- | J26: --- | L26: 14, 10
B27: Specific power (W/m2) | C27: 379 | D27: 353 | E27: 346 | F27: 332
B28: Average capacity factor (%) | C28: 50 | D28: 51 | E28: 53 | F28: 56 | G28: 46 | H28: 57 | I28: 46 | J28: 63 | L28: 8, 27
B29: Average availability (%) | C29: 0.96 | D29: 0.97 | E29: 0.97 | F29: 0.98 | G29: 0.99 | H29: 0.95 | I29: 0.99 | J29: 0.95 | L29: 27
B30: Specific area coverage (MW/km2) | C30: 5.4 | D30: 5.4 | E30: 5.4 | F30: 5.4 | G30: 4.9 | H30: 5.9 | I30: 4.9 | J30: 5.9 | L30: 14, 10
A32: Notes:
A33: A1 | B33: The capacity in 2015 is set to 8 MW since the only offhore windfarm decided in 2015 was Horns Rev 3 with turbines of 8.3 MW.
A34: A | B34: The full load hours (annual produktion (MWh) per installed power (MW)) depending on the actual location of the wind farm, wake losses and technological characteristics of the individual turbine. The value is an average for location where it is expected the turbines will be placed. Specific area coverage 5,4 MW/km^2 is assumed, further more it is assumed that offshore turbines are in farms with a total capacity of app. 400-600 MW.
A35: B | B35: Offshore turbines has typically higher forced outage than onshore due to access problems in harsh weather
A36: C | B36: Planned outage is typically 1-2 service visits a year, with a 1-2 work days
A37: D | B37: The life time depends on the wind conditions; average annual speed and turbulence, relative to the design class of the turbine
A38: E | B38: The construction time is the periode from FID to commissioning. The construction time depend on the size of the project, vessel available and weather conditions.
A39: F | B39: Based on 5,4 MW/km^2 - can vary some and will often be a political decition - a given area is available and a number of MW tendered. The wake losses will highly depend on the space available per MW.
A40: G | B40: Wind turbines can be downward regulated within very short time and can therefore (if the wind is blowing) be used in both the primary and secondary downward regulation.
A41: H | B41: The cost includes cost of wind turbines, foundation, installation, planning & development and financing and internal grid connection (array cable, substation but not export cable).
A42: I | B42: 75 % of the total yearly O&M costs are assumed to be fixed cost and 25 % are assumed to be variable cost.
A43: J | B43: From 2020-2030 10% learning rate is assumed, from 2030-2050 15% reduction is assumed
A44: K | B44: Deducted from , five tenders have been settled for offshore wind farms in Denmark and in the Netherlands,decribed in details in the note [31]
A45: L | B45: Assuming that the costs drop by 1% per year between 2015 and 2020, by 0.75% per year between 2020 and 2030 and by 0.5% per year after 2030
A47: References:
A48: 6 | B48: The European offshore wind industry – key trends and statistics 2015, EWEA, 2016
A49: 8 | B49: Master data register of wind turbines at end of December 2014, Danish Energy Agency (the analysis also utilize earlier years of the same register)
A50: 10 | B50: DTU International Energy Report – Wind Energy, DTU, 2014
A51: 12 | B51: Renewable Energy Technologies: Cost Analysis Series, IRENA, 2012
A52: 13 | B52: B. Christensen, Interviewee, Personal communication/Interviews with Siemens Wind Power + written contribution. [Interview].
A53: 14 | B53: Fremtidens havmølleplaceringer - 2025 (Future locations for offshore wind farms; in Danish),” Danish Energy Agency, 2007.
A54: 15 | B54: Lindø Offshore Renewables Centre, data on offshore wind farms.
A55: 16 | B55: 4 C Offshore, global offshore wind farms database [Online]. Available: http://www.4coffshore.com/windfarms/default.aspx.
A56: 26 | B56: The Economics of Wind Energy, EWEA, 2009
A57: 27 | B57: N. m.fl., Vindmøllers økonomi, EUDP projekt 33033-0196, 2010
A58: 30 | B58: http://www.4coffshore.com/windfarms, accessed 27-3-2017
A59: 31 | B59: Note made by DEA : "Notat om teknologiomkostninger for havvind, baggrund for opdatering af CAPEX og OPEX i Teknologikatalogets dataark. " Energinet.dk and the Danish Energy Agency, 2017, March 28
A60: 32 | B60: DONG ENERGY Investor presentation, , DONG Energy, 2016, 12 May
A61: 33 | B61: Cost Reduction Monitoring Framework 2016,Offshore Wind Programme Board, Catapult 2016, 2016
A62: 34 | B62: Innovation Outlook: Off shore Wind, International Renewable Energy Agency( IRENA), Abu Dhabi, 2016
A63: 35 | B63: Energinet.dk, March 2017
A65: All references holds the same numbering as for the chapter "Wind turbines off-shore"

Sheet 21 Near shore turbines
G1: Back to Index | H1: Back to Index
B2: Updated June 2017 (Financial data (Investment cost and O&M))
B4: Technology | C4: 21 Large offshore wind turbines near-shore
B5: Year of final investment decision | C5: 2015 | D5: 2020 | E5: 2030 | F5: 2050 | G5: Uncertainty (2020) | I5: Uncertainty (2050) | K5: Note | L5: Ref
B6: Energy/technical data | G6: Lower | H6: Upper | I6: Lower | J6: Upper
B7: Generating capacity for one unit (MW) | C7: 8 | D7: 10 | E7: 12 | F7: 15 | G7: 4 | H7: 10 | I7: 4 | J7: 20 | K7: A1 | L7: 6, 13, 10
B8: Average annual full-load hours | C8: 4400 | D8: 4500 | E8: 4650 | F8: 4900 | G8: 4000 | H8: 5000 | I8: 4000 | J8: 5500 | K8: A | L8: 8, 10, 27
B9: Forced outage (%) | C9: 0.035 | D9: 0.03 | E9: 0.025 | F9: 0.02 | G9: 0.01 | H9: 0.05 | I9: 0.01 | J9: 0.05 | K9: B | L9: 27
B10: Planned outage (%) | C10: 0.003 | D10: 0.003 | E10: 0.003 | F10: 0.003 | G10: 0.001 | H10: 0.005 | I10: 0.001 | J10: 0.005 | K10: C
B11: Technical lifetime (years) | C11: 25 | D11: 27 | E11: 30 | F11: 30 | G11: 20 | H11: 35 | I11: 20 | J11: 35 | K11: D
B12: Construction time (years) | C12: 2 | D12: 2 | E12: 2 | F12: 2 | G12: 1 | H12: 3 | I12: 1 | J12: 3 | K12: E | L12: 27
B13: Space requirement (1000m2/MW) | C13: 185 | D13: 185 | E13: 185 | F13: 185 | G13: 168 | H13: 204 | I13: 168 | J13: 204 | K13: F | L13: 14
B14: Regulation ability
B15: Primary regulation (% per 30 seconds) | K15: G
B16: Secondary regulation (% per minute) | K16: G
B17: Financial data(in 2015€)
B18: Nominal investment (M€/MW) excl. grid connection | C18: 2.214 | D18: 1.728 | E18: 1.5 | F18: 1.275 | G18: 1.557 | H18: 1.818 | I18: 0.999 | J18: 1.377 | K18: H,K,J | L18: [10, 15, 16, 30, 31,33.34]
B19: Nominal investment (M€/MW) grid connection | C19: 0.2818791946 | D19: 0.2680643094 | E19: 0.2486246297 | F19: 0.2249084457 | G19: 0.2436948267 | H19: 0.2948707403 | I19: 0.1799267566 | J19: 0.2698901348 | K19: L | L19: [31,35]
B20: - of which equipment | C20: 0.45 | D20: 0.45 | E20: 0.45 | F20: 0.45 | G20: 0.4 | H20: 0.5 | I20: 0.4 | J20: 0.5 | L20: [26, 12, 27]
B21: - of which installation | C21: 0.55 | D21: 0.55 | E21: 0.55 | F21: 0.55 | G21: 0.5 | H21: 0.6 | I21: 0.5 | J21: 0.6 | L21: [26, 12, 27]
B22: Fixed O&M (€/MW/year) | C22: 51570 | D22: 39870 | E22: 34020 | F22: 28890 | G22: 42800 | H22: 52400 | I22: 29000 | J22: 43600 | K22: I, J, K | L22: [31, 32, 34]
B23: Variable O&M (€/MWh) | C23: 3.87 | D23: 2.97 | E23: 2.43 | F23: 1.98 | G23: 3.15 | H23: 3.85 | I23: 2 | J23: 3 | K23: I, J, K | L23: [26, 12, 27, 31,32,34]
B24: Technology specific data
B25: Rotor diameter | C25: 164 | D25: 190 | E25: 210 | F25: 240 | G25: --- | H25: --- | I25: --- | J25: --- | L25: 14, 10
B26: Hub height | C26: 103 | D26: 115 | E26: 125 | F26: 140 | G26: --- | H26: --- | I26: --- | J26: --- | L26: 14, 10
B27: Specific power (W/m2) | C27: 379 | D27: 353 | E27: 346 | F27: 332
B28: Average capacity factor | C28: 0.5 | D28: 0.51 | E28: 0.53 | F28: 0.56 | G28: 0.46 | H28: 0.57 | I28: 0.46 | J28: 0.63 | L28: 8, 27
B29: Average availability (%) | C29: 0.96 | D29: 0.97 | E29: 0.97 | F29: 0.98 | G29: 0.99 | H29: 0.95 | I29: 0.99 | J29: 0.95 | L29: 27
B30: Specific area coverage (MW/km2) | C30: 5.4 | D30: 5.4 | E30: 5.4 | F30: 5.4 | G30: 4.9 | H30: 5.9 | I30: 4.9 | J30: 5.9 | K30: F | L30: 14, 10
A32: Notes:
A33: A1 | B33: The capacity is set to 8 MW, the turbines at Horns Rev 3 is expected to have a capacity of 8.3 MW, it is assumed that the same turbines will be used near shore and off shore
A34: A | B34: The full load hours (annual produktion (MWh) per installed power (MW)) depending on the actual location of the wind farm, wake losses and technological characteristics of the individual turbine. The value is an average for location where it is expected the turbines will be placed. d a Specific area coverage 5,4 MW/km^2 is assumed, further more it is assumed that nearshore turbines are placed in farm with a total capacity of 50 -250 MW
A35: B | B35: Offshore turbines has typically longer forced outage than onshore due to access problems in harsh weather
A36: C | B36: Planned outage is typically 1-2 service visits a year, with a 1-2 work days
A37: D | B37: The life time depends on the wind conditions; average annual speed and turbulence, relative to the design class of the turbine
A38: E | B38: The construction time is the periode from FID to commissioning. The construction time depend on the size of the project, vessel available and weather conditions.
A39: F | B39: The wake losses will highly depend on the space available per MW, Specific area coverage of 5,4 MW/km^2 is assumed. In a tender typically a given area is available and and a given capacity MW is demanded.
A40: G | B40: Wind turbines can be regulated downward within short time and can therefore (if the wind is blowing) be used in both the primary and secondary downward regulation.
A41: H | B41: The cost includes cost of wind turbines, foundation, installation, planning & development and financing and internal grid connection (array cable)
A42: I | B42: 75 % of the total yearly O&M costs are assumed to be fixed cost and 25 % are assumed to be variable cost.
A43: J | B43: 9% learning rate is assumed for total investment cost and for O&M between 2020 and 2030
A44: K | B44: Deducted from , five tenders have been settled for offshore wind farms in Denmark and in the Netherlands,decribed in details in the note [31] Assuming that Nearshore wind frams is 10% cheaper than offshore in 2015 and 2020.
A45: L | B45: Assuming that the costs drop by 1% per year between 2015 and 2020, by 0.75% per year between 2020 and 2030 and by 0.5% per year after 2030
A47: References:
A48: 6 | B48: The European offshore wind industry – key trends and statistics 2015, EWEA, 2016
A49: 8 | B49: Master data register of wind turbines at end of December 2014, Danish Energy Agency (the analysis also utilize earlier years of the same register)
A50: 10 | B50: DTU International Energy Report – Wind Energy, DTU, 2014
A51: 12 | B51: Renewable Energy Technologies: Cost Analysis Series, IRENA, 2012
A52: 13 | B52: B. Christensen, Interviewee, Personal communication/Interviews with Siemens Wind Power + written contribution. [Interview].
A53: 14 | B53: Fremtidens havmølleplaceringer - 2025 (Future locations for offshore wind farms; in Danish),” Danish Energy Agency, 2007.
A54: 15 | B54: Lindø Offshore Renewables Centre, data on offshore wind farms.
A55: 16 | B55: 4 C Offshore, global offshore wind farms database [Online]. Available: http://www.4coffshore.com/windfarms/default.aspx.
A56: 26 | B56: The Economics of Wind Energy, EWEA, 2009
A57: 27 | B57: N. m.fl., Vindmøllers økonomi, EUDP projekt 33033-0196, 2010
A58: 30 | B58: http://www.4coffshore.com/windfarms, accessed 27-3-2017
A59: 31 | B59: Note made by DEA : "Notat om teknologiomkostninger for havvind, baggrund for opdatering af CAPEX og OPEX i Teknologikatalogets dataark. " Energinet.dk and the Danish Energy Agency, 2017, March 28
A60: 32 | B60: DONG ENERGY Investor presentation, , DONG Energy, 2016, 12 May
A61: 33 | B61: Cost Reduction Monitoring Framework 2016,Offshore Wind Programme Board, Catapult 2016, 2016
A62: 34 | B62: Innovation Outlook: Off shore Wind, International Renewable Energy Agency( IRENA), Abu Dhabi, 2016
A63: 35 | B63: Energinet.dk, March 2017
A65: All references holds the same numbering as for the chapter "Wind turbines off-shore"

Sheet 22 Photovoltaics Small
H1: Back to Index
A2: Technology | B2: 22 Photovoltaics: SMALL residential systems
B3: 2015 | C3: 2020 | D3: 2030 | E3: 2050 | F3: Note | G3: Ref
A4: Input
A5: Global horizontal irradiance (kWh/m2/y) | B5: 1068 | C5: 1068 | D5: 1068 | E5: 1068 | F5: A | G5: 4
A6: Energy/technical data
A7: Typical capacity for one installation (kW)(plant capacity) | B7: 6 | C7: 6 | D7: 6 | E7: 6 | F7: B
A8: Typical peak capacity for one installation at STC (kWp) | B8: 6.3 | C8: 6.3 | D8: 6.3 | E8: 6.3 | F8: B1, C
A9: Energy/technical data - system design
A10: DC/AC sizing factor (Wp/W) | B10: 1.05 | C10: 1.05 | D10: 1.05 | E10: 1.05 | F10: D
A11: Transposition Factor for fixed tilt system | B11: 1.1 | C11: 1.1 | D11: 1.1 | E11: 1.1 | F11: E
A12: Incident Angle Modifier Loss (%) | B12: 0.035 | C12: 0.025 | D12: 0.015 | E12: 0.01 | F12: F | G12: 13
A13: PV systems losses and non-STC corrections (%) | B13: 0.15 | C13: 0.12 | D13: 0.1 | E13: 0.07 | F13: G
A14: Inverter loss (%) | B14: 0.03 | C14: 0.015 | D14: 0.015 | E14: 0.01 | F14: H | G14: 13
A15: AC grid losses (%) | B15: 0 | C15: 0 | D15: 0 | E15: 0 | F15: I
A16: PV module conversion efficiency (%) | B16: 0.165 | C16: 0.19 | D16: 0.23 | E16: 0.26
A17: Availability (%) | B17: 1 | C17: 1 | D17: 1 | E17: 1
A18: Technical lifetime of total system (years) | B18: 30 | C18: 35 | D18: 40 | E18: 40
A19: Inverter lifetime (years) | B19: 10 | C19: 15 | D19: 15 | E19: 15
A20: Output
A21: Full load hours (kWh/kW) | B21: 981.4568495 | C21: 1042.50166 | D21: 1077.130212 | E21: 1124.363075 | F21: L
A22: Peak power full load hours (kWh/kWp) | B22: 934.720809 | C22: 992.858724 | D22: 1025.838297 | E22: 1070.821976 | F22: K, L
A23: Financial data
A24: PV module cost (2015-€/Wp) | B24: 0.73 | C24: 0.3118783879 | D24: 0.2265014255 | E24: 0.1552174642 | F24: M,Q | G24: 3,11,13
A25: Balance Of Plant cost (2015-€/Wp) | B25: 0.77 | C25: 0.76 | D25: 0.6015534642 | E25: 0.4043022117 | F25: M | G25: -
A26: Specific investment, total system (2015-€/Wp) | B26: 1.5008 | C26: 1.07 | D26: 0.8280548897 | E26: 0.559519676 | F26: L, M, N, S | G26: 3,10,17,18,20,21,22,23,24,25,26,27,28,29
A27: Specific investment, total system (2015-M€/MW) | B27: 1.58 | C27: 1.128431849 | D27: 0.8694576341 | E27: 0.5874956598 | F27: M, Q | G27: -
A28: Fixed O&M (2015€/MWp/y) | B28: 15000 | C28: 12800 | D28: 10300 | E28: 8700 | F28: R | G28: 3, 10
A29: Fixed O&M (2015€/MW/y) | B29: 15750 | C29: 13440 | D29: 10815 | E29: 9135
A31: Notes:
A32: Residential PV installation with a typical capacity of 4–6 kW, mounted on the roof.
A33: A. The global irradiation is a measure of the energy resource potential available and is dependend on geographical location. The average value in Denmark as determined among 25 measurement stations is 1068 (kWh/m2/y) ± 3.1 %. The best sites demonstrate values around 1100 kWh/m2/y.
A34: B. The area requirements decreas as the efficiency increas.
A35: B1. 6.3 kWp corresponding to a panel area of approximately 25-40 m2.
A36: B2. 110 kWp corresponding to a panel area of approximately 400 – 700 m2.
A37: B3: In 2017 a PV-plant with require an area of around 1.3 to 1.7 ha/MWp assuming a module coverage of 35% to 45% and panel size of 1.64 m2 for 275 Wp.
A38: C. The peak power of the system is the max. power of the PV modules (DC).
A39: D. The DC/AC shown equals module peak capacity ( in Wp) divided by inverter/ transformer capacity(Wac,max). The sizing factor is set to the same value for all years. In practice the sizing factor is chosen according to the desired utilisation/loading of the inverter which can also reflect a desire to maximise the energy production from a given (restricted) AC-capacity.
A40: E. The transposition factor describes the increase in the sunlight energy that can be obtained by tilting the module with respect to horizontal and reduction in received energy when the orientation deviates from South. The TF factor is set to the same value for all years and sizes of the system, as it is not the technical factors of the system, which determine the TF.
A41: F. The Incident Angle Modifier (IAM) loss represents the total yearly solar energy that is reflected from the glass when the angle of incidence is different from the perpendicular (the reflections at a normal incidence is already included in the STC efficiency).
A42: G. These losses are calculated by simulating a model-year where corrections are made hour-by-hour due to the fact that the actual operation does not take place under STC conditions. Additionally, electrical losses in cables and combiner boxes are included.
A43: H. The inverter loss includes the Maximum Power Point Tracking (MPPT) efficiency and is averaged over typical load levels.
A44: I. Not relevant for small and medium size plants.
A45: K. Also known as the specific yearly energy production (kWh/kWp) of the PV modules. This value is calculated from this formula: Peak power full load hours = Global horizontal irradiance * (panel area/PV module conversion efficiency ) * transposition factor * (1-incident angle modifier loss) * (1-PV system losses etc.) * (1-inverter loss) * (1-AC grid loss). (Panel area / PV module conversion efficiency) is per definition 1 and can be omitted of the equation.
A46: L. Capacity factor = Full load hours / Total number of hours per year (8760 h/y).
A47: M. for roof placed PV the 2015 figure, is first published in 2015, the reference is market prices for PV in 2012/ 2013[7] and in 2014 [19] and it show that the marked prices for PV systems in Denmark were lower than prices found in international studies [3,18], and the prices have been stable or have increased from 2012/2013 to 2014. Therefore the investment in 2015 was assumed to be at same level as in 2012/2013 and 2014. In 2018 investment cost for the system and specific cost of PV panels are found in based on information from international importers and from national sales representatives and installers. In addition, international references ([27], [29]) have been consulted. The investment cost estimates for the system 2020 is based these findings.
A48: M2. Market prices for utility scale PV systems have been estimated based on interviews with Danish developers and an assesment of the prices from Danish and Germany tenders for PV capacity in 2016 and the beginning of 2017. The price analysis is available in the note (in Danish) "Opdatering af teknologikatalogets solcelledata oktober 2017" [31](ref 31).
A49: N. The financial values have been discounted as shown in the table below
A50: Real prices | B50: 2015 | C50: 2016 | D50: 2017 | E50: 2018 | F50: [LOFT21-prediction from the Danish Finance Act 2018 (FFL18 November 2017)]
A51: BTV for price year (2015) estimated in 2018 | B51: 1 | C51: 1.002079343 | D51: 1.0142269 | E51: 1.029740263
A52: Q. Cost prognoses for PV panels in 2030 and 2050 are made keeping the relative difference to the cost for utility scale PV panels constant.
A53: Q2. The prices analysis also contains a forecast of the PV cost in 2020, 2030 and 2050, which based on learning rates for the module and invester (20 % learning rate)and a projection of the cumulated PV capacity based on the IEA's 450 ppm scenario. For the balance of plant (BoP) a more moderate cost projection is used, assuming that the cost drops by 1% per year until 2020, by 0.75% p.a. between 2020 and 2030 and then by 0.5% p.a. from 2030 to 2050
A54: R. The cost of O&M includes insurance and regular replacement of inverters. The O&M cost for rooftop PV is calculated, assuming that the relation between the cost of O&M for rooftop PV and for utility scale PV is constant from 2015 to 2050. Note that the O&M costs for plants in Denmark are assumed significant lower than international estimates in [27] and [29].
A55: R2. The cost of O&M includes insurance and regular replacement of inverters and land-lease. The cost of land lease amounts in 2017 to approx. 25% -30% of the fixed O & M cost. As the efficiency of the new solar panels increases, the required area per MWp will be lower. The same development is assumed for other O & M expenses.
A56: S. The investment prices for PV systems in 2020, 2030 and 2050 are based on information from international importers and from national sales representatives and installers. In addition, international references ([27], [29]) have been consulted.
A58: References
A59: 1. NPD Solarbuzz PV Equipment Quarterly report, July 2013.
A60: 2. IEA PVPS Trends 2013 in Photovoltaic Applications – 2014 Edition, 2014/05/06 p. 53.
A61: 3. IEA,“Energy Technology Perspectives. Technology Roadmap: Solar Photovoltaic Energy, 2014 edition”, OECD/International Energy Agency, 2014 for 2015 cost.
A62: 4. Peter Riddersholm Wang, DMI Teknisk Rapport 13-08, Referenceværdier: Måneds- og årsværdier for stationer 2001 - 2010, Danmark for temperatur, relativ luftfugtighed, vindhastighed, globalstråling og nedbør.
A63: 5. M.J. (Mariska) de Wild-Scholten. “Energy payback time and carbon footprint of commercial photovoltaic Systems”. Solar Energy Materials & Solar Cells 119 (2013) 296–305.
A64: 6. “Solceller. Dansk strategi for forskning, udvikling, demonstration og udbredelse” (Solar cells. A Danish strategy for research, development, demonstration and deployment), Danish Energy Agency, Energy Technology Development Programme (EUDP), and Energinet.dk, 2009.
A65: 7. Prices from; Solcellepriser.dk, pricelist small plants 15 cheapest plants used,
A66: 8. EIA report: “Levelized Cost of New Generation Resources” in the Annual Energy Outlook 2013, U.S. Energy Information Administration, January 2013.
A67: 9. P. Ahm and J. Vedde, “Large Scale PV Plants – Also in Denmark”. Project report, 2011.
A68: 10. IEA-ETSAP and IRENA Technology Policy Brief E11, January 2013.
A69: 11. Ubiquity Solar Inc. 2012, Extrapolation of PV module experience curve.
A70: 12. Pierre Verlinden. Trina Solar SKL presentation April 16th 2013.
A71: 13. IRTPV. International Technology Roadmap for Photovoltaic, Results 2013. March 2014 for 2015 cost.
A72: 14. Thibaut Lemonie. Assessing the real quality of PV modules. Photovoltaics Int. Aug 2011, p. 177.
A73: 15. M. Bolinger and S. Weaver. Utility-Scale Solar 2012. Lawrence Berkeley National Laboratory. September 2013.
A74: 16. IEA PVPS Task 14 reports.
A75: 17. HOFOR plan, plant in Guderup (websearch) and 2 other plants (anonymous, Jan Vedde 2014) all four large and DK for 2015 cost.
A76: 18. David Feldman et al. Photovoltaic System Pricing Trends, Historical, Recent, and Near-Term Projections edition 2014. SUNSHOT U.S. Department of Energy, National Renewable Energy Laboratory and Lawrence Berkeley National Laboratory , September 22, 2014
A77: 19. Websearch by Jan Vedde November 2014 Prices for seven small plants for sale in DK in November 2014 for 2015 cost.
A78: 20. http://www.photovoltaik-guide.de/pv-preisindex, “Photovoltaik-preisindex” PV system up to 100 kWp, average 2014.for 2015 cost
A79: 21. Prices for nine large and medium size systems 2013-2014(Confidential) for 2015 cost.
A80: 22. Gaia solar, BIOFOS Rensningsanlæg Damhusåen, large system 2013 for 2015 cost.
A81: 23. Gaia solar general offer 250 kW system 2014 for 2015 cost.
A82: 24. Anonym DK EPC#1 offering 0.91 2014-€/Wp for MW projects in DK for 2015 cost
A83: 25. Anonym DK EPC#1 offering 0.95 2014-€/Wp for MW projects in DK for 2015 cost
A84: 26. Sales representatives from 5 suppliers (in random order):
A85: o Changzhou EGing Photovoltaic Technology Co., Ltd.,
A86: o China Sunergy (Nanjing) Co.,Ltd,
A87: o Trinasolar,
A88: o ZNSHINE PV-TECH CO., LTD.
A89: o Elkem Solar
A90: 27: Renewable Power Generation Costs in 2017, IRENA, januar 2018
A91: 28. Solar-installation companies' websites 1.-5. March 2018:
A92: https://www.vivaenergi.dk
A93: https://xn--billigtsolcelleanlg-2xb.dk
A94: https://klimaenergi.dk
A95: 29. Cost development of low carbon energy technologies, Scenario-based cost trajectories to 2050, 2017 edition, Tsiropoulos, I. Tarvydas, D., Zucker, A. ,JRC,January 2018
A96: 30. [LOFT21-prediction from the Danish Finance Act 2018 (FFL18 November 2017)]
A97: 31. Ea Energy Analyses, Danish Energy Agency and Energinet.dk. "Opdatering teknologikatalogets solcelledata", June 2017.

Sheet 22 Photovoltaics Medium
H1: Back to Index
A2: Technology | B2: 22 Photovoltaics: MEDIUM sized commercial systems
B3: 2015 | C3: 2020 | D3: 2030 | E3: 2050 | F3: Note | G3: Ref
A4: Input
A5: Global horizontal irradiance (kWh/m2/y) | B5: 1068 | C5: 1068 | D5: 1068 | E5: 1068 | F5: A | G5: 4
A6: Energy/technical data
A7: Typical capacity for one installation (kW)(plant capacity) | B7: 100 | C7: 100 | D7: 100 | E7: 100 | F7: B
A8: Typical peak capacity for one installation at STC (kWp) | B8: 110 | C8: 110 | D8: 110 | E8: 110 | F8: B2, C
A9: Energy/technical data - system design
A10: DC/AC sizing factor (Wp/W) | B10: 1.1 | C10: 1.1 | D10: 1.1 | E10: 1.1 | F10: D
A11: Transposition Factor for fixed tilt system | B11: 1.1 | C11: 1.1 | D11: 1.1 | E11: 1.1 | F11: E
A12: Incident Angle Modifier Loss (%) | B12: 0.035 | C12: 0.025 | D12: 0.015 | E12: 0.01 | F12: F | G12: 13
A13: PV systems losses and non-STC corrections (%) | B13: 0.14 | C13: 0.09 | D13: 0.07 | E13: 0.05 | F13: G
A14: Inverter loss (%) | B14: 0.025 | C14: 0.015 | D14: 0.015 | E14: 0.01 | F14: H | G14: 13
A15: AC grid losses (%) | B15: 0 | C15: 0 | D15: 0 | E15: 0 | F15: I
A16: PV module conversion efficiency (%) | B16: 0.165 | C16: 0.19 | D16: 0.23 | E16: 0.26 | G16: 13
A17: Availability (%) | B17: 1 | C17: 1 | D17: 1 | E17: 1
A18: Technical lifetime of total system (years) | B18: 30 | C18: 35 | D18: 40 | E18: 40
A19: Inverter lifetime (years) | B19: 10 | C19: 15 | D19: 15 | E19: 15
A20: Output
A21: Full load hours (kWh/kW) | B21: 1045.651593 | C21: 1129.376799 | D21: 1166.036198 | E21: 1203.235447 | F21: L
A22: Peak power full load hours (kWh/kWp) | B22: 950.592357 | C22: 1026.706181 | D22: 1060.032907 | E22: 1093.850406 | F22: K, L
A23: Financial data
A24: PV module cost (2015-€/Wp) | B24: 0.6965856 | C24: 0.2858885223 | D24: 0.2076263067 | E24: 0.1422826755 | F24: M,Q | G24: 3,11,13
A25: Balance Of Plant cost (2015-€/Wp) | B25: 0.5254944 | C25: 0.4447541045 | D25: 0.3666411904 | E25: 0.3068570281 | F25: M | G25: -
A26: Specific investment, total system (2015-€/Wp) | B26: 1.22208 | C26: 0.7306426268 | D26: 0.574267497 | E26: 0.4491397037 | F26: L, M, N, S | G26: 3,10,17,18,20,21,22,23,24,25,26,27,28,29
A27: Specific investment, total system (2015-M€/MW) | B27: 1.344288 | C27: 0.8037068894 | D27: 0.6316942467 | E27: 0.494053674 | F27: M, Q | G27: -
A28: Fixed O&M (2015€/MWp/y) | B28: 12200 | C28: 10400 | D28: 8400 | E28: 7100 | F28: R | G28: 3, 10
A29: Fixed O&M (2015€/MW/y) | B29: 13420 | C29: 11440 | D29: 9240 | E29: 7810
A30: Notes: | C30: =C25/B25 -> 0.8463536519 | D30: =D25/C25 -> 0.8243683119 | E30: =E25/D25 -> 0.8369409554
A31: Commercial PV systems with a typical plant capacity of 50–500kW , typically installed on roofs of residential, office or public buildings.
A32: A. The global irradiation is a measure of the energy resource potential available and is depended on the exact geographical location. The average value in Denmark as determined among 25 measurement stations is 1068 (kWh/m2/y) ± 3.1 %. The best sites demonstrate values around 1100 kWh/m2/y.
A33: B. The area requirements decreas as the efficiency increas.
A34: B1. 6.3 kWp corresponding to a panel area of approximately 25-40 m2.
A35: B2. 110 kWp corresponding to a panel area of approximately 400 – 700 m2.
A36: B3: In 2017 a PV-plant with require an area of around 1.3 to 1.7 ha/MWp assuming a module coverage of 35% to 45% and panel size of 1.64 m2 for 275Wp.
A37: C. The peak power of the system is the max. power of the PV modules(DC).
A38: D. The DC/AC shown equals module peak capacity ( in Wp) divided by inverter/ transformer capacity(Wac,max). The sizing factor is set to the same value for all years. In practice the sizing factor is chosen according to the desired utilisation/loading of the inverter which can also reflect a desire to maximise the energy production from a given (restricted) AC-capacity.
A39: E. The transposition factor describes the increase in the sunlight energy that can be obtained by tilting the module with respect to horizontal and reduction in received energy when the orientation deviates from South. The TF factor is set to the same value for all years and sizes of the system, as it is not the technical factors of the system, which determine the TF.
A40: F. The Incident Angle Modifier (IAM) loss represents the total yearly solar energy that is reflected from the glass when the angle of incidence is different from the perpendicular (the reflections at a normal incidence is already included in the STC efficiency).
A41: G. These losses are calculated by simulating a model-year where corrections are made hour-by-hour due to the fact that the actual operation does not take place under STC conditions. Additionally, electrical losses in cables and combiner boxes are included.
A42: H. The inverter loss includes the Maximum Power Point Tracking (MPPT) efficiency and is averaged over typical load levels.
A43: I. Not relevant for small and medium size plants.
A44: K. Also known as the specific yearly energy production (kWh/kWp) of the PV modules. This value is calculated from this formula: Peak power full load hours = Global horizontal irradiance * (panel area/PV module conversion efficiency ) * transposition factor * (1-incident angle modifier loss) * (1-PV system losses etc.) * (1-inverter loss) * (1-AC grid loss). (Panel area / PV module conversion efficiency) is per definition 1 and can be omitted of the equation.
A45: L. Capacity factor = Full load hours / Total number of hours per year (8760 h/y).
A46: M. for roof placed PV the 2015 figure, is first published in 2015, the reference is market prices for PV in 2012/ 2013[7] and in 2014 [19] and it show that the marked prices for PV systems in Denmark were lower than prices found in international studies [3,18], and the prices have been stable or have increased from 2012/2013 to 2014. Therefore the investment in 2015 was assumed to be at same level as in 2012/2013 and 2014. In 2018 investment cost for the system and specific cost of PV panels are found in based on information from international importers and from national sales representatives and installers. In addition, international references ([27], [29]) have been consulted. The investment cost estimates for the system 2020 is based these findings.
A47: M2. Market prices for utility scale PV systems have been estimated based on interviews with Danish developers and an assesment of the prices from Danish and Germany tenders for PV capacity in 2016 and the beginning of 2017. The price analysis is available in the note (in Danish) "Opdatering af teknologikatalogets solcelledata oktober 2017" [31](ref 31).
A48: N. The financial values have been discounted as shown in the table below
A49: Real prices | B49: 2015 | C49: 2016 | D49: 2017 | E49: 2018 | F49: [LOFT21-prediction from the Danish Finance Act 2018 (FFL18 November 2017)]
A50: BTV for price year (2015) estimated in 2018 | B50: 1 | C50: 1.002079343 | D50: 1.0142269 | E50: 1.029740263
A51: Q. Cost prognoses for PV panels in 2030 and 2050 are made keeping the relative difference to the cost for utility scale PV panels constant.
A52: Q2. The prices analysis also contains a forecast of the PV cost in 2020, 2030 and 2050, which based on learning rates for the module and invester (20 % learning rate)and a projection of the cumulated PV capacity based on the IEA's 450 ppm scenario. For the balance of plant (BoP) a more moderate cost projection is used, assuming that the cost drops by 1% per year until 2020, by 0.75% p.a. between 2020 and 2030 and then by 0.5% p.a. from 2030 to 2050
A53: R. The cost of O&M includes insurance and regular replacement of inverters. The O&M cost for rooftop PV is calculated, assuming that the relation between the cost of O&M for rooftop PV and for utility scale PV is constant from 2015 to 2050. Note that the O&M costs for plants in Denmark are assumed significant lower than international estimates in [27] and [29].
A54: R2. The cost of O&M includes insurance and regular replacement of inverters and land-lease. The cost of land lease amounts in 2017 to approx. 25% -30% of the fixed O & M cost. As the efficiency of the new solar panels increases, the required area per MWp will be lower. The same development is assumed for other O & M expenses.
A55: S. The investment prices for PV systems in 2020, 2030 and 2050 are based on information from international importers and from national sales representatives and installers. In addition, international references ([27], [29]) have been consulted.
A58: References
A59: 1. NPD Solarbuzz PV Equipment Quarterly report, July 2013.
A60: 2. IEA PVPS Trends 2013 in Photovoltaic Applications – 2014 Edition, 2014/05/06 p. 53.
A61: 3. IEA,“Energy Technology Perspectives. Technology Roadmap: Solar Photovoltaic Energy, 2014 edition”, OECD/International Energy Agency, 2014 for 2015 cost.
A62: 4. Peter Riddersholm Wang, DMI Teknisk Rapport 13-08, Referenceværdier: Måneds- og årsværdier for stationer 2001 - 2010, Danmark for temperatur, relativ luftfugtighed, vindhastighed, globalstråling og nedbør.
A63: 5. M.J. (Mariska) de Wild-Scholten. “Energy payback time and carbon footprint of commercial photovoltaicSystems”. Solar Energy Materials & Solar Cells 119 (2013) 296–305.
A64: 6. “Solceller. Dansk strategi for forskning, udvikling, demonstration og udbredelse” (Solar cells. A Danish strategy for research, development, demonstration and deployment), Danish Energy Agency, Energy Technology Development Programme (EUDP), and Energinet.dk, 2009.
A65: 7. Prices from; Solcellepriser.dk, pricelist small plants 15 cheapest plants used,
A66: 8. EIA report: “Levelized Cost of New Generation Resources” in the Annual Energy Outlook 2013, U.S. Energy Information Administration, January 2013.
A67: 9. P. Ahm and J. Vedde, “Large Scale PV Plants – Also in Denmark”. Project report, 2011.
A68: 10. IEA-ETSAP and IRENA Technology Policy Brief E11, January 2013.
A69: 11. Ubiquity Solar Inc. 2012, Extrapolation of PV module experience curve.
A70: 12. Pierre Verlinden. Trina Solar SKL presentation April 16th 2013.
A71: 13. IRTPV. International Technology Roadmap for Photovoltaic, Results 2013. March 2014 for 2015 cost.
A72: 14. Thibaut Lemonie. Assessing the real quality of PV modules. Photovoltaics Int. Aug 2011, p. 177.
A73: 15. M. Bolinger and S. Weaver. Utility-Scale Solar 2012. Lawrence Berkeley National Laboratory. September 2013.
A74: 16. IEA PVPS Task 14 reports.
A75: 17. HOFOR plan, plant in Guderup (websearch) and 2 other plants (anonymous, Jan Vedde 2014) all four large and DK for 2015 cost.
A76: 18. David Feldman et al. Photovoltaic System Pricing Trends, Historical, Recent, and Near-Term Projections edition 2014. SUNSHOT U.S. Department of Energy, National Renewable Energy Laboratory and Lawrence Berkeley National Laboratory , September 22, 2014
A77: 19. Websearch by Jan Vedde November 2014 Prices for seven small plants for sale in DK in November 2014 for 2015 cost.
A78: 20. http://www.photovoltaik-guide.de/pv-preisindex, “Photovoltaik-preisindex” PV system up to 100 kWp, average 2014.for 2015 cost
A79: 21. Prices for nine large and medium size systems 2013-2014(Confidential) for 2015 cost.
A80: 22. Gaia solar, BIOFOS Rensningsanlæg Damhusåen, large system 2013 for 2015 cost.
A81: 23. Gaia solar general offer 250 kW system 2014 for 2015 cost.
A82: 24. Anonym DK EPC#1 offering 0.91 2014-€/Wp for MW projects in DK for 2015 cost
A83: 25. Anonym DK EPC#1 offering 0.95 2014-€/Wp for MW projects in DK for 2015 cost
A84: 26. Sales representatives from 5 suppliers (in random order):
A85: o Changzhou EGing Photovoltaic Technology Co., Ltd.,
A86: o China Sunergy (Nanjing) Co.,Ltd,
A87: o Trinasolar,
A88: o ZNSHINE PV-TECH CO., LTD.
A89: o Elkem Solar
A90: 27: Renewable Power Generation Costs in 2017, IRENA, januar 2018
A91: 28. Solar-installation companies' websites 1.-5. March 2018:
A92: https://www.vivaenergi.dk
A93: https://xn--billigtsolcelleanlg-2xb.dk
A94: https://klimaenergi.dk
A95: 29. Cost development of low carbon energy technologies, Scenario-based cost trajectories to 2050, 2017 edition, Tsiropoulos, I. Tarvydas, D., Zucker, A. January 2018
A96: 30. [LOFT21-prediction from the Danish Finance Act 2018 (FFL18 November 2017)]
A97: 31. Ea Energy Analyses, Danish Energy Agency and Energinet.dk. "Opdatering teknologikatalogets solcelledata", June 2017.

Sheet 22 Photovoltaics LARGE new
A1: Updated October 2017 | H1: Back to Index
A2: Technology | B2: 22 Photovoltaics: LARGE scale utility systems
B3: 2015 | C3: 2020 | D3: 2030 | E3: 2050 | F3: Note | G3: Ref
A4: Input
A5: Global horizontal irradiance (kWh/m2/y) | B5: 1068 | C5: 1068 | D5: 1068 | E5: 1068 | F5: A2 | G5: 4
A6: Energy/technical data
A7: Typical capacity for one installation (kW)(plant capacity) | B7: 4000 | C7: 4000 | D7: 4000 | E7: 4000 | F7: B3
A8: Typical peak capacity for one installation at STC (kWp) | B8: 5400 | C8: 5400 | D8: 5400 | E8: 5400 | F8: C
A9: Energy/technical data - system design
A10: DC/ACMAX sizing factor (Wp/Wac) | B10: 1.35 | C10: 1.35 | D10: 1.35 | E10: 1.35 | F10: D | G10: 31
A11: Transposition Factor for fixed tilt system | B11: 1.15 | C11: 1.15 | D11: 1.15 | E11: 1.15 | F11: E | G11: 31
A12: Incident Angle Modifier Loss (%) | B12: 0.03 | C12: 0.025 | D12: 0.015 | E12: 0.01 | F12: F | G12: 13
A13: PV systems losses and non-STC corrections (%) | B13: 0.13 | C13: 0.09 | D13: 0.07 | E13: 0.05 | F13: G
A14: Inverter loss (%) | B14: 0.031 | C14: 0.026 | D14: 0.026 | E14: 0.021 | F14: H, H2 | G14: 13
A15: AC grid losses (%) | B15: 0.01 | C15: 0.01 | D15: 0.01 | E15: 0.01 | F15: I
A16: PV module conversion efficiency (%) | B16: 0.165 | C16: 0.19 | D16: 0.23 | E16: 0.26 | G16: 13
A17: Availability (%) | B17: 1 | C17: 1 | D17: 1 | E17: 1
A18: Technical lifetime of total system (years) | B18: 30 | C18: 35 | D18: 40 | E18: 40
A19: Inverter lifetime (years) | B19: 10 | C19: 15 | D19: 15 | E19: 15
A20: Output
A21: Full load hours (kWh/kWacmax) | B21: 1340 | C21: 1420 | D21: 1460 | E21: 1510 | F21: L
A22: Peak power full load hours (kWh/kWp) | B22: =B5*B11*(1-B12)*(1-B13)*(1-B14)*(1-B15) -> 994.303691 | C22: 1050 | D22: 1080 | E22: 1120 | F22: K, L
A23: Financial data (in 2015€)
A24: PV module (2015-€/Wp) | B24: 0.62176 | C24: 0.2598986566 | D24: 0.1887511879 | E24: 0.1293478868 | F24: M2,Q2 | G24: 31
A25: Inverter and transformer (2015-€/Wp) | B25: 0.09528888889 | C25: 0.04592387765 | D25: 0.03335217878 | E25: 0.02285566462 | G25: 31
A26: Balance Of Plant , mark-up & contingency cost (2015-€/Wp) | B26: 0.36448 | C26: 0.3107242366 | D26: 0.2881909138 | E26: 0.2607005209 | F26: M2,Q2 | G26: 31
A27: Specific investment, total system (2015-€/Wp) | B27: 1.081528889 | C27: 0.6165467709 | D27: 0.5102942805 | E27: 0.4129040724 | F27: M2,Q2,N | G27: 31
A28: PV module cost (€/Wacmax) | B28: 0.839376 | C28: 0.3508631864 | D28: 0.2548141037 | E28: 0.1746196472 | G28: 31
A29: Inverter and transformer(€/Wacmax) | B29: 0.07058436214 | C29: 0.06199723483 | D29: 0.04502544135 | E29: 0.03085514724 | G29: 31
A30: Balance Of Plant , mark-up & contingency cost (€/Wacmax) | B30: 0.492048 | C30: 0.4194777194 | D30: 0.3890577336 | E30: 0.3519457033 | G30: 31
A31: Specific investment, total system (€/Wacmax) | B31: 1.460064 | C31: 0.8323381407 | D31: 0.6888972786 | E31: 0.5574204978 | G31: 31
A32: Fixed O&M (2015-€/MWp/y) | B32: 9500 | C32: 8100 | D32: 6500 | E32: 5500 | F32: Q2, R2 | G32: 31
A33: Fixed O&M (2015-€/MWacmax/y) | B33: 12800 | C33: 10900 | D33: 8800 | E33: 7400
A34: Notes:
A35: Data applies to utility scale PV installation typically mounted on the ground, with capacity of 1 MWp and larger. Threshold for maximum capacity limit is not indicated as solar systems are largely modular and the costs are largely proportional to the size of the plant when the plant is larger than app. 1 MW.
A36: A. The global irradiation is a measure of the energy resource potential available and is depended on the exact geographical location. The average value in Denmark as determined among 25 measurement stations is 1068 (kWh/m2/y) ± 3.1 %. The best sites demonstrate values around 1100 kWh/m2/y.
A37: B. The area requirements decreas as the efficiency increas.
A38: B1. 6.3 kWp corresponding to a panel area of approximately 25-40 m2.
A39: B2. 110 kWp corresponding to a panel area of approximately 400 – 700 m2.
A40: B3: In 2017 a PV-plant with require an area of around 1.3 to 1.7 ha/MWp assuming a module coverage of 35% to 45% and panel size of 1.64 m2 for 275Wp.
A41: C. The peak power of the system is the max. power of the PV modules(DC).
A42: D. The DC/AC shown equals module peak capacity ( in Wp) divided by inverter/ transformer capacity(Wac,max). The sizing factor is set to the same value for all years. In practice the sizing factor is chosen according to the desired utilisation/loading of the inverter which can also reflect a desire to maximise the energy production from a given (restricted) AC-capacity.
A43: E. The transposition factor describes the increase in the sunlight energy that can be obtained by tilting the module with respect to horizontal and reduction in received energy when the orientation deviates from South. The TF factor is set to the same value for all years and sizes of the system, as it is not the technical factors of the system, which determine the TF.
A44: F. The Incident Angle Modifier (IAM) loss represents the total yearly solar energy that is reflected from the glass when the angle of incidence is different from the perpendicular (the reflections at a normal incidence is already included in the STC efficiency).
A45: G. These losses are calculated by simulating a model-year where corrections are made hour-by-hour due to the fact that the actual operation does not take place under STC conditions. Additionally, electrical losses in cables and combiner boxes are included.
A46: H. The inverter loss includes the Maximum Power Point Tracking (MPPT) efficiency and is averaged over typical load levels.
A47: I. Not relevant for small and medium size plants.
A48: K. Also known as the specific yearly energy production (kWh/kWp) of the PV modules. This value is calculated from this formula: Peak power full load hours = Global horizontal irradiance * (panel area/PV module conversion efficiency ) * transposition factor * (1-incident angle modifier loss) * (1-PV system losses etc.) * (1-inverter loss) * (1-AC grid loss). (Panel area / PV module conversion efficiency) is per definition 1 and can be omitted of the equation.
A49: L. Capacity factor = Full load hours / Total number of hours per year (8760 h/y).
A50: M. for roof placed PV the 2015 figure, is first published in 2015, the reference is market prices for PV in 2012/ 2013[7] and in 2014 [19] and it show that the marked prices for PV systems in Denmark were lower than prices found in international studies [3,18], and the prices have been stable or have increased from 2012/2013 to 2014. Therefore the investment in 2015 was assumed to be at same level as in 2012/2013 and 2014. In 2018 investment cost for the system and specific cost of PV panels are found in based on information from international importers and from national sales representatives and installers. In addition, international references ([27], [29]) have been consulted. The investment cost estimates for the system 2020 is based these findings.
A51: M2. Market prices for utility scale PV systems have been estimated based on interviews with Danish developers and an assesment of the prices from Danish and Germany tenders for PV capacity in 2016 and the beginning of 2017. The price analysis is available in the note (in Danish) "Opdatering af teknologikatalogets solcelledata oktober 2017" [31](ref 31).
A52: N. The financial values have been discounted as shown in the table below
A53: Real prices | B53: 2015 | C53: 2016 | D53: 2017 | E53: 2018 | F53: [LOFT21-prediction from the Danish Finance Act 2018 (FFL18 November 2017)]
A54: BTV for price year (2015) estimated in 2018 | B54: 1 | C54: 1.002079343 | D54: 1.0142269 | E54: 1.029740263
A55: Q. Cost prognoses for PV panels in 2030 and 2050 are made keeping the relative difference to the cost for utility scale PV panels constant.
A56: Q2. The prices analysis also contains a forecast of the PV cost in 2020, 2030 and 2050, which based on learning rates for the module and invester (20 % learning rate)and a projection of the cumulated PV capacity based on the IEA's 450 ppm scenario. For the balance of plant (BoP) a more moderate cost projection is used, assuming that the cost drops by 1% per year until 2020, by 0.75% p.a. between 2020 and 2030 and then by 0.5% p.a. from 2030 to 2050
A57: R. The cost of O&M includes insurance and regular replacement of inverters. The O&M cost for rooftop PV is calculated, assuming that the relation between the cost of O&M for rooftop PV and for utility scale PV is constant from 2015 to 2050. Note that the O&M costs for plants in Denmark are assumed significant lower than international estimates in [27] and [29].
A58: R2. The cost of O&M includes insurance and regular replacement of inverters and land-lease. The cost of land lease amounts in 2017 to approx. 25% -30% of the fixed O & M cost. As the efficiency of the new solar panels increases, the required area per MWp will be lower. The same development is assumed for other O & M expenses.
A59: S. The investment prices for PV systems in 2020, 2030 and 2050 are based on information from international importers and from national sales representatives and installers. In addition, international references ([27], [29]) have been consulted.
A62: References
A63: 1. NPD Solarbuzz PV Equipment Quarterly report, July 2013.
A64: 2. IEA PVPS Trends 2013 in Photovoltaic Applications – 2014 Edition, 2014/05/06 p. 53.
A65: 3. IEA,“Energy Technology Perspectives. Technology Roadmap: Solar Photovoltaic Energy, 2014 edition”, OECD/International Energy Agency, 2014.
A66: 4. Peter Riddersholm Wang, DMI Teknisk Rapport 13-08, Referenceværdier: Måneds- og årsværdier for stationer 2001 - 2010, Danmark for temperatur, relativ luftfugtighed, vindhastighed, globalstråling og nedbør.
A67: 5. M.J. (Mariska) de Wild-Scholten. “Energy payback time and carbon footprint of commercial photovoltaic Systems”. Solar Energy Materials & Solar Cells 119 (2013) 296–305.
A68: 6. “Solceller. Dansk strategi for forskning, udvikling, demonstration og udbredelse” (Solar cells. A Danish strategy for research, development, demonstration and deployment), Danish Energy Agency, Energy Technology Development Programme (EUDP), and Energinet.dk, 2009.
A69: 7. Prices from; Solcellepriser.dk, pricelist small plants 15 cheapest plants used,
A70: 8. EIA report: “Levelized Cost of New Generation Resources” in the Annual Energy Outlook 2013, U.S. Energy Information Administration, January 2013.
A71: 9. P. Ahm and J. Vedde, “Large Scale PV Plants – Also in Denmark”. Project report, 2011.
A72: 10. IEA-ETSAP and IRENA Technology Policy Brief E11, January 2013.
A73: 11. Ubiquity Solar Inc. 2012, Extrapolation of PV module experience curve.
A74: 12. Pierre Verlinden. Trina Solar SKL presentation April 16th 2013.
A75: 13. IRTPV. International Technology Roadmap for Photovoltaic, Results 2013. March 2014.
A76: 14. Thibaut Lemonie. Assessing the real quality of PV modules. Photovoltaics Int. Aug 2011, p. 177.
A77: 15. M. Bolinger and S. Weaver. Utility-Scale Solar 2012. Lawrence Berkeley National Laboratory. September 2013.
A78: 16. IEA PVPS Task 14 reports.
A79: 17. HOFOR plan, plant in Guderup (websearch) and 2 other plants (anonymous, Jan Vedde 2014) all four large and DK.
A80: 18. David Feldman et al. Photovoltaic System Pricing Trends, Historical, Recent, and Near-Term Projections edition 2014. SUNSHOT U.S. Department of Energy, National Renewable Energy Laboratory and Lawrence Berkeley National Laboratory , September 22, 2014
A81: 19. Websearch by Jan Vedde November 2014 Prices for seven small plants for sale in DK in November 2014,
A82: 20. http://www.photovoltaik-guide.de/pv-preisindex, “Photovoltaik-preisindex” PV system up to 100 kWp, average 2014.
A83: 21. Prices for nine large and medium size systems 2013-2014(Confidential).
A84: 22. Gaia solar, BIOFOS Rensningsanlæg Damhusåen, large system 2013.
A85: 23. Gaia solar general offer 250 kW system 2014.
A86: 24. Anonym DK EPC#1 offering 0.91 2014-€/Wp for MW projects in DK
A87: 25. Anonym DK EPC#1 offering 0.95 2014-€/Wp for MW projects in DK
A88: 26. Sales representatives from 5 suppliers (in random order):
A89: o Changzhou EGing Photovoltaic Technology Co., Ltd.,
A90: o China Sunergy (Nanjing) Co.,Ltd,
A91: o Trinasolar,
A92: o ZNSHINE PV-TECH CO., LTD.
A93: o Elkem Solar
A94: 27: Renewable Power Generation Costs in 2017, IRENA, januar 2018
A95: 28. Solar-installation companies' websites 1.-5. March 2018:
A96: https://www.vivaenergi.dk
A97: https://xn--billigtsolcelleanlg-2xb.dk
A98: https://klimaenergi.dk
A99: 29. Cost development of low carbon energy technologies, Scenario-based cost trajectories to 2050, 2017 edition, Tsiropoulos, I. Tarvydas, D., Zucker, A. January 2018
A100: 30. [LOFT21-prediction from the Danish Finance Act 2018 (FFL18 November 2017)]
A101: 31. Ea Energy Analyses, Danish Energy Agency and Energinet.dk. "Opdatering teknologikatalogets solcelledata", June 2017.

Sheet 23 Wave Energy
B1: 23 Wave Energy | H1: Back to Index
C3: Wave Power
C4: 2015 | D4: 2020 | E4: 2030 | F4: 2050 | G4: Note | H4: Ref
B5: Energy/technical data
B6: Generating capacity for one power plant (MW) | C6: 1.0 - 30 | D6: 2.0 - 50 | E6: 10 - 100 | F6: 50 - 500 | H6: 1;1;4;4
B7: Length of installation of one power plant km | C7: 0.2 - 2 | D7: 0.2 - 5.0 | E7: 1 - 20 | F7: 5 - 100 | H7: 1;1;4;4
B8: Annual generated electricity production (MWh/MW) | C8: 1500 | D8: 2500 | E8: 3500 | F8: 4500 | H8: 4
B9: Availlability (%) | C9: 90 | D9: 95 | E9: 97 | F9: 98 | H9: 4
B10: Technical lifetime (years) | C10: 10 | D10: 20 | E10: 25 | F10: 30 | H10: 4
B11: Construction time | C11: 3 - 4 | D11: 3 - 4 | E11: 3 - 4 | F11: 3 - 4 | G11: C | H11: 4
B12: Financial data
B13: Nominal investment (M€/MW) | C13: 4.6-11 | D13: 3.8-9.0 | E13: 2.2-4.5 | F13: 1.6 | G13: A+B | H13: 2;2;2;3
B14: O&M (€/MWh) | C14: 20 | D14: 15 | E14: 10 | F14: 7 | H14: 4
A16: References:
A17: 1 | B17: Wave Net final report, Project no. ERK5 – CT –1999-20001 (2000 - 2003)
A18: 2 | B18: “Energy Technology Perspectives 2008”, International Energy Agency, 2008.
A19: 3 | B19: “Energy Technology Perspectives 2010”, International Energy Agency, 2010.
A20: 4 | B20: Danish Wave Energy Association, 2012
A21: Notes:
A22: A | B22: The cost presented provides an estimate for what capital cost and operating costs of wave power converters might be in the future assuming all R&D challenges have been overcome, that economics of scale have been realized and that efficiencies in production and operation due to the learning curve effect have been achieved.
A23: B | B23: Cost data are the same as in the 2010 catalogue, however inflated from price level 2008 to 2011 by multiplying with a general inflation factor 1.053
A24: C | B24: Much dependent on plant size and location.

Sheet 40 Comp. heat pump, DH
H1: Back to Index
B3: Technology | C3: 40 Electrical compression heat pumps - district heating
C4: 2015 | D4: 2020 | E4: 2030 | F4: 2050 | G4: Uncertainty (2020) | I4: Uncertainty (2050) | K4: Note | L4: Ref
B5: Energy/technical data | G5: Lower | H5: Upper | I5: Lower | J5: Upper
B6: Heat generation capacity for one unit (MWheat) | C6: 4 | D6: 4 | E6: 4 | F6: 4 | G6: 3 | H6: 6 | I6: 3 | J6: 10 | L6: 3
B7: Total efficiency, net (%), name plate | C7: N/A | D7: N/A | E7: N/A | F7: N/A | G7: N/A | H7: N/A | I7: N/A | J7: N/A
B8: Total eff., net (%), annual average, ambient heat source, no dev. in supply temp. | C8: 350 | D8: 360 | E8: 380 | F8: 410 | G8: 350 | H8: 380 | I8: 350 | J8: 450 | K8: A, F, J, K | L8: 4
B9: Total eff., net (%), annual average, ambient heat source, reduced supply temp. | C9: 350 | D9: 400 | E9: 480 | F9: 600 | G9: 350 | H9: 450 | I9: 350 | J9: 700 | K9: A, B, F, J | L9: 3, 4
B10: Total eff., net (%), annual average, waste heat 20° C, reduced supply temp. | C10: 440 | D10: 500 | E10: 600 | F10: 740 | G10: 440 | H10: 600 | I10: 440 | J10: 850 | K10: A, B, F, J | L10: 3, 4
B11: Total eff., net (%), annual average, waste heat 40° C, reduced supply temp. | C11: 700 | D11: 900 | E11: 1200 | F11: 1800 | G11: 700 | H11: 1200 | I11: 700 | J11: 2000 | K11: A, B, F, J | L11: 3, 4
B12: Electricity consumption for pumps etc. (% of heat gen) | C12: 2 | D12: 2 | E12: 2 | F12: 2 | G12: 1 | H12: 4 | I12: 1 | J12: 4 | K12: I, M | L12: 3
B13: Forced outage (%) | C13: 0 | D13: 0 | E13: 0 | F13: 0 | G13: 0 | H13: 1 | I13: 0 | J13: 1 | K13: G | L13: 3
B14: Planned outage (weeks per year) | C14: 0.5 | D14: 0.5 | E14: 0.5 | F14: 0.5 | G14: 0 | H14: 1 | I14: 0 | J14: 1 | K14: H | L14: 3
B15: Technical lifetime (years) | C15: 25 | D15: 25 | E15: 25 | F15: 25 | G15: 15 | H15: 30 | I15: 15 | J15: 30 | L15: 3
B16: Construction time (years) | C16: 0.5 | D16: 0.5 | E16: 0.5 | F16: 0.5 | G16: 0.3 | H16: 0.7 | I16: 0.3 | J16: 0.7 | K16: C
B17: Space requirement (1000m2 per MWheat) | C17: 0.02 | D17: 0.02 | E17: 0.02 | F17: 0.02 | G17: 0.01 | H17: 0.04 | I17: 0.01 | J17: 0.04 | L17: 1
B18: Regulation ability
B19: Primary regulation (% per 30 seconds) | C19: 10 | D19: 10 | E19: 10 | F19: 10 | G19: 10 | H19: 25 | I19: 10 | J19: 30 | K19: D | L19: 3
B20: Secondary regulation (% per minute) | C20: 20 | D20: 20 | E20: 20 | F20: 20 | G20: 20 | H20: 40 | I20: 20 | J20: 40 | K20: D | L20: 3
B21: Minimum load (% of full load) | C21: 10 | D21: 10 | E21: 10 | F21: 10 | G21: 10 | H21: 10 | I21: 10 | J21: 10 | K21: D | L21: 3
B22: Warm start-up time (hours) | C22: 0 | D22: 0 | E22: 0 | F22: 0 | G22: 0 | H22: 1 | I22: 0 | J22: 1 | L22: 3
B23: Cold start-up time (hours) | C23: 6 | D23: 6 | E23: 6 | F23: 6 | G23: 1 | H23: 12 | I23: 1 | J23: 12 | K23: E | L23: 8,10
B24: Environment
B25: SO2 (g per GJ fuel) | C25: 0 | D25: 0 | E25: 0 | F25: 0 | G25: 0 | H25: 0 | I25: 0 | J25: 0
B26: NOX (g per GJ fuel) | C26: 0 | D26: 0 | E26: 0 | F26: 0 | G26: 0 | H26: 0 | I26: 0 | J26: 0
B27: CH4 (g per GJ fuel) | C27: 0 | D27: 0 | E27: 0 | F27: 0 | G27: 0 | H27: 0 | I27: 0 | J27: 0
B28: N2O (g per GJ fuel) | C28: 0 | D28: 0 | E28: 0 | F28: 0 | G28: 0 | H28: 0 | I28: 0 | J28: 0
B29: Financial data (in 2015€)
B30: Nominal investment (M€ per MWheat) | C30: 0.7 | D30: 0.658 | E30: 0.5922 | F30: 0.53298 | G30: 0.5 | H30: 1 | I30: 0.5 | J30: 1 | K30: A, L
B31: - of which equipment (%) | C31: 50 | D31: 50 | E31: 50 | F31: 50 | G31: 30 | H31: 70 | I31: 30 | J31: 70 | L31: 3
B32: - of which installation (%) | C32: 50 | D32: 50 | E32: 50 | F32: 50 | G32: 30 | H32: 70 | I32: 30 | J32: 70 | L32: 3
B33: Fixed O&M (€/MWheat/year) | C33: 2000 | D33: 2000 | E33: 2000 | F33: 2000 | G33: 1000 | H33: 3000 | I33: 1000 | J33: 3000 | L33: 3
B34: Variable O&M (€/MWhheat) | C34: =SUM(C35:C36) -> 3.3 | D34: =SUM(D35:D36) -> 3.2 | E34: 3.7 | F34: 3.9 | G34: 2.2 | H34: 4.8 | I34: 2.7 | J34: 6.7
B35: - of which is electricity costs (€/MWhheat) | C35: 1.3 | D35: 1.4 | E35: 2 | F35: 2.3 | G35: 0.7 | H35: 2.8 | I35: 1.2 | J35: 4.7 | K35: M
B36: - of which is other O&M costs (€/MWhheat) | C36: 2 | D36: 1.8 | E36: 1.7 | F36: 1.6 | G36: 1.5 | H36: 2 | I36: 1.5 | J36: 2 | K36: F | L36: 3
B37: Technology specific data
A40: References:
A41: 1 | B41: Teknologisk Institut, 2015
A42: 3 | B42: Drejebog til store varmepumpeprojekter i fjernvarmesystemet, 2014, see http://www.planenergi.dk/varmepumper/
A43: 4 | B43: Udredning vedrørende varmelagringsteknologier og store varmepumper til brug i fjernvarmesystemer, 2013
A44: 8 | B44: Innoterm, 2015
A45: 10 | B45: Johnson Controls, 2015
A47: Notes:
A48: A | B48: Actual development within COP optimization and reduced investment cost depends on the development in fuel and electricity prices.
A49: B
A50: C | B50: The development within construction time will depend on future production figures and standardization of plants.
A51: D | B51: The regulation ability of large heat pumps will depend on the future markets for regulation services.
A52: E | B52: Cold start of time is starting a heat pump where stand by heating has not been applied
A53: F | B53: Operation at part load will usually increase COP but increase variable O&M costs
A54: G | B54: May vary depending on availability of heat source
A55: H | B55: May vary depending on specific type, heat source etc.
A56: I | B56: The auxillary eletricity is not included in the total efficiency
A57: J | B57: The total efficiency net annual average is calculated using the practical COP
A58: K | B58: Average value for ambient heat sources. For air it will be lower and for sea and lake water it will be around the average value, whereas for groundwater the value will be higher. It is weighted so that the heat pump produces 60-70 % of the demand of the district heating system. The supply temperature from the heat pump is fairly constant, since it is mixed with water from other production units in the months with the highest heat demand, when the supply temperature in the network is typically increased.
A59: L | B59: Including heat uptake and buildings
A60: M | B60: The cost of auxiliary electricity consumption is calculated using the following electricity prices in €/MWh: 2015: 63, 2020: 69, 2030: 101, 2050: 117. These prices include production costs and transport tariffs, but not any taxes or subsidies for renewable energy.

Sheet 40 Absorption heat pump, DH
H1: Back to Index
B3: Technology | C3: 40 Absorption heat pumps - district heating
C4: 2015 | D4: 2020 | E4: 2030 | F4: 2050 | G4: Uncertainty (2020) | I4: Uncertainty (2050) | K4: Note | L4: Ref
B5: Energy/technical data | G5: Lower | H5: Upper | I5: Lower | J5: Upper
B6: Heat generation capacity for one unit (MWheat) (excluding drive energy) | C6: 12 | D6: 12 | E6: 12 | F6: 12 | G6: 12 | H6: 20 | I6: 12 | J6: 30 | K6: A | L6: 13
B7: Total efficiency, net (%), name plate | C7: N/A | D7: N/A | E7: N/A | F7: N/A | G7: N/A | H7: N/A | I7: N/A | J7: N/A
B8: Total efficiency , net (%), annual average | C8: 170 | D8: 171 | E8: 173 | F8: 175 | G8: 170 | H8: 180 | I8: 170 | J8: 180 | K8: B | L8: 4
B9: Electricity consumption for pumps etc. (% of heat gen) | C9: 1 | D9: 1 | E9: 1 | F9: 1 | G9: 1 | H9: 3 | I9: 1 | J9: 3 | K9: E | L9: 3
B10: Forced outage (%) | C10: 0 | D10: 0 | E10: 0 | F10: 0 | G10: 0 | H10: 1 | I10: 0 | J10: 1 | K10: C
B11: Planned outage (weeks per year) | C11: 0 | D11: 0 | E11: 0 | F11: 0 | G11: 0 | H11: 1 | I11: 0 | J11: 1 | K11: D
B12: Technical lifetime (years) | C12: 25 | D12: 25 | E12: 25 | F12: 25 | G12: 15 | H12: 30 | I12: 15 | J12: 30 | L12: 3
B13: Construction time (years) | C13: 0.5 | D13: 0.5 | E13: 0.5 | F13: 0.5 | G13: 0.3 | H13: 0.7 | I13: 0.3 | J13: 0.7
B14: Space requirement (1000m2 per MW) | C14: 0.01 | D14: 0.01 | E14: 0.005 | F14: 0.005 | G14: 0.005 | H14: 0.01 | I14: 0.005 | J14: 0.01
B15: Regulation ability
B16: Primary regulation (% per 30 seconds) | C16: N/A | D16: N/A | E16: N/A | F16: N/A | G16: N/A | H16: N/A | I16: N/A | J16: N/A
B17: Secondary regulation (% per minute) | C17: N/A | D17: N/A | E17: N/A | F17: N/A | G17: N/A | H17: N/A | I17: N/A | J17: N/A
B18: Minimum load (% of full load) | C18: 10 | D18: 10 | E18: 10 | F18: 10 | G18: 10 | H18: 10 | I18: 10 | J18: 10
B19: Warm start-up time (hours) | C19: 0 | D19: 0 | E19: 0 | F19: 0 | G19: 0 | H19: 1 | I19: 0 | J19: 1
B20: Cold start-up time (hours) | C20: 0.5 | D20: 0.5 | E20: 0.5 | F20: 0.5 | G20: 0.25 | H20: 2 | I20: 0.25 | J20: 2
B21: Environment
B22: SO2 (g per GJ fuel) | C22: 0 | D22: 0 | E22: 0 | F22: 0 | G22: 0 | H22: 0 | I22: 0 | J22: 0
B23: NOX (g per GJ fuel) | C23: 0 | D23: 0 | E23: 0 | F23: 0 | G23: 0 | H23: 0 | I23: 0 | J23: 0
B24: CH4 (g per GJ fuel) | C24: 0 | D24: 0 | E24: 0 | F24: 0 | G24: 0 | H24: 0 | I24: 0 | J24: 0
B25: N2O (g per GJ fuel) | C25: 0 | D25: 0 | E25: 0 | F25: 0 | G25: 0 | H25: 0 | I25: 0 | J25: 0
B26: Financial data (in 2015€)
B27: Nominal investment (M€ per MWheat excluding drive energy) | C27: 0.6 | D27: 0.564 | E27: 0.5076 | F27: 0.45684 | G27: 0.4 | H27: 0.8 | I27: 0.4 | J27: 0.8 | K27: A | L27: 3
B28: - of which equipment (%) | C28: 50 | D28: 50 | E28: 50 | F28: 50 | G28: 30 | H28: 70 | I28: 30 | J28: 70 | L28: 3
B29: - of which installation (%) | C29: 50 | D29: 50 | E29: 50 | F29: 50 | G29: 30 | H29: 70 | I29: 30 | J29: 70 | L29: 3
B30: Fixed O&M (€/MWheat/year) | C30: 2000 | D30: 2000 | E30: 2000 | F30: 2000 | G30: 1000 | H30: 3000 | I30: 1000 | J30: 3000 | L30: 3
B31: Variable O&M (€/MWhheat) | C31: =SUM(C32:C33) -> 0.9 | D31: =SUM(D32:D33) -> 0.982 | E31: 1.2538 | F31: 1.42842 | G31: 1 | H31: 2.5 | I31: 1.4 | J31: 0.3
B32: - of which is electricity costs (€/MWhheat) | C32: 0.6 | D32: 0.7 | E32: 1 | F32: 1.2 | G32: 0.7 | H32: 2.1 | I32: 1.2 | J32: =J9/100*J50 -> 0 | K32: E
B33: - of which is other O&M costs (€/MWhheat) | C33: 0.3 | D33: 0.282 | E33: 0.2538 | F33: 0.22842 | G33: 0.3 | H33: 0.4 | I33: 0.2 | J33: 0.3 | L33: 3
B34: Technology specific data
A36: References:
A37: 3 | B37: Drejebog til store varmepumpeprojekter i fjernvarmesystemet, 2014, see http://www.planenergi.dk/varmepumper/
A38: 4 | B38: Udredning vedrørende varmelagringsteknologier og store varmepumper til brug i fjernvarmesystemer, 2013
A39: 13 | B39: Scandinavian Energy Group, 2015
A41: Notes:
A42: A | B42: The heat pump itself only represents a small part of the total investment. Depending on size the heat pump typically represents 0.2 M€ per. MW heating (excluding drive energy).
A43: B | B43: The heat is assumed delivered at 80 °C in 2015 and 60 °C in 2050
A44: C | B44: May vary depending on availability of heat source
A45: D | B45: May vary depending on specific type, heat source etc.
A46: E | B46: The cost of auxiliary electricity consumption is calculated using the following electricity prices in €/MWh: 2015: 63, 2020: 69, 2030: 101, 2050: 117. These prices include production costs and transport tariffs, but not any taxes or subsidies for renewable energy.

Sheet 41 Electric Boilers
H1: Back to Index
B2: New datasheet added June 2017
B4: Technology | C4: 41 Heat only generation tech (boilers, heat pumps, geothermal) Electric boilers, 400 or 690 V, 0.06-5 MW; 10 or 15 kV, >10 MW
C5: 2015 | D5: 2020 | E5: 2030 | F5: 2050 | G5: Uncertainty (2020) | I5: Uncertainty (2050) | K5: Note | L5: Ref
B6: Energy/technical data | G6: Lower | H6: Upper | I6: Lower | J6: Upper
B7: Heat generation capacity for one unit (MW) | C7: 5 | G7: 1 | H7: 25 | I7: 1 | J7: 25
B8: Total efficiency, net (%), name plate | C8: 98 | D8: 99 | E8: 99 | F8: 99 | G8: 98 | H8: 99 | I8: 99 | J8: 99 | L8: 1
B9: Total efficiency , net (%), annual average | C9: 98 | D9: 99 | E9: 99 | F9: 99 | G9: 98 | H9: 99 | I9: 99 | J9: 99 | L9: 1
B10: Electricity consumption for pumps etc. (% of heat gen) | C10: 0.5 | D10: 0.5 | E10: 0.5 | F10: 0.5 | G10: 0.1 | H10: 0.5 | I10: 0.1 | J10: 0.5 | L10: 1
B11: Forced outage (%) | C11: 1 | D11: 1 | E11: 1 | F11: 1 | G11: 0.5 | H11: 1 | I11: 0.5 | J11: 1 | K11: E | L11: 1
B12: Planned outage (weeks per year) | C12: 0.2 | D12: 0.2 | E12: 0.2 | F12: 0.2 | G12: 0.2 | H12: 0.2 | I12: 0.2 | J12: 0.2 | K12: E | L12: 1
B13: Technical lifetime (years) | C13: 20 | D13: 20 | E13: 20 | F13: 20 | G13: 20 | H13: 20 | I13: 20 | J13: 20 | L13: 1
B14: Construction time (years) | C14: 0.5 | D14: 0.5 | E14: 0.5 | F14: 0.5 | G14: 0.5 | H14: 1 | I14: 0.5 | J14: 1 | L14: 1
B15: Regulation ability
B16: Primary regulation (% per 30 seconds) | C16: 100 | D16: 100 | E16: 100 | F16: 100 | G16: 100 | H16: 100 | I16: 100 | J16: 100 | L16: 1
